Publisher Label,Publisher URI,"Supplier","Invoice ","Amount (£)","Purpose","Transaction Number","Payment Date","Organisational Unit","Cost Centre(T)","Internal category number"
"Wolverhampton City Council","http://opendatacommunities.org/id/metropolitan-district-council/wolverhampton","Access To Business","A2B/JPQ4","14,001.00","Grant Payments","190198867","27/01/16","Enterprise & Skills","Access to Business","R4700"
"Wolverhampton City Council","http://opendatacommunities.org/id/metropolitan-district-council/wolverhampton","Louise Kennedy","LH S0820618","750.00","Services - Professional Fees","130104044","22/01/16","Children in Need & Child Protection","Head of Service - CINCP","R4400"
"Wolverhampton City Council","http://opendatacommunities.org/id/metropolitan-district-council/wolverhampton","Acme-H&H Refrigeration","IN278074","1,395.00","Equipment - Purchase","130100995","20/01/16","Adult Education","Caf�","R4000"
"Wolverhampton City Council","http://opendatacommunities.org/id/metropolitan-district-council/wolverhampton","Acorn Environmental Mgt Group Limited","8367","5,114.33","Grounds Maintenance - Contract","130101962","20/01/16","Environmental Maintenance","Arbor Scheme","R2075"
"Wolverhampton City Council","http://opendatacommunities.org/id/metropolitan-district-council/wolverhampton","Acorn Environmental Mgt Group Limited","8326","3,763.60","Grounds Maintenance - Contract","130099554","20/01/16","Environmental Maintenance","Arbor Scheme","R2075"
"Wolverhampton City Council","http://opendatacommunities.org/id/metropolitan-district-council/wolverhampton","Acorn Environmental Mgt Group Limited","8382","3,804.50","Grounds Maintenance - Contract","130103154","27/01/16","Environmental Maintenance","Arbor Scheme","R2075"
"Wolverhampton City Council","http://opendatacommunities.org/id/metropolitan-district-council/wolverhampton","Acorn Environmental Mgt Group Limited","8370","7,784.83","Grounds Maintenance - Contract","130101963","13/01/16","Environmental Maintenance","Arbor Scheme","R2075"
"Wolverhampton City Council","http://opendatacommunities.org/id/metropolitan-district-council/wolverhampton","M Sicilia","006","160.00","TPP - Maintenance Contractor - General","190191102","06/01/16","Parking Services","Cycling Schemes - Bikeability","R5720"
"Wolverhampton City Council","http://opendatacommunities.org/id/metropolitan-district-council/wolverhampton","M Williams","00020","320.00","TPP - Maintenance Contractor - General","190191099","06/01/16","Parking Services","Cycling Schemes - Bikeability","R5720"
"Wolverhampton City Council","http://opendatacommunities.org/id/metropolitan-district-council/wolverhampton","Partisip8/P Sicilia","684","1,260.00","TPP - Maintenance Contractor - General","190191100","06/01/16","Parking Services","Cycling Schemes - Bikeability","R5720"
"Wolverhampton City Council","http://opendatacommunities.org/id/metropolitan-district-council/wolverhampton","Adreeja Chatterjee","633570","1,750.00","Services - Professional Fees","130102698","13/01/16","Children in Need & Child Protection","Head of Service - CINCP","R4400"
"Wolverhampton City Council","http://opendatacommunities.org/id/metropolitan-district-council/wolverhampton","Adreeja Chatterjee","651414","1,750.00","Services - Professional Fees","130102700","13/01/16","Children in Need & Child Protection","Head of Service - CINCP","R4400"
"Wolverhampton City Council","http://opendatacommunities.org/id/metropolitan-district-council/wolverhampton","R Millard","000021","30.00","Services - Professional Fees","190191098","06/01/16","Parking Services","Advisory Road Markings and Disabled Bays","R4400"
"Wolverhampton City Council","http://opendatacommunities.org/id/metropolitan-district-council/wolverhampton","Adt Fire And Security PLC","31547720- 02","295.85","Services - Security","130103510","27/01/16","Engineering & Civic Centre","Statutory Services (10RM)","R4405"
"Wolverhampton City Council","http://opendatacommunities.org/id/metropolitan-district-council/wolverhampton","Adt Fire And Security PLC","31106659 - 02","184.00","Services - Security","130100923","06/01/16","Engineering & Civic Centre","Statutory Services (10RM)","R4405"
"Wolverhampton City Council","http://opendatacommunities.org/id/metropolitan-district-council/wolverhampton","Adt Fire And Security PLC","29350284 - 02","1,557.94","R&M - Departmental planned (internal)","130100906","06/01/16","Engineering & Civic Centre","Victoria Square, Block 11","R2000"
"Wolverhampton City Council","http://opendatacommunities.org/id/metropolitan-district-council/wolverhampton","Adt Fire And Security PLC","30835532 - 02","243.12","Fixtures and Fittings - R&M","130102274","13/01/16","Markets","Bilston Market and Licensed Operations","R2502"
"Wolverhampton City Council","http://opendatacommunities.org/id/metropolitan-district-council/wolverhampton","Adt Fire And Security PLC","31099602 - 02","135.00","Fixtures and Fittings - R&M","130102276","13/01/16","Markets","Wolverhampton Indoor and Open Market","R2502"
"Wolverhampton City Council","http://opendatacommunities.org/id/metropolitan-district-council/wolverhampton","Adt Fire And Security PLC","31324241 - 02","243.57","Fixtures and Fittings - R&M","130102279","13/01/16","Markets","Bilston Market and Licensed Operations","R2502"
"Wolverhampton City Council","http://opendatacommunities.org/id/metropolitan-district-council/wolverhampton","Adt Fire And Security PLC","29618625 - 02","537.85","Fixtures and Fittings - R&M","130102273","13/01/16","Engineering & Civic Centre","Statutory Services (10RM)","R2502"
"Wolverhampton City Council","http://opendatacommunities.org/id/metropolitan-district-council/wolverhampton","S Drew","00005","60.00","Services - Professional Fees","190191103","06/01/16","Parking Services","Advisory Road Markings and Disabled Bays","R4400"
"Wolverhampton City Council","http://opendatacommunities.org/id/metropolitan-district-council/wolverhampton","Af Blakemore/Blakemore Foodservice","4883465","-8.40","Provisions (Not for resale)","130104147","22/01/16","Older People Provider Services","Woden Resource Centre","R4101"
"Wolverhampton City Council","http://opendatacommunities.org/id/metropolitan-district-council/wolverhampton","Af Blakemore/Blakemore Foodservice","4908289","200.02","Provisions (Not for resale)","130103525","29/01/16","Older People Provider Services","Woden Resource Centre","R4101"
"Wolverhampton City Council","http://opendatacommunities.org/id/metropolitan-district-council/wolverhampton","Af Blakemore/Blakemore Foodservice","4908289","-200.02","Provisions (Not for resale)","130103525","29/01/16","Older People Provider Services","Woden Resource Centre","R4101"
"Wolverhampton City Council","http://opendatacommunities.org/id/metropolitan-district-council/wolverhampton","Af Blakemore/Blakemore Foodservice","4908289","67.26","Provisions (Not for resale)","130103525","29/01/16","Older People Provider Services","Woden Resource Centre","R4101"
"Wolverhampton City Council","http://opendatacommunities.org/id/metropolitan-district-council/wolverhampton","Af Blakemore/Blakemore Foodservice","4908289","132.76","Provisions (Not for resale)","130103525","29/01/16","Older People Provider Services","Woden Resource Centre","R4101"
"Wolverhampton City Council","http://opendatacommunities.org/id/metropolitan-district-council/wolverhampton","Af Blakemore/Blakemore Foodservice","4871505","293.26","Provisions (Not for resale)","130098982","08/01/16","Adult Education","Discretionary Fund","R4101"
"Wolverhampton City Council","http://opendatacommunities.org/id/metropolitan-district-council/wolverhampton","Af Blakemore/Blakemore Foodservice","4871505","-293.26","Provisions (Not for resale)","130098982","08/01/16","Adult Education","Discretionary Fund","R4101"
"Wolverhampton City Council","http://opendatacommunities.org/id/metropolitan-district-council/wolverhampton","Af Blakemore/Blakemore Foodservice","4871505","4.80","Provisions (Not for resale)","130098982","08/01/16","Adult Education","Discretionary Fund","R4101"
"Wolverhampton City Council","http://opendatacommunities.org/id/metropolitan-district-council/wolverhampton","Af Blakemore/Blakemore Foodservice","4871505","288.46","Provisions (Not for resale)","130098982","08/01/16","Adult Education","Discretionary Fund","R4101"
"Wolverhampton City Council","http://opendatacommunities.org/id/metropolitan-district-council/wolverhampton","Af Blakemore/Blakemore Foodservice","4881583","-88.52","Provisions (Not for resale)","130098983","08/01/16","Adult Education","Discretionary Fund","R4101"
"Wolverhampton City Council","http://opendatacommunities.org/id/metropolitan-district-council/wolverhampton","Af Blakemore/Blakemore Foodservice","4881583","88.52","Provisions (Not for resale)","130098983","08/01/16","Adult Education","Discretionary Fund","R4101"
"Wolverhampton City Council","http://opendatacommunities.org/id/metropolitan-district-council/wolverhampton","Af Blakemore/Blakemore Foodservice","4881583","-88.52","Provisions (Not for resale)","130098983","08/01/16","Adult Education","Discretionary Fund","R4101"
"Wolverhampton City Council","http://opendatacommunities.org/id/metropolitan-district-council/wolverhampton","Af Blakemore/Blakemore Foodservice","4892580","61.58","Provisions (Not for resale)","130101932","08/01/16","Older People Provider Services","Blakenhall Resource Centre","R4101"
"Wolverhampton City Council","http://opendatacommunities.org/id/metropolitan-district-council/wolverhampton","Af Blakemore/Blakemore Foodservice","4892580","-61.58","Provisions (Not for resale)","130101932","08/01/16","Older People Provider Services","Blakenhall Resource Centre","R4101"
"Wolverhampton City Council","http://opendatacommunities.org/id/metropolitan-district-council/wolverhampton","Af Blakemore/Blakemore Foodservice","4892580","61.58","Provisions (Not for resale)","130101932","08/01/16","Older People Provider Services","Blakenhall Resource Centre","R4101"
"Wolverhampton City Council","http://opendatacommunities.org/id/metropolitan-district-council/wolverhampton","Af Blakemore/Blakemore Foodservice","WCC000094","737.92","Provisions (Resale)","130101615","27/01/16","Catering","Civic Centre Catering","R4102"
"Wolverhampton City Council","http://opendatacommunities.org/id/metropolitan-district-council/wolverhampton","Af Blakemore/Blakemore Foodservice","WCC000091","2,815.34","Provisions (Resale)","130101613","27/01/16","Catering","Civic Centre Catering","R4102"
"Wolverhampton City Council","http://opendatacommunities.org/id/metropolitan-district-council/wolverhampton","Af Blakemore/Blakemore Foodservice","WCC000091","-2,815.34","Provisions (Resale)","130101613","27/01/16","Catering","Civic Centre Catering","R4102"
"Wolverhampton City Council","http://opendatacommunities.org/id/metropolitan-district-council/wolverhampton","Af Blakemore/Blakemore Foodservice","WCC000091","1,777.55","Provisions (Resale)","130101613","27/01/16","Catering","Civic Centre Catering","R4102"
"Wolverhampton City Council","http://opendatacommunities.org/id/metropolitan-district-council/wolverhampton","Af Blakemore/Blakemore Foodservice","WCC000091","1,037.79","Provisions (Resale)","130101613","27/01/16","Catering","Civic Centre Catering","R4102"
"Wolverhampton City Council","http://opendatacommunities.org/id/metropolitan-district-council/wolverhampton","Af Blakemore/Blakemore Foodservice","WCC000090","557.15","Provisions (Resale)","130101612","27/01/16","Catering","Meals on Wheels","R4102"
"Wolverhampton City Council","http://opendatacommunities.org/id/metropolitan-district-council/wolverhampton","Af Blakemore/Blakemore Foodservice","WCC000090","-557.15","Provisions (Resale)","130101612","27/01/16","Catering","Meals on Wheels","R4102"
"Wolverhampton City Council","http://opendatacommunities.org/id/metropolitan-district-council/wolverhampton","Af Blakemore/Blakemore Foodservice","WCC000090","534.57","Provisions (Resale)","130101612","27/01/16","Catering","Meals on Wheels","R4102"
"Wolverhampton City Council","http://opendatacommunities.org/id/metropolitan-district-council/wolverhampton","Af Blakemore/Blakemore Foodservice","WCC000090","22.58","Provisions (Resale)","130101612","27/01/16","Catering","Meals on Wheels","R4102"
"Wolverhampton City Council","http://opendatacommunities.org/id/metropolitan-district-council/wolverhampton","Af Blakemore/Blakemore Foodservice","WCC000092","1,070.58","Provisions (Resale)","130101614","27/01/16","Catering","Bert Williams Leisure Centre Caf�","R4102"
"Wolverhampton City Council","http://opendatacommunities.org/id/metropolitan-district-council/wolverhampton","Af Blakemore/Blakemore Foodservice","WCC000092","-1,070.58","Provisions (Resale)","130101614","27/01/16","Catering","Bert Williams Leisure Centre Caf�","R4102"
"Wolverhampton City Council","http://opendatacommunities.org/id/metropolitan-district-council/wolverhampton","Af Blakemore/Blakemore Foodservice","WCC000092","437.37","Provisions (Resale)","130101614","27/01/16","Catering","Bert Williams Leisure Centre Caf�","R4102"
"Wolverhampton City Council","http://opendatacommunities.org/id/metropolitan-district-council/wolverhampton","Af Blakemore/Blakemore Foodservice","WCC000092","633.21","Provisions (Resale)","130101614","27/01/16","Catering","Bert Williams Leisure Centre Caf�","R4102"
"Wolverhampton City Council","http://opendatacommunities.org/id/metropolitan-district-council/wolverhampton","Af Blakemore/Blakemore Foodservice","4924845","66.44","Provisions (Not for resale)","130104884","27/01/16","Learning Disability Provider","Support Plus","R4101"
"Wolverhampton City Council","http://opendatacommunities.org/id/metropolitan-district-council/wolverhampton","Af Blakemore/Blakemore Foodservice","4924845","36.52","Provisions (Not for resale)","130104884","27/01/16","Learning Disability Provider","Support Plus","R4101"
"Wolverhampton City Council","http://opendatacommunities.org/id/metropolitan-district-council/wolverhampton","Af Blakemore/Blakemore Foodservice","4906305","64.97","Provisions (Not for resale)","130102292","27/01/16","Older People Provider Services","Woden Resource Centre","R4101"
"Wolverhampton City Council","http://opendatacommunities.org/id/metropolitan-district-council/wolverhampton","Af Blakemore/Blakemore Foodservice","4906305","-64.97","Provisions (Not for resale)","130102292","27/01/16","Older People Provider Services","Woden Resource Centre","R4101"
"Wolverhampton City Council","http://opendatacommunities.org/id/metropolitan-district-council/wolverhampton","Af Blakemore/Blakemore Foodservice","4906305","64.97","Provisions (Not for resale)","130102292","27/01/16","Older People Provider Services","Woden Resource Centre","R4101"
"Wolverhampton City Council","http://opendatacommunities.org/id/metropolitan-district-council/wolverhampton","Af Blakemore/Blakemore Foodservice","4906901","64.72","Provisions (Not for resale)","130102293","27/01/16","Older People Provider Services","Woden Resource Centre","R4101"
"Wolverhampton City Council","http://opendatacommunities.org/id/metropolitan-district-council/wolverhampton","Af Blakemore/Blakemore Foodservice","4906901","248.45","Provisions (Not for resale)","130102293","27/01/16","Older People Provider Services","Woden Resource Centre","R4101"
"Wolverhampton City Council","http://opendatacommunities.org/id/metropolitan-district-council/wolverhampton","Af Blakemore/Blakemore Foodservice","4877742","358.54","Provisions (Not for resale)","130099688","06/01/16","Older People Provider Services","Woden Resource Centre","R4101"
"Wolverhampton City Council","http://opendatacommunities.org/id/metropolitan-district-council/wolverhampton","Af Blakemore/Blakemore Foodservice","4877742","-358.54","Provisions (Not for resale)","130099688","06/01/16","Older People Provider Services","Woden Resource Centre","R4101"
"Wolverhampton City Council","http://opendatacommunities.org/id/metropolitan-district-council/wolverhampton","Af Blakemore/Blakemore Foodservice","4877742","57.81","Provisions (Not for resale)","130099688","06/01/16","Older People Provider Services","Woden Resource Centre","R4101"
"Wolverhampton City Council","http://opendatacommunities.org/id/metropolitan-district-council/wolverhampton","Af Blakemore/Blakemore Foodservice","4877742","300.73","Provisions (Not for resale)","130099688","06/01/16","Older People Provider Services","Woden Resource Centre","R4101"
"Wolverhampton City Council","http://opendatacommunities.org/id/metropolitan-district-council/wolverhampton","Af Blakemore/Blakemore Foodservice","4889844","78.22","Provisions (Not for resale)","130100261","06/01/16","Older People Provider Services","Woden Resource Centre","R4101"
"Wolverhampton City Council","http://opendatacommunities.org/id/metropolitan-district-council/wolverhampton","Af Blakemore/Blakemore Foodservice","4889844","-78.22","Provisions (Not for resale)","130100261","06/01/16","Older People Provider Services","Woden Resource Centre","R4101"
"Wolverhampton City Council","http://opendatacommunities.org/id/metropolitan-district-council/wolverhampton","Af Blakemore/Blakemore Foodservice","4888145","273.93","Provisions (Not for resale)","130100259","06/01/16","Older People Provider Services","Woden Resource Centre","R4101"
"Wolverhampton City Council","http://opendatacommunities.org/id/metropolitan-district-council/wolverhampton","Af Blakemore/Blakemore Foodservice","4888145","-273.93","Provisions (Not for resale)","130100259","06/01/16","Older People Provider Services","Woden Resource Centre","R4101"
"Wolverhampton City Council","http://opendatacommunities.org/id/metropolitan-district-council/wolverhampton","Af Blakemore/Blakemore Foodservice","4888145","75.30","Provisions (Not for resale)","130100259","06/01/16","Older People Provider Services","Woden Resource Centre","R4101"
"Wolverhampton City Council","http://opendatacommunities.org/id/metropolitan-district-council/wolverhampton","Af Blakemore/Blakemore Foodservice","4888145","198.63","Provisions (Not for resale)","130100259","06/01/16","Older People Provider Services","Woden Resource Centre","R4101"
"Wolverhampton City Council","http://opendatacommunities.org/id/metropolitan-district-council/wolverhampton","Af Blakemore/Blakemore Foodservice","4888788","24.70","Provisions (Not for resale)","130100260","06/01/16","Older People Provider Services","Woden Resource Centre","R4101"
"Wolverhampton City Council","http://opendatacommunities.org/id/metropolitan-district-council/wolverhampton","Af Blakemore/Blakemore Foodservice","4888788","-24.70","Provisions (Not for resale)","130100260","06/01/16","Older People Provider Services","Woden Resource Centre","R4101"
"Wolverhampton City Council","http://opendatacommunities.org/id/metropolitan-district-council/wolverhampton","Af Blakemore/Blakemore Foodservice","4888788","15.16","Provisions (Not for resale)","130100260","06/01/16","Older People Provider Services","Woden Resource Centre","R4101"
"Wolverhampton City Council","http://opendatacommunities.org/id/metropolitan-district-council/wolverhampton","Af Blakemore/Blakemore Foodservice","4888788","9.54","Provisions (Not for resale)","130100260","06/01/16","Older People Provider Services","Woden Resource Centre","R4101"
"Wolverhampton City Council","http://opendatacommunities.org/id/metropolitan-district-council/wolverhampton","Af Blakemore/Blakemore Foodservice","4889844","10.15","Provisions (Not for resale)","130100261","06/01/16","Older People Provider Services","Woden Resource Centre","R4101"
"Wolverhampton City Council","http://opendatacommunities.org/id/metropolitan-district-council/wolverhampton","Af Blakemore/Blakemore Foodservice","4889844","68.07","Provisions (Not for resale)","130100261","06/01/16","Older People Provider Services","Woden Resource Centre","R4101"
"Wolverhampton City Council","http://opendatacommunities.org/id/metropolitan-district-council/wolverhampton","Af Blakemore/Blakemore Foodservice","WCC000084","590.20","Provisions (Not for resale)","130098838","06/01/16","Leisure Services","WV Active Catering","R4101"
"Wolverhampton City Council","http://opendatacommunities.org/id/metropolitan-district-council/wolverhampton","Af Blakemore/Blakemore Foodservice","WCC000084","-590.20","Provisions (Not for resale)","130098838","06/01/16","Leisure Services","WV Active Catering","R4101"
"Wolverhampton City Council","http://opendatacommunities.org/id/metropolitan-district-council/wolverhampton","Af Blakemore/Blakemore Foodservice","WCC000084","341.95","Provisions (Not for resale)","130098838","06/01/16","Leisure Services","WV Active Catering","R4101"
"Wolverhampton City Council","http://opendatacommunities.org/id/metropolitan-district-council/wolverhampton","Af Blakemore/Blakemore Foodservice","WCC000084","248.25","Provisions (Not for resale)","130098838","06/01/16","Leisure Services","WV Active Catering","R4101"
"Wolverhampton City Council","http://opendatacommunities.org/id/metropolitan-district-council/wolverhampton","Af Blakemore/Blakemore Foodservice","WCC000085","1,598.15","Provisions (Not for resale)","130098839","06/01/16","Leisure Services","WV Active Catering","R4101"
"Wolverhampton City Council","http://opendatacommunities.org/id/metropolitan-district-council/wolverhampton","Af Blakemore/Blakemore Foodservice","WCC000085","-1,598.15","Provisions (Not for resale)","130098839","06/01/16","Leisure Services","WV Active Catering","R4101"
"Wolverhampton City Council","http://opendatacommunities.org/id/metropolitan-district-council/wolverhampton","Af Blakemore/Blakemore Foodservice","WCC000085","1,179.92","Provisions (Not for resale)","130098839","06/01/16","Leisure Services","WV Active Catering","R4101"
"Wolverhampton City Council","http://opendatacommunities.org/id/metropolitan-district-council/wolverhampton","Af Blakemore/Blakemore Foodservice","WCC000085","418.23","Provisions (Not for resale)","130098839","06/01/16","Leisure Services","WV Active Catering","R4101"
"Wolverhampton City Council","http://opendatacommunities.org/id/metropolitan-district-council/wolverhampton","Af Blakemore/Blakemore Foodservice","4870314","14.41","Provisions (Resale)","130101201","06/01/16","Older People Provider Services","Merry Hill House","R4102"
"Wolverhampton City Council","http://opendatacommunities.org/id/metropolitan-district-council/wolverhampton","Af Blakemore/Blakemore Foodservice","4883497","22.50","Provisions (Not for resale)","130100257","06/01/16","Older People Provider Services","Woden Resource Centre","R4101"
"Wolverhampton City Council","http://opendatacommunities.org/id/metropolitan-district-council/wolverhampton","Af Blakemore/Blakemore Foodservice","4883498","-43.05","Provisions (Not for resale)","130100258","06/01/16","Older People Provider Services","Woden Resource Centre","R4101"
"Wolverhampton City Council","http://opendatacommunities.org/id/metropolitan-district-council/wolverhampton","Af Blakemore/Blakemore Foodservice","WCC000087","582.12","Provisions (Resale)","130098840","06/01/16","Leisure Services","WV Active Catering","R4102"
"Wolverhampton City Council","http://opendatacommunities.org/id/metropolitan-district-council/wolverhampton","Af Blakemore/Blakemore Foodservice","WCC000087","12.74","Provisions (Resale)","130098840","06/01/16","Leisure Services","WV Active Catering","R4102"
"Wolverhampton City Council","http://opendatacommunities.org/id/metropolitan-district-council/wolverhampton","Af Blakemore/Blakemore Foodservice","4900254","6.93","Provisions (Not for resale)","130101935","13/01/16","Older People Provider Services","Woden Resource Centre","R4101"
"Wolverhampton City Council","http://opendatacommunities.org/id/metropolitan-district-council/wolverhampton","Af Blakemore/Blakemore Foodservice","4900254","73.74","Provisions (Not for resale)","130101935","13/01/16","Older People Provider Services","Woden Resource Centre","R4101"
"Wolverhampton City Council","http://opendatacommunities.org/id/metropolitan-district-council/wolverhampton","Af Blakemore/Blakemore Foodservice","4898667","50.97","Provisions (Not for resale)","130101934","13/01/16","Older People Provider Services","Woden Resource Centre","R4101"
"Wolverhampton City Council","http://opendatacommunities.org/id/metropolitan-district-council/wolverhampton","Af Blakemore/Blakemore Foodservice","4898667","264.02","Provisions (Not for resale)","130101934","13/01/16","Older People Provider Services","Woden Resource Centre","R4101"
"Wolverhampton City Council","http://opendatacommunities.org/id/metropolitan-district-council/wolverhampton","Af Blakemore/Blakemore Foodservice","4892562","35.01","Provisions (Not for resale)","130101931","13/01/16","Older People Provider Services","Blakenhall Resource Centre","R4101"
"Wolverhampton City Council","http://opendatacommunities.org/id/metropolitan-district-council/wolverhampton","Af Blakemore/Blakemore Foodservice","4892562","173.04","Provisions (Not for resale)","130101931","13/01/16","Older People Provider Services","Blakenhall Resource Centre","R4101"
"Wolverhampton City Council","http://opendatacommunities.org/id/metropolitan-district-council/wolverhampton","Af Blakemore/Blakemore Foodservice","4899779","24.95","Provisions (Not for resale)","130102061","13/01/16","Older People Provider Services","Blakenhall Resource Centre","R4101"
"Wolverhampton City Council","http://opendatacommunities.org/id/metropolitan-district-council/wolverhampton","Af Blakemore/Blakemore Foodservice","2511153","287.46","Provisions (Not for resale)","130100441","13/01/16","Visitor Economy","The Little Civic","R4101"
"Wolverhampton City Council","http://opendatacommunities.org/id/metropolitan-district-council/wolverhampton","Af Blakemore/Blakemore Foodservice","2506936","188.45","Provisions (Not for resale)","130100440","13/01/16","Visitor Economy","The Little Civic","R4101"
"Wolverhampton City Council","http://opendatacommunities.org/id/metropolitan-district-council/wolverhampton","S P Nugent","000013","80.00","TPP - Maintenance Contractor - General","190191101","06/01/16","Parking Services","Cycling Schemes - Bikeability","R5720"
"Wolverhampton City Council","http://opendatacommunities.org/id/metropolitan-district-council/wolverhampton","Aggregate Industries UK Limited","22480911","818.85","Materials","130099672","06/01/16","Highways Maintenance","Patching","R4007"
"Wolverhampton City Council","http://opendatacommunities.org/id/metropolitan-district-council/wolverhampton","Agilisys Limited","1218088","5,925.00","Computing - Purchase of Software","130094694","08/01/16","Revenues & Benefits","Debt Management","R4531"
"Wolverhampton City Council","http://opendatacommunities.org/id/metropolitan-district-council/wolverhampton","Agilisys Limited","1218394","5,743.00","Computing - Purchase of Software","130102439","20/01/16","Revenues & Benefits","Debt Management","R4531"
"Wolverhampton City Council","http://opendatacommunities.org/id/metropolitan-district-council/wolverhampton","Aidapt Bathrooms Limited","225830","1,393.00","Equipment - Purchase","130103497","22/01/16","Independent Living Service","Independent Living Service","R4000"
"Wolverhampton City Council","http://opendatacommunities.org/id/metropolitan-district-council/wolverhampton","Aidservice Limited","89321","172.60","Equipment - Purchase","130102733","29/01/16","Independent Living Service","Independent Living Service","R4000"
"Wolverhampton City Council","http://opendatacommunities.org/id/metropolitan-district-council/wolverhampton","Aidservice Limited","89143","212.00","Equipment - Purchase","130100499","06/01/16","Independent Living Service","Independent Living Service","R4000"
"Wolverhampton City Council","http://opendatacommunities.org/id/metropolitan-district-council/wolverhampton","Aidservice Limited","89243","287.00","Equipment - Purchase","130101117","13/01/16","Independent Living Service","Independent Living Service","R4000"
"Wolverhampton City Council","http://opendatacommunities.org/id/metropolitan-district-council/wolverhampton","Aidservice Limited","89241","148.60","Equipment - Purchase","130101116","13/01/16","Independent Living Service","Independent Living Service","R4000"
"Wolverhampton City Council","http://opendatacommunities.org/id/metropolitan-district-council/wolverhampton","Airport-Link","BDW010","1,377.04","Client Transport","130100744","06/01/16","School Planning & Resources","Special - Transport","R3042"
"Wolverhampton City Council","http://opendatacommunities.org/id/metropolitan-district-council/wolverhampton","Airport-Link","BDW011","1,330.00","Client Transport","130100745","06/01/16","School Planning & Resources","Special - Transport","R3042"
"Wolverhampton City Council","http://opendatacommunities.org/id/metropolitan-district-council/wolverhampton","Alarm Radio Monitoring Limited","43049","54.45","R&M - Departmental planned (internal)","130103136","15/01/16","Engineering & Civic Centre","Statutory Services (10RM)","R2000"
"Wolverhampton City Council","http://opendatacommunities.org/id/metropolitan-district-council/wolverhampton","Albert Jagger Limited","1110150","22.89","Services - Professional Fees","190200331","29/01/16","Fleet Services","Fleet Management","R4400"
"Wolverhampton City Council","http://opendatacommunities.org/id/metropolitan-district-council/wolverhampton","Albrighton Feeds Limited","31990","245.98","Provisions (Not for resale)","130103512","20/01/16","Environmental Maintenance","Pendeford Nature Reserve","R4101"
"Wolverhampton City Council","http://opendatacommunities.org/id/metropolitan-district-council/wolverhampton","Albrighton Medical Practice","FOS0165","91.48","Services - Professional Fees","190196705","20/01/16","Looked After Children","Fostering Team & Allowances","R4400"
"Wolverhampton City Council","http://opendatacommunities.org/id/metropolitan-district-council/wolverhampton","Aldersley High Sch/Aldersley Acad Tr","SEN Resource Base Top Ups Autumn 2015-16 ALD","13,574.45","Grant Payments","190196241","20/01/16","Schools","High Needs Top Up -Mainstream Schools/Academies","R4700"
"Wolverhampton City Council","http://opendatacommunities.org/id/metropolitan-district-council/wolverhampton","Aldersley High Sch/Aldersley Acad Tr","SEN Mainstream Top Ups Autumn 2015-16","4,127.75","Grant Payments","190193386","13/01/16","Schools","High Needs Top Up -Mainstream Schools/Academies","R4700"
"Wolverhampton City Council","http://opendatacommunities.org/id/metropolitan-district-council/wolverhampton","Alexander Dennis Limited","704696","103.24","Equipment - Purchase","190197491","22/01/16","Fleet Services","Fleet Management","R4000"
"Wolverhampton City Council","http://opendatacommunities.org/id/metropolitan-district-council/wolverhampton","Alfred Bagnall & Sons (Mids) Limited","8719","1,237.60","R&M - Departmental planned (external)","130099240","20/01/16","Corporate Asset Management","Centralised Planned Maintenance","R2001"
"Wolverhampton City Council","http://opendatacommunities.org/id/metropolitan-district-council/wolverhampton","Alice Whyley Creative Wonderland","HS2","550.00","Services - Professional Fees","130100526","08/01/16","Mental Health Commissioning","Head Start Wolverhampton","R4400"
"Wolverhampton City Council","http://opendatacommunities.org/id/metropolitan-district-council/wolverhampton","Alice Whyley Creative Wonderland","17","1,500.00","Services - Consultants","130103898","27/01/16","School Planning & Resources","Technical Support","R4404"
"Wolverhampton City Council","http://opendatacommunities.org/id/metropolitan-district-council/wolverhampton","All Saints Pharmacy","SMNEPRQ Q32015 167","83.50","TPP - Public Health Contracts","190199954","29/01/16","Contracts","Alcohol and Drug","R5060"
"Wolverhampton City Council","http://opendatacommunities.org/id/metropolitan-district-council/wolverhampton","All Saints Pharmacy","SMSCOMQ Q32015 110","275.00","TPP - Public Health Contracts","190199955","29/01/16","Contracts","Alcohol and Drug","R5060"
"Wolverhampton City Council","http://opendatacommunities.org/id/metropolitan-district-council/wolverhampton","All Saints Pharmacy","SMSCOSQ Q32015 41","123.00","TPP - Public Health Contracts","190199956","29/01/16","Contracts","Alcohol and Drug","R5060"
"Wolverhampton City Council","http://opendatacommunities.org/id/metropolitan-district-council/wolverhampton","All Saints Pharmacy","SMNEPIQ Q32015 148","148.00","TPP - Public Health Contracts","190199953","29/01/16","Contracts","Alcohol and Drug","R5060"
"Wolverhampton City Council","http://opendatacommunities.org/id/metropolitan-district-council/wolverhampton","All Saints Pharmacy","HLNRTPQ Q32015 272.88","272.88","TPP - Public Health Contracts","190200053","29/01/16","Contracts","Healthy Lifestyles","R5060"
"Wolverhampton City Council","http://opendatacommunities.org/id/metropolitan-district-council/wolverhampton","All Saints Pharmacy","HLNRTPQ Q32015 61.16","61.16","TPP - Public Health Contracts","190200052","29/01/16","Contracts","Healthy Lifestyles","R5060"
"Wolverhampton City Council","http://opendatacommunities.org/id/metropolitan-district-council/wolverhampton","Allen-Martin Conservation Limited","36137","18,616.00","Construction and Conversion","130097294","08/01/16","","Primary Expansion Programme","C1100"
"Wolverhampton City Council","http://opendatacommunities.org/id/metropolitan-district-council/wolverhampton","Allstar Business Solutions Limited","E2005928751","46.70","Petrol","190197506","22/01/16","Fleet Services","Fleet Management","R3000"
"Wolverhampton City Council","http://opendatacommunities.org/id/metropolitan-district-council/wolverhampton","Allstar Business Solutions Limited","E2005928751","1.65","Petrol","190197506","22/01/16","Fleet Services","Fleet Management","R3000"
"Wolverhampton City Council","http://opendatacommunities.org/id/metropolitan-district-council/wolverhampton","Allstar Business Solutions Limited","E2005997425","169.19","Petrol","190197507","22/01/16","Fleet Services","Fleet Management","R3000"
"Wolverhampton City Council","http://opendatacommunities.org/id/metropolitan-district-council/wolverhampton","Allstar Business Solutions Limited","E2005926033","59.86","Petrol","190193089","13/01/16","Fleet Services","Fleet Management","R3000"
"Wolverhampton City Council","http://opendatacommunities.org/id/metropolitan-district-council/wolverhampton","Alphabiolabs","3249","297.50","Services - Professional Fees","130100925","15/01/16","Children in Need & Child Protection","Head of Service - CINCP","R4400"
"Wolverhampton City Council","http://opendatacommunities.org/id/metropolitan-district-council/wolverhampton","Alpharm Limited","EHC VAT Q3","8.15","TPP - Public Health Contracts","190198383","22/01/16","Contracts","Sexual Health","R5060"
"Wolverhampton City Council","http://opendatacommunities.org/id/metropolitan-district-council/wolverhampton","Alpharm Limited","HLNRTPQ Q32015 25.94","25.94","TPP - Public Health Contracts","190200050","29/01/16","Contracts","Healthy Lifestyles","R5060"
"Wolverhampton City Council","http://opendatacommunities.org/id/metropolitan-district-council/wolverhampton","Alpharm Limited","HLNRTPQ Q32015 29.54","29.54","TPP - Public Health Contracts","190200051","29/01/16","Contracts","Healthy Lifestyles","R5060"
"Wolverhampton City Council","http://opendatacommunities.org/id/metropolitan-district-council/wolverhampton","Alpharm Limited","SMSCOMQ Q32015 355","887.50","TPP - Public Health Contracts","190199951","29/01/16","Contracts","Alcohol and Drug","R5060"
"Wolverhampton City Council","http://opendatacommunities.org/id/metropolitan-district-council/wolverhampton","Alpharm Limited","SMSCOSQ Q32015 269","807.00","TPP - Public Health Contracts","190199952","29/01/16","Contracts","Alcohol and Drug","R5060"
"Wolverhampton City Council","http://opendatacommunities.org/id/metropolitan-district-council/wolverhampton","Alpharm Limited","SMNEPRQ Q32015 25","12.50","TPP - Public Health Contracts","190199950","29/01/16","Contracts","Alcohol and Drug","R5060"
"Wolverhampton City Council","http://opendatacommunities.org/id/metropolitan-district-council/wolverhampton","Alpharm Limited","SMNEPIQ Q32015 195","195.00","TPP - Public Health Contracts","190199949","29/01/16","Contracts","Alcohol and Drug","R5060"
"Wolverhampton City Council","http://opendatacommunities.org/id/metropolitan-district-council/wolverhampton","Alpharm Limited","SHEHCC25Q Q32015 FY922","136.24","TPP - Public Health Contracts","190193685","13/01/16","Contracts","Sexual Health","R5060"
"Wolverhampton City Council","http://opendatacommunities.org/id/metropolitan-district-council/wolverhampton","Alpharm Limited","SHEHCLQ Q32015 FY922","163.02","TPP - Public Health Contracts","190193686","13/01/16","Contracts","Sexual Health","R5060"
"Wolverhampton City Council","http://opendatacommunities.org/id/metropolitan-district-council/wolverhampton","Alpharm Limited","SHEHCC16Q Q32015 FY922","31.44","TPP - Public Health Contracts","190193683","13/01/16","Contracts","Sexual Health","R5060"
"Wolverhampton City Council","http://opendatacommunities.org/id/metropolitan-district-council/wolverhampton","Alpharm Limited","SHEHCC24Q Q32015 FY922","104.80","TPP - Public Health Contracts","190193684","13/01/16","Contracts","Sexual Health","R5060"
"Wolverhampton City Council","http://opendatacommunities.org/id/metropolitan-district-council/wolverhampton","Alphatec 2000 Limited","7839","137.58","Equipment - R & M","130099026","06/01/16","ICTS","Document Centre - General","R4003"
"Wolverhampton City Council","http://opendatacommunities.org/id/metropolitan-district-council/wolverhampton","Angel Springs Limited","2924134","31.28","Provisions (Not for resale)","130103508","29/01/16","Childrens Centres & Early Years","Children�s Village Children Centre","R4101"
"Wolverhampton City Council","http://opendatacommunities.org/id/metropolitan-district-council/wolverhampton","Angel Springs Limited","2924092","22.68","Provisions (Not for resale)","130102500","27/01/16","Parking Services","Car Parks Operational Staff","R4101"
"Wolverhampton City Council","http://opendatacommunities.org/id/metropolitan-district-council/wolverhampton","Angel Springs Limited","2924094","20.02","Provisions (Not for resale)","130102501","27/01/16","Mental Health Provider","46a, Second Avenue, Low Hill","R4101"
"Wolverhampton City Council","http://opendatacommunities.org/id/metropolitan-district-council/wolverhampton","Angel Springs Limited","2853291","58.28","Provisions (Not for resale)","130100903","06/01/16","Fleet Services","Passenger Transport - General","R4101"
"Wolverhampton City Council","http://opendatacommunities.org/id/metropolitan-district-council/wolverhampton","Angel Springs Limited","2817584","33.05","Provisions (Not for resale)","130101047","06/01/16","Democracy","Members Expenses","R4101"
"Wolverhampton City Council","http://opendatacommunities.org/id/metropolitan-district-council/wolverhampton","Angel Springs Limited","2888749","110.17","Provisions (Not for resale)","130101059","06/01/16","Democracy","Members Expenses","R4101"
"Wolverhampton City Council","http://opendatacommunities.org/id/metropolitan-district-council/wolverhampton","Angel Springs Limited","2853290","60.36","Provisions (Not for resale)","130101058","06/01/16","Democracy","Members Expenses","R4101"
"Wolverhampton City Council","http://opendatacommunities.org/id/metropolitan-district-council/wolverhampton","Angel Springs Limited","2853293","16.20","Provisions (Not for resale)","130100904","06/01/16","School Planning & Resources","Education Data Services","R4101"
"Wolverhampton City Council","http://opendatacommunities.org/id/metropolitan-district-council/wolverhampton","Angelbell Limited T/A Hulleys Frozen","476030","294.00","Provisions (Resale)","130100041","13/01/16","Visitor Economy","Catering Overhead Account","R4102"
"Wolverhampton City Council","http://opendatacommunities.org/id/metropolitan-district-council/wolverhampton","Angelbell Limited T/A Hulleys Frozen","479286","288.88","Provisions (Resale)","130100042","13/01/16","Visitor Economy","Catering Overhead Account","R4102"
"Wolverhampton City Council","http://opendatacommunities.org/id/metropolitan-district-council/wolverhampton","Anglia Dna Services Limited","38218","118.50","Services - Professional Fees","130101191","06/01/16","Children in Need & Child Protection","Head of Service - CINCP","R4400"
"Wolverhampton City Council","http://opendatacommunities.org/id/metropolitan-district-council/wolverhampton","Anglia Dna Services Limited","35361 - bacs rejection","118.50","Services - Professional Fees","130102786","13/01/16","Children in Need & Child Protection","Head of Service - CINCP","R4400"
"Wolverhampton City Council","http://opendatacommunities.org/id/metropolitan-district-council/wolverhampton","Anglia Dna Services Limited","33999 - bacs rejection","118.50","Services - Professional Fees","130102790","13/01/16","Children in Need & Child Protection","Head of Service - CINCP","R4400"
"Wolverhampton City Council","http://opendatacommunities.org/id/metropolitan-district-council/wolverhampton","Anglia Dna Services Limited","34882 - bacs rejection","208.00","Services - Professional Fees","130102792","13/01/16","Children in Need & Child Protection","Head of Service - CINCP","R4400"
"Wolverhampton City Council","http://opendatacommunities.org/id/metropolitan-district-council/wolverhampton","Anglia Dna Services Limited","35587 - bacs rejection","338.00","Services - Professional Fees","130102793","13/01/16","Children in Need & Child Protection","Head of Service - CINCP","R4400"
"Wolverhampton City Council","http://opendatacommunities.org/id/metropolitan-district-council/wolverhampton","Anna Conomos","192","494.20","Services - Professional Fees","130099990","06/01/16","Culture Arts & Heritage","Catalyst Arts","R4400"
"Wolverhampton City Council","http://opendatacommunities.org/id/metropolitan-district-council/wolverhampton","Anthony Hammond","731","280.00","Services - Professional Fees","130100492","20/01/16","Environmental Maintenance","Northicote Farm","R4400"
"Wolverhampton City Council","http://opendatacommunities.org/id/metropolitan-district-council/wolverhampton","Apetito Limited","9001608895","545.56","Provisions (Resale)","130101120","22/01/16","Catering","Meals on Wheels","R4102"
"Wolverhampton City Council","http://opendatacommunities.org/id/metropolitan-district-council/wolverhampton","Apetito Limited","9001608894","1,018.00","Provisions (Resale)","130101119","22/01/16","Catering","Meals on Wheels","R4102"
"Wolverhampton City Council","http://opendatacommunities.org/id/metropolitan-district-council/wolverhampton","Apetito Limited","9001608893","886.97","Provisions (Resale)","130101118","22/01/16","Catering","Meals on Wheels","R4102"
"Wolverhampton City Council","http://opendatacommunities.org/id/metropolitan-district-council/wolverhampton","Apetito Limited","9001607993","1,540.25","Provisions (Resale)","130100959","22/01/16","Catering","Meals on Wheels","R4102"
"Wolverhampton City Council","http://opendatacommunities.org/id/metropolitan-district-council/wolverhampton","Apetito Limited","9001601836","1,450.16","Provisions (Resale)","130099708","22/01/16","Catering","Meals on Wheels","R4102"
"Wolverhampton City Council","http://opendatacommunities.org/id/metropolitan-district-council/wolverhampton","Apetito Limited","9001559393","1,102.38","Provisions (Resale)","130103023","29/01/16","Catering","Meals on Wheels","R4102"
"Wolverhampton City Council","http://opendatacommunities.org/id/metropolitan-district-council/wolverhampton","Apetito Limited","9001615745","1,138.35","Provisions (Resale)","130101772","27/01/16","Catering","Meals on Wheels","R4102"
"Wolverhampton City Council","http://opendatacommunities.org/id/metropolitan-district-council/wolverhampton","Apetito Limited","9001615744","1,301.87","Provisions (Resale)","130101771","27/01/16","Catering","Meals on Wheels","R4102"
"Wolverhampton City Council","http://opendatacommunities.org/id/metropolitan-district-council/wolverhampton","Apetito Limited","9001605745","505.14","Provisions (Resale)","130100500","13/01/16","Catering","Meals on Wheels","R4102"
"Wolverhampton City Council","http://opendatacommunities.org/id/metropolitan-district-council/wolverhampton","Apetito Limited","9001605747","1,052.51","Provisions (Resale)","130100502","13/01/16","Catering","Meals on Wheels","R4102"
"Wolverhampton City Council","http://opendatacommunities.org/id/metropolitan-district-council/wolverhampton","Apetito Limited","9001605746","580.07","Provisions (Resale)","130100501","13/01/16","Catering","Meals on Wheels","R4102"
"Wolverhampton City Council","http://opendatacommunities.org/id/metropolitan-district-council/wolverhampton","Apetito Limited","9001599394","1,276.83","Provisions (Resale)","130099241","13/01/16","Catering","Meals on Wheels","R4102"
"Wolverhampton City Council","http://opendatacommunities.org/id/metropolitan-district-council/wolverhampton","Apetito Limited","9001599395","1,446.53","Provisions (Resale)","130099242","13/01/16","Catering","Meals on Wheels","R4102"
"Wolverhampton City Council","http://opendatacommunities.org/id/metropolitan-district-council/wolverhampton","Apollo Distribution Solutions","51968","25.40","Services - Professional Fees","130104892","27/01/16","Bereavement Services","Coroners","R4400"
"Wolverhampton City Council","http://opendatacommunities.org/id/metropolitan-district-council/wolverhampton","Apollo Distribution Solutions","51896","25.40","Services - Professional Fees","130101398","06/01/16","Bereavement Services","Coroners","R4400"
"Wolverhampton City Council","http://opendatacommunities.org/id/metropolitan-district-council/wolverhampton","Apollo Distribution Solutions","51895","170.85","Services - Professional Fees","130101397","06/01/16","Bereavement Services","Coroners","R4400"
"Wolverhampton City Council","http://opendatacommunities.org/id/metropolitan-district-council/wolverhampton","Archive Servs Data&Records Mngt Limited","0005802","66.06","Storage","130101281","20/01/16","Looked After Children","Head of Service - LAC","R4910"
"Wolverhampton City Council","http://opendatacommunities.org/id/metropolitan-district-council/wolverhampton","Archive Servs Data&Records Mngt Limited","0005831","28.50","Storage","130102598","13/01/16","Childrens Centres & Early Years","Children�s Village Children Centre","R4910"
"Wolverhampton City Council","http://opendatacommunities.org/id/metropolitan-district-council/wolverhampton","Argus Fire Protection Co.Limited","34350","225.00","Equipment - R & M","130101388","08/01/16","Engineering & Civic Centre","Civic Centre","R4003"
"Wolverhampton City Council","http://opendatacommunities.org/id/metropolitan-district-council/wolverhampton","Arnold Clark Finance Limited","HI1943183","18.00","Hire of Vehicles","190190839","06/01/16","Fleet Services","Fleet Management","R3200"
"Wolverhampton City Council","http://opendatacommunities.org/id/metropolitan-district-council/wolverhampton","Arnold Clark Finance Limited","HI1943750","147.00","Hire of Vehicles","190190844","06/01/16","Fleet Services","Fleet Management","R3200"
"Wolverhampton City Council","http://opendatacommunities.org/id/metropolitan-district-council/wolverhampton","Arnold Clark Finance Limited","HI1943751","147.00","Hire of Vehicles","190190845","06/01/16","Fleet Services","Fleet Management","R3200"
"Wolverhampton City Council","http://opendatacommunities.org/id/metropolitan-district-council/wolverhampton","Arnold Clark Finance Limited","HI1943746","147.00","Hire of Vehicles","190190841","06/01/16","Fleet Services","Fleet Management","R3200"
"Wolverhampton City Council","http://opendatacommunities.org/id/metropolitan-district-council/wolverhampton","Arnold Clark Finance Limited","HI1943747","147.00","Hire of Vehicles","190190842","06/01/16","Fleet Services","Fleet Management","R3200"
"Wolverhampton City Council","http://opendatacommunities.org/id/metropolitan-district-council/wolverhampton","Arnold Clark Finance Limited","HI1943748","147.00","Hire of Vehicles","190190843","06/01/16","Fleet Services","Fleet Management","R3200"
"Wolverhampton City Council","http://opendatacommunities.org/id/metropolitan-district-council/wolverhampton","Arnold Clark Finance Limited","HI1943744","147.00","Hire of Vehicles","190190840","06/01/16","Fleet Services","Fleet Management","R3200"
"Wolverhampton City Council","http://opendatacommunities.org/id/metropolitan-district-council/wolverhampton","Arthur Brett (Catering) Limited","ID823075","146.85","Provisions (Resale)","130103180","22/01/16","Culture Arts & Heritage","Bantock - Tea Rooms","R4102"
"Wolverhampton City Council","http://opendatacommunities.org/id/metropolitan-district-council/wolverhampton","Arthur Brett (Catering) Limited","ID822859","33.64","Provisions (Resale)","130103178","22/01/16","Older People Provider Services","Woden Resource Centre","R4102"
"Wolverhampton City Council","http://opendatacommunities.org/id/metropolitan-district-council/wolverhampton","Arthur Brett (Catering) Limited","ID822071","17.78","Provisions (Resale)","130103176","22/01/16","Learning Disability Provider","Duke Street Bungalows","R4102"
"Wolverhampton City Council","http://opendatacommunities.org/id/metropolitan-district-council/wolverhampton","Arthur Brett (Catering) Limited","ID823690","51.11","Provisions (Resale)","130103350","22/01/16","Culture Arts & Heritage","Bantock - Tea Rooms","R4102"
"Wolverhampton City Council","http://opendatacommunities.org/id/metropolitan-district-council/wolverhampton","Arthur Brett (Catering) Limited","ID823040","80.40","Provisions (Resale)","130103179","22/01/16","Culture Arts & Heritage","Art Gallery Tea Room","R4102"
"Wolverhampton City Council","http://opendatacommunities.org/id/metropolitan-district-council/wolverhampton","Arthur Brett (Catering) Limited","ID822987","27.58","Provisions (Resale)","130103349","22/01/16","Older People Provider Services","Blakenhall Resource Centre","R4102"
"Wolverhampton City Council","http://opendatacommunities.org/id/metropolitan-district-council/wolverhampton","Arthur Brett (Catering) Limited","WI902166","176.36","Provisions (Resale)","130101143","15/01/16","Contracts","Children Diet and Physical Activity","R4102"
"Wolverhampton City Council","http://opendatacommunities.org/id/metropolitan-district-council/wolverhampton","Arthur Brett (Catering) Limited","WI902151","369.07","Provisions (Resale)","130099761","15/01/16","Contracts","Children Diet and Physical Activity","R4102"
"Wolverhampton City Council","http://opendatacommunities.org/id/metropolitan-district-council/wolverhampton","Arthur Brett (Catering) Limited","CN28136","-0.91","Provisions (Resale)","130103035","15/01/16","Leisure Services","WV Active Catering","R4102"
"Wolverhampton City Council","http://opendatacommunities.org/id/metropolitan-district-council/wolverhampton","Arthur Brett (Catering) Limited","ID820522","45.07","Provisions (Resale)","130102134","15/01/16","Leisure Services","WV Active Catering","R4102"
"Wolverhampton City Council","http://opendatacommunities.org/id/metropolitan-district-council/wolverhampton","Arthur Brett (Catering) Limited","ID818626","7.32","Provisions (Resale)","130102749","15/01/16","Learning Disability Provider","Duke Street Bungalows","R4102"
"Wolverhampton City Council","http://opendatacommunities.org/id/metropolitan-district-council/wolverhampton","Arthur Brett (Catering) Limited","ID818625","4.91","Provisions (Resale)","130102355","15/01/16","Learning Disability Provider","Duke Street Bungalows","R4102"
"Wolverhampton City Council","http://opendatacommunities.org/id/metropolitan-district-council/wolverhampton","Arthur Brett (Catering) Limited","ID801735","56.02","Provisions (Resale)","130101787","15/01/16","Culture Arts & Heritage","Art Gallery Tea Room","R4102"
"Wolverhampton City Council","http://opendatacommunities.org/id/metropolitan-district-council/wolverhampton","Arthur Brett (Catering) Limited","ID818722","61.65","Provisions (Resale)","130100764","15/01/16","Culture Arts & Heritage","Bantock - Tea Rooms","R4102"
"Wolverhampton City Council","http://opendatacommunities.org/id/metropolitan-district-council/wolverhampton","Arthur Brett (Catering) Limited","ID818572","36.02","Provisions (Resale)","130100763","15/01/16","Culture Arts & Heritage","Art Gallery Tea Room","R4102"
"Wolverhampton City Council","http://opendatacommunities.org/id/metropolitan-district-council/wolverhampton","Arthur Brett (Catering) Limited","ID819754","92.48","Provisions (Resale)","130101791","15/01/16","Culture Arts & Heritage","Art Gallery Tea Room","R4102"
"Wolverhampton City Council","http://opendatacommunities.org/id/metropolitan-district-council/wolverhampton","Arthur Brett (Catering) Limited","ID819472","127.80","Provisions (Resale)","130101677","15/01/16","Culture Arts & Heritage","Bantock - Tea Rooms","R4102"
"Wolverhampton City Council","http://opendatacommunities.org/id/metropolitan-district-council/wolverhampton","Arthur Brett (Catering) Limited","ID819780","12.18","Provisions (Resale)","130101792","15/01/16","Culture Arts & Heritage","Bantock - Tea Rooms","R4102"
"Wolverhampton City Council","http://opendatacommunities.org/id/metropolitan-district-council/wolverhampton","Arthur Brett (Catering) Limited","ID821930","35.52","Provisions (Resale)","130102752","15/01/16","Culture Arts & Heritage","Bantock - Tea Rooms","R4102"
"Wolverhampton City Council","http://opendatacommunities.org/id/metropolitan-district-council/wolverhampton","Arthur Brett (Catering) Limited","ID819267","39.54","Provisions (Resale)","130102132","15/01/16","Older People Provider Services","Bradley Lodge Resource Centre","R4102"
"Wolverhampton City Council","http://opendatacommunities.org/id/metropolitan-district-council/wolverhampton","Arthur Brett (Catering) Limited","ID819264","33.29","Provisions (Resale)","130101790","15/01/16","Older People Provider Services","Bradley Lodge Resource Centre","R4102"
"Wolverhampton City Council","http://opendatacommunities.org/id/metropolitan-district-council/wolverhampton","Arthur Brett (Catering) Limited","ID819653","24.84","Provisions (Resale)","130101679","08/01/16","Older People Provider Services","Blakenhall Resource Centre","R4102"
"Wolverhampton City Council","http://opendatacommunities.org/id/metropolitan-district-council/wolverhampton","Arthur Brett (Catering) Limited","3011152","1,214.29","Provisions (Resale)","130104569","29/01/16","Catering","Civic Centre Catering","R4102"
"Wolverhampton City Council","http://opendatacommunities.org/id/metropolitan-district-council/wolverhampton","Arthur Brett (Catering) Limited","3011151","158.25","Provisions (Resale)","130104568","29/01/16","Catering","Bert Williams Leisure Centre Caf�","R4102"
"Wolverhampton City Council","http://opendatacommunities.org/id/metropolitan-district-council/wolverhampton","Arthur Brett (Catering) Limited","ID824519","21.69","Provisions (Resale)","130104026","29/01/16","Older People Provider Services","Nelson Mandela House","R4102"
"Wolverhampton City Council","http://opendatacommunities.org/id/metropolitan-district-council/wolverhampton","Arthur Brett (Catering) Limited","3011153","201.54","Provisions (Resale)","130104570","29/01/16","Catering","Meals on Wheels","R4102"
"Wolverhampton City Council","http://opendatacommunities.org/id/metropolitan-district-council/wolverhampton","Arthur Brett (Catering) Limited","3011154","37,697.76","Provisions (Resale)","130104571","29/01/16","Catering","Education Catering - General Overheads","R4102"
"Wolverhampton City Council","http://opendatacommunities.org/id/metropolitan-district-council/wolverhampton","Arthur Brett (Catering) Limited","ID820864","33.81","Provisions (Resale)","130103040","29/01/16","Older People Provider Services","Bradley Lodge Resource Centre","R4102"
"Wolverhampton City Council","http://opendatacommunities.org/id/metropolitan-district-council/wolverhampton","Arthur Brett (Catering) Limited","ID822217","81.05","Provisions (Resale)","130102907","20/01/16","Culture Arts & Heritage","Art Gallery Tea Room","R4102"
"Wolverhampton City Council","http://opendatacommunities.org/id/metropolitan-district-council/wolverhampton","Arthur Brett (Catering) Limited","ID822202","18.40","Provisions (Resale)","130103041","20/01/16","Older People Provider Services","Nelson Mandela House","R4102"
"Wolverhampton City Council","http://opendatacommunities.org/id/metropolitan-district-council/wolverhampton","Arthur Brett (Catering) Limited","ID800590","35.83","Provisions (Resale)","130101783","20/01/16","Older People Provider Services","Merry Hill House","R4102"
"Wolverhampton City Council","http://opendatacommunities.org/id/metropolitan-district-council/wolverhampton","Arthur Brett (Catering) Limited","CN28076","-62.13","Provisions (Resale)","130101676","20/01/16","Older People Provider Services","Merry Hill House","R4102"
"Wolverhampton City Council","http://opendatacommunities.org/id/metropolitan-district-council/wolverhampton","Arthur Brett (Catering) Limited","ID820744","10.43","Provisions (Resale)","130102751","20/01/16","Learning Disability Provider","Duke Street Bungalows","R4102"
"Wolverhampton City Council","http://opendatacommunities.org/id/metropolitan-district-council/wolverhampton","Arthur Brett (Catering) Limited","ID819874","24.93","Provisions (Resale)","130102357","27/01/16","Learning Disability Provider","Duke Street Bungalows","R4102"
"Wolverhampton City Council","http://opendatacommunities.org/id/metropolitan-district-council/wolverhampton","Arthur Brett (Catering) Limited","ID822444","15.72","Provisions (Resale)","130103177","27/01/16","Learning Disability Provider","Duke Street Bungalows","R4102"
"Wolverhampton City Council","http://opendatacommunities.org/id/metropolitan-district-council/wolverhampton","Arthur Brett (Catering) Limited","ID819263","15.70","Provisions (Resale)","130102356","27/01/16","Learning Disability Provider","Duke Street Bungalows","R4102"
"Wolverhampton City Council","http://opendatacommunities.org/id/metropolitan-district-council/wolverhampton","Arthur Brett (Catering) Limited","ID820549","32.54","Provisions (Resale)","130103039","27/01/16","Older People Provider Services","Woden Resource Centre","R4102"
"Wolverhampton City Council","http://opendatacommunities.org/id/metropolitan-district-council/wolverhampton","Arthur Brett (Catering) Limited","ID817475","50.40","Provisions (Resale)","130101591","06/01/16","Older People Provider Services","Nelson Mandela House","R4102"
"Wolverhampton City Council","http://opendatacommunities.org/id/metropolitan-district-council/wolverhampton","Arthur Brett (Catering) Limited","ID818780","27.08","Provisions (Resale)","130101467","06/01/16","Older People Provider Services","Blakenhall Resource Centre","R4102"
"Wolverhampton City Council","http://opendatacommunities.org/id/metropolitan-district-council/wolverhampton","Arthur Brett (Catering) Limited","ID816102","28.97","Provisions (Resale)","130099578","06/01/16","Older People Provider Services","Blakenhall Resource Centre","R4102"
"Wolverhampton City Council","http://opendatacommunities.org/id/metropolitan-district-council/wolverhampton","Arthur Brett (Catering) Limited","ID817059","14.12","Provisions (Resale)","130099726","06/01/16","Older People Provider Services","Ekta Day Centre","R4102"
"Wolverhampton City Council","http://opendatacommunities.org/id/metropolitan-district-council/wolverhampton","Arthur Brett (Catering) Limited","ID815340","49.91","Provisions (Resale)","130100104","06/01/16","Older People Provider Services","Nelson Mandela House","R4102"
"Wolverhampton City Council","http://opendatacommunities.org/id/metropolitan-district-council/wolverhampton","Arthur Brett (Catering) Limited","ID817472","51.59","Provisions (Resale)","130100991","06/01/16","Older People Provider Services","Nelson Mandela House","R4102"
"Wolverhampton City Council","http://opendatacommunities.org/id/metropolitan-district-council/wolverhampton","Arthur Brett (Catering) Limited","ID819473","25.25","Provisions (Resale)","130101595","06/01/16","Older People Provider Services","Woden Resource Centre","R4102"
"Wolverhampton City Council","http://opendatacommunities.org/id/metropolitan-district-council/wolverhampton","Arthur Brett (Catering) Limited","ID815990","66.44","Provisions (Resale)","130100761","06/01/16","Older People Provider Services","Merry Hill House","R4102"
"Wolverhampton City Council","http://opendatacommunities.org/id/metropolitan-district-council/wolverhampton","Arthur Brett (Catering) Limited","ID816054","62.13","Provisions (Resale)","130101245","06/01/16","Older People Provider Services","Merry Hill House","R4102"
"Wolverhampton City Council","http://opendatacommunities.org/id/metropolitan-district-council/wolverhampton","Arthur Brett (Catering) Limited","ID815652","37.58","Provisions (Resale)","130099264","06/01/16","Older People Provider Services","Woden Resource Centre","R4102"
"Wolverhampton City Council","http://opendatacommunities.org/id/metropolitan-district-council/wolverhampton","Arthur Brett (Catering) Limited","ID815653","51.10","Provisions (Resale)","130099577","06/01/16","Older People Provider Services","Woden Resource Centre","R4102"
"Wolverhampton City Council","http://opendatacommunities.org/id/metropolitan-district-council/wolverhampton","Arthur Brett (Catering) Limited","ID818033","89.94","Provisions (Resale)","130100992","06/01/16","Older People Provider Services","Woden Resource Centre","R4102"
"Wolverhampton City Council","http://opendatacommunities.org/id/metropolitan-district-council/wolverhampton","Arthur Brett (Catering) Limited","ID818028","30.59","Provisions (Resale)","130100341","06/01/16","Older People Provider Services","Woden Resource Centre","R4102"
"Wolverhampton City Council","http://opendatacommunities.org/id/metropolitan-district-council/wolverhampton","Arthur Brett (Catering) Limited","ID815160","3.28","Provisions (Resale)","130099262","06/01/16","Learning Disability Provider","Duke Street Bungalows","R4102"
"Wolverhampton City Council","http://opendatacommunities.org/id/metropolitan-district-council/wolverhampton","Arthur Brett (Catering) Limited","ID815277","12.51","Provisions (Resale)","130099723","06/01/16","Learning Disability Provider","Duke Street Bungalows","R4102"
"Wolverhampton City Council","http://opendatacommunities.org/id/metropolitan-district-council/wolverhampton","Arthur Brett (Catering) Limited","ID815989","28.10","Provisions (Resale)","130100760","06/01/16","Learning Disability Provider","Duke Street Bungalows","R4102"
"Wolverhampton City Council","http://opendatacommunities.org/id/metropolitan-district-council/wolverhampton","Arthur Brett (Catering) Limited","ID815921","2.85","Provisions (Resale)","130100339","06/01/16","Learning Disability Provider","Duke Street Bungalows","R4102"
"Wolverhampton City Council","http://opendatacommunities.org/id/metropolitan-district-council/wolverhampton","Arthur Brett (Catering) Limited","ID815213","5.30","Provisions (Resale)","130099722","06/01/16","Learning Disability Provider","Duke Street Bungalows","R4102"
"Wolverhampton City Council","http://opendatacommunities.org/id/metropolitan-district-council/wolverhampton","Arthur Brett (Catering) Limited","ID815919","21.39","Provisions (Resale)","130100338","06/01/16","Learning Disability Provider","Duke Street Bungalows","R4102"
"Wolverhampton City Council","http://opendatacommunities.org/id/metropolitan-district-council/wolverhampton","Arthur Brett (Catering) Limited","ID815343","21.69","Provisions (Resale)","130100337","06/01/16","Learning Disability Provider","Duke Street Bungalows","R4102"
"Wolverhampton City Council","http://opendatacommunities.org/id/metropolitan-district-council/wolverhampton","Arthur Brett (Catering) Limited","ID815041","18.56","Provisions (Resale)","130099261","06/01/16","Learning Disability Provider","Duke Street Bungalows","R4102"
"Wolverhampton City Council","http://opendatacommunities.org/id/metropolitan-district-council/wolverhampton","Arthur Brett (Catering) Limited","ID816071","37.95","Provisions (Resale)","130101246","06/01/16","Learning Disability Provider","Duke Street Bungalows","R4102"
"Wolverhampton City Council","http://opendatacommunities.org/id/metropolitan-district-council/wolverhampton","Arthur Brett (Catering) Limited","ID816004","40.79","Provisions (Resale)","130100990","06/01/16","Learning Disability Provider","Duke Street Bungalows","R4102"
"Wolverhampton City Council","http://opendatacommunities.org/id/metropolitan-district-council/wolverhampton","Arthur Brett (Catering) Limited","ID815996","24.86","Provisions (Resale)","130100989","06/01/16","Learning Disability Provider","Duke Street Bungalows","R4102"
"Wolverhampton City Council","http://opendatacommunities.org/id/metropolitan-district-council/wolverhampton","Arthur Brett (Catering) Limited","ID816047","12.06","Provisions (Resale)","130101244","06/01/16","Learning Disability Provider","Duke Street Bungalows","R4102"
"Wolverhampton City Council","http://opendatacommunities.org/id/metropolitan-district-council/wolverhampton","Arthur Brett (Catering) Limited","ID818556","8.77","Provisions (Resale)","130101592","06/01/16","Learning Disability Provider","Duke Street Bungalows","R4102"
"Wolverhampton City Council","http://opendatacommunities.org/id/metropolitan-district-council/wolverhampton","Arthur Brett (Catering) Limited","CN28105","-5.70","Provisions (Resale)","130102125","13/01/16","Culture Arts & Heritage","Bantock - Tea Rooms","R4102"
"Wolverhampton City Council","http://opendatacommunities.org/id/metropolitan-district-council/wolverhampton","Arthur Brett (Catering) Limited","ID820793","117.84","Provisions (Resale)","130102358","13/01/16","Culture Arts & Heritage","Art Gallery Tea Room","R4102"
"Wolverhampton City Council","http://opendatacommunities.org/id/metropolitan-district-council/wolverhampton","Arthur Brett (Catering) Limited","ID820505","130.07","Provisions (Resale)","130102133","13/01/16","Culture Arts & Heritage","Bantock - Tea Rooms","R4102"
"Wolverhampton City Council","http://opendatacommunities.org/id/metropolitan-district-council/wolverhampton","Arthur Brett (Catering) Limited","ID816459","75.34","Provisions (Resale)","130099579","13/01/16","Culture Arts & Heritage","Bantock - Tea Rooms","R4102"
"Wolverhampton City Council","http://opendatacommunities.org/id/metropolitan-district-council/wolverhampton","Arthur Brett (Catering) Limited","ID819474","44.81","Provisions (Resale)","130101678","13/01/16","Older People Provider Services","Woden Resource Centre","R4102"
"Wolverhampton City Council","http://opendatacommunities.org/id/metropolitan-district-council/wolverhampton","Arthur Brett (Catering) Limited","ID818622","15.50","Provisions (Resale)","130101788","13/01/16","Learning Disability Provider","Duke Street Bungalows","R4102"
"Wolverhampton City Council","http://opendatacommunities.org/id/metropolitan-district-council/wolverhampton","Arthur Brett (Catering) Limited","ID819262","5.21","Provisions (Resale)","130101789","13/01/16","Learning Disability Provider","Duke Street Bungalows","R4102"
"Wolverhampton City Council","http://opendatacommunities.org/id/metropolitan-district-council/wolverhampton","Arthur Brett (Catering) Limited","ID819844","38.51","Provisions (Resale)","130101793","13/01/16","Leisure Services","WV Active Catering","R4102"
"Wolverhampton City Council","http://opendatacommunities.org/id/metropolitan-district-council/wolverhampton","Arthur Brett (Catering) Limited","ID817960","100.94","Provisions (Resale)","130100340","13/01/16","Culture Arts & Heritage","Art Gallery Tea Room","R4102"
"Wolverhampton City Council","http://opendatacommunities.org/id/metropolitan-district-council/wolverhampton","Arthur Brett (Catering) Limited","ID818911","41.32","Provisions (Resale)","130100993","13/01/16","Culture Arts & Heritage","Bantock - Tea Rooms","R4102"
"Wolverhampton City Council","http://opendatacommunities.org/id/metropolitan-district-council/wolverhampton","Arthur Brett (Catering) Limited","ID817698","111.00","Provisions (Resale)","130100106","13/01/16","Culture Arts & Heritage","Bantock - Tea Rooms","R4102"
"Wolverhampton City Council","http://opendatacommunities.org/id/metropolitan-district-council/wolverhampton","Arthur Brett (Catering) Limited","ID819463","104.17","Provisions (Resale)","130101594","13/01/16","Culture Arts & Heritage","Bantock - Tea Rooms","R4102"
"Wolverhampton City Council","http://opendatacommunities.org/id/metropolitan-district-council/wolverhampton","Arthur Brett (Catering) Limited","ID819446","98.77","Provisions (Resale)","130101593","13/01/16","Culture Arts & Heritage","Art Gallery Tea Room","R4102"
"Wolverhampton City Council","http://opendatacommunities.org/id/metropolitan-district-council/wolverhampton","Arthur Brett (Catering) Limited","ID818288","57.49","Provisions (Resale)","130100531","13/01/16","Culture Arts & Heritage","Bantock - Tea Rooms","R4102"
"Wolverhampton City Council","http://opendatacommunities.org/id/metropolitan-district-council/wolverhampton","Arthur Brett (Catering) Limited","ID816942","88.45","Provisions (Resale)","130099725","13/01/16","Culture Arts & Heritage","Art Gallery Tea Room","R4102"
"Wolverhampton City Council","http://opendatacommunities.org/id/metropolitan-district-council/wolverhampton","Arthur M Griffiths & Son Limited","IN16989","178,670.48","Construction and Conversion","130104028","22/01/16","","Primary Expansion Programme","C1100"
"Wolverhampton City Council","http://opendatacommunities.org/id/metropolitan-district-council/wolverhampton","Arthur M Griffiths & Son Limited","IN16981","46,934.08","Construction and Conversion","130101250","06/01/16","","Primary Expansion Programme","C1100"
"Wolverhampton City Council","http://opendatacommunities.org/id/metropolitan-district-council/wolverhampton","Arthur M Griffiths & Son Limited","IN16980","63,682.82","Construction and Conversion","130100994","06/01/16","","Primary Expansion Programme","C1100"
"Wolverhampton City Council","http://opendatacommunities.org/id/metropolitan-district-council/wolverhampton","Asda Stores Private Account","EHC VAT Q3","60.19","TPP - Public Health Contracts","190198383","22/01/16","Contracts","Sexual Health","R5060"
"Wolverhampton City Council","http://opendatacommunities.org/id/metropolitan-district-council/wolverhampton","Asda Stores Private Account","SHEHCC16Q Q32015 FRG91","31.44","TPP - Public Health Contracts","190193687","13/01/16","Contracts","Sexual Health","R5060"
"Wolverhampton City Council","http://opendatacommunities.org/id/metropolitan-district-council/wolverhampton","Asda Stores Private Account","SHEHCC24Q Q32015 FRG91","1,163.28","TPP - Public Health Contracts","190193688","13/01/16","Contracts","Sexual Health","R5060"
"Wolverhampton City Council","http://opendatacommunities.org/id/metropolitan-district-council/wolverhampton","Asda Stores Private Account","SHEHCLQ Q32015 FRG91","1,203.84","TPP - Public Health Contracts","190193690","13/01/16","Contracts","Sexual Health","R5060"
"Wolverhampton City Council","http://opendatacommunities.org/id/metropolitan-district-council/wolverhampton","Asda Stores Private Account","SHEHCC25Q Q32015 FRG91","827.92","TPP - Public Health Contracts","190193689","13/01/16","Contracts","Sexual Health","R5060"
"Wolverhampton City Council","http://opendatacommunities.org/id/metropolitan-district-council/wolverhampton","Ash Rubber Stamp Co.Limited.","400898407","30.81","Stationery","130103744","29/01/16","Library Services","Global Budgets","R4308"
"Wolverhampton City Council","http://opendatacommunities.org/id/metropolitan-district-council/wolverhampton","Ashdown Supplies","13474","93.00","Materials","130098154","06/01/16","Bereavement Services","Cemeteries","R4007"
"Wolverhampton City Council","http://opendatacommunities.org/id/metropolitan-district-council/wolverhampton","Ashdown Supplies","13437","331.20","Materials","130101169","06/01/16","Bereavement Services","Cemeteries","R4007"
"Wolverhampton City Council","http://opendatacommunities.org/id/metropolitan-district-council/wolverhampton","Ashdown Supplies","13561","331.20","Materials","130101351","06/01/16","Bereavement Services","Cemeteries","R4007"
"Wolverhampton City Council","http://opendatacommunities.org/id/metropolitan-district-council/wolverhampton","Ashmore Park Community Association","AMPBAD0001","1,375.00","Grant Payments","130101582","15/01/16","Sports Development","Self-Reliant Communities Project","R4700"
"Wolverhampton City Council","http://opendatacommunities.org/id/metropolitan-district-council/wolverhampton","Ashtead Plant Hire Company Limited","13607278","640.40","Equipment - Hire","130095000","15/01/16","Visitor Economy","Hickman Park - Bonfire","R4001"
"Wolverhampton City Council","http://opendatacommunities.org/id/metropolitan-district-council/wolverhampton","Ashtead Plant Hire Company Limited","13607278","59.40","Equipment - Hire","130095000","15/01/16","Visitor Economy","Hickman Park - Bonfire","R4001"
"Wolverhampton City Council","http://opendatacommunities.org/id/metropolitan-district-council/wolverhampton","Ashtead Plant Hire Company Limited","13622416","-112.62","Equipment - Hire","130097459","15/01/16","Visitor Economy","Hickman Park - Bonfire","R4001"
"Wolverhampton City Council","http://opendatacommunities.org/id/metropolitan-district-council/wolverhampton","Askews & Holts Library Services Limited","4887017","111.88","Books","130101927","15/01/16","Library Services","Global Budgets","R4309"
"Wolverhampton City Council","http://opendatacommunities.org/id/metropolitan-district-council/wolverhampton","Askews & Holts Library Services Limited","4885599","9.70","Books","130101085","15/01/16","Library Services","Global Budgets","R4309"
"Wolverhampton City Council","http://opendatacommunities.org/id/metropolitan-district-council/wolverhampton","Askews & Holts Library Services Limited","4884648","582.77","Books","130101081","15/01/16","Library Services","Global Budgets","R4309"
"Wolverhampton City Council","http://opendatacommunities.org/id/metropolitan-district-council/wolverhampton","Askews & Holts Library Services Limited","4884647","4.83","Books","130101080","15/01/16","Library Services","Global Budgets","R4309"
"Wolverhampton City Council","http://opendatacommunities.org/id/metropolitan-district-council/wolverhampton","Askews & Holts Library Services Limited","4884650","63.85","Books","130101083","15/01/16","Library Services","Global Budgets","R4309"
"Wolverhampton City Council","http://opendatacommunities.org/id/metropolitan-district-council/wolverhampton","Askews & Holts Library Services Limited","4884651","128.31","Books","130101084","15/01/16","Library Services","Global Budgets","R4309"
"Wolverhampton City Council","http://opendatacommunities.org/id/metropolitan-district-council/wolverhampton","Askews & Holts Library Services Limited","4884649","443.12","Books","130101082","15/01/16","Library Services","Global Budgets","R4309"
"Wolverhampton City Council","http://opendatacommunities.org/id/metropolitan-district-council/wolverhampton","Askews & Holts Library Services Limited","4849487.","160.41","Books","130103523","29/01/16","Library Services","Global Budgets","R4309"
"Wolverhampton City Council","http://opendatacommunities.org/id/metropolitan-district-council/wolverhampton","Askews & Holts Library Services Limited","4878344","34.45","Books","130100256","08/01/16","Library Services","Global Budgets","R4309"
"Wolverhampton City Council","http://opendatacommunities.org/id/metropolitan-district-council/wolverhampton","Askews & Holts Library Services Limited","4886411","25.79","Books","130101926","20/01/16","Library Services","Global Budgets","R4309"
"Wolverhampton City Council","http://opendatacommunities.org/id/metropolitan-district-council/wolverhampton","Askews & Holts Library Services Limited","4886411","-25.79","Books","130101926","20/01/16","Library Services","Global Budgets","R4309"
"Wolverhampton City Council","http://opendatacommunities.org/id/metropolitan-district-council/wolverhampton","Askews & Holts Library Services Limited","4886411","25.79","Books","130101926","20/01/16","Library Services","Global Budgets","R4309"
"Wolverhampton City Council","http://opendatacommunities.org/id/metropolitan-district-council/wolverhampton","Askews & Holts Library Services Limited","4890690","155.71","Books","130101930","27/01/16","Library Services","Global Budgets","R4309"
"Wolverhampton City Council","http://opendatacommunities.org/id/metropolitan-district-council/wolverhampton","Askews & Holts Library Services Limited","4894034","114.13","Books","130101933","27/01/16","Library Services","Global Budgets","R4309"
"Wolverhampton City Council","http://opendatacommunities.org/id/metropolitan-district-council/wolverhampton","Askews & Holts Library Services Limited","4888446","-10.17","Books","130101928","27/01/16","Library Services","Global Budgets","R4309"
"Wolverhampton City Council","http://opendatacommunities.org/id/metropolitan-district-council/wolverhampton","Askews & Holts Library Services Limited","4888446","10.17","Books","130101928","27/01/16","Library Services","Global Budgets","R4309"
"Wolverhampton City Council","http://opendatacommunities.org/id/metropolitan-district-council/wolverhampton","Askews & Holts Library Services Limited","4888446","10.17","Books","130101928","27/01/16","Library Services","Global Budgets","R4309"
"Wolverhampton City Council","http://opendatacommunities.org/id/metropolitan-district-council/wolverhampton","Askews & Holts Library Services Limited","4872485","146.44","Books","130100044","06/01/16","Library Services","Global Budgets","R4309"
"Wolverhampton City Council","http://opendatacommunities.org/id/metropolitan-district-council/wolverhampton","Askews & Holts Library Services Limited","4872486","550.68","Books","130100045","06/01/16","Library Services","Global Budgets","R4309"
"Wolverhampton City Council","http://opendatacommunities.org/id/metropolitan-district-council/wolverhampton","Askews & Holts Library Services Limited","4877229","4.83","Books","130100046","06/01/16","Library Services","Global Budgets","R4309"
"Wolverhampton City Council","http://opendatacommunities.org/id/metropolitan-district-council/wolverhampton","Askews & Holts Library Services Limited","4877473","14.36","Books","130100255","06/01/16","Library Services","Global Budgets","R4309"
"Wolverhampton City Council","http://opendatacommunities.org/id/metropolitan-district-council/wolverhampton","Askews & Holts Library Services Limited","4877230","10.78","Books","130100047","06/01/16","Library Services","Global Budgets","R4309"
"Wolverhampton City Council","http://opendatacommunities.org/id/metropolitan-district-council/wolverhampton","Askews & Holts Library Services Limited","4877231","173.99","Books","130100048","06/01/16","Library Services","Global Budgets","R4309"
"Wolverhampton City Council","http://opendatacommunities.org/id/metropolitan-district-council/wolverhampton","Askews & Holts Library Services Limited","4878539","23.59","Books","130100049","06/01/16","Library Services","Global Budgets","R4309"
"Wolverhampton City Council","http://opendatacommunities.org/id/metropolitan-district-council/wolverhampton","Askews & Holts Library Services Limited","4870009","232.30","Books","130098981","06/01/16","Library Services","Global Budgets","R4309"
"Wolverhampton City Council","http://opendatacommunities.org/id/metropolitan-district-council/wolverhampton","Askews & Holts Library Services Limited","12198","200.16","Books","130099957","06/01/16","Library Services","Global Budgets","R4309"
"Wolverhampton City Council","http://opendatacommunities.org/id/metropolitan-district-council/wolverhampton","Askews & Holts Library Services Limited","4881788","1,117.80","Books","130101661","13/01/16","Library Services","Global Budgets","R4309"
"Wolverhampton City Council","http://opendatacommunities.org/id/metropolitan-district-council/wolverhampton","Askews & Holts Library Services Limited","4881786","7.35","Books","130101660","13/01/16","Library Services","Global Budgets","R4309"
"Wolverhampton City Council","http://opendatacommunities.org/id/metropolitan-district-council/wolverhampton","Askews & Holts Library Services Limited","4881787","41.89","Books","130100716","13/01/16","Library Services","Global Budgets","R4309"
"Wolverhampton City Council","http://opendatacommunities.org/id/metropolitan-district-council/wolverhampton","Askews & Holts Library Services Limited","4882455","62.52","Books","130100467","13/01/16","Library Services","Global Budgets","R4309"
"Wolverhampton City Council","http://opendatacommunities.org/id/metropolitan-district-council/wolverhampton","Assn Of Electoral Administrators","17939","3,076.70","Agency Staff","130100422","13/01/16","Corporate Administration","Electoral Registration","R1100"
"Wolverhampton City Council","http://opendatacommunities.org/id/metropolitan-district-council/wolverhampton","Assn Of Electoral Administrators","17939","-3,076.70","Agency Staff","130100422","13/01/16","Corporate Administration","Electoral Registration","R1100"
"Wolverhampton City Council","http://opendatacommunities.org/id/metropolitan-district-council/wolverhampton","Assn Of Electoral Administrators","17939","2,335.20","Agency Staff","130100422","13/01/16","Corporate Administration","Electoral Registration","R1100"
"Wolverhampton City Council","http://opendatacommunities.org/id/metropolitan-district-council/wolverhampton","Assn Of Electoral Administrators","17939","741.50","Agency Staff","130100422","13/01/16","Corporate Administration","Electoral Registration","R1100"
"Wolverhampton City Council","http://opendatacommunities.org/id/metropolitan-district-council/wolverhampton","Assn Of Electoral Administrators","18233","2,813.36","Agency Staff","130100221","13/01/16","Corporate Administration","Electoral Registration","R1100"
"Wolverhampton City Council","http://opendatacommunities.org/id/metropolitan-district-council/wolverhampton","Assn Of Electoral Administrators","18233","-2,813.36","Agency Staff","130100221","13/01/16","Corporate Administration","Electoral Registration","R1100"
"Wolverhampton City Council","http://opendatacommunities.org/id/metropolitan-district-council/wolverhampton","Assn Of Electoral Administrators","18233","2,097.36","Agency Staff","130100221","13/01/16","Corporate Administration","Electoral Registration","R1100"
"Wolverhampton City Council","http://opendatacommunities.org/id/metropolitan-district-council/wolverhampton","Assn Of Electoral Administrators","18233","716.00","Agency Staff","130100221","13/01/16","Corporate Administration","Electoral Registration","R1100"
"Wolverhampton City Council","http://opendatacommunities.org/id/metropolitan-district-council/wolverhampton","Associated  Radio Taxi�s","01904","673.80","Client Transport","130098110","22/01/16","Children With Disabilities","Childrens with Disabilities Team","R3042"
"Wolverhampton City Council","http://opendatacommunities.org/id/metropolitan-district-council/wolverhampton","Associated  Radio Taxi�s","01904","-673.80","Client Transport","130098110","22/01/16","Children With Disabilities","Childrens with Disabilities Team","R3042"
"Wolverhampton City Council","http://opendatacommunities.org/id/metropolitan-district-council/wolverhampton","Associated  Radio Taxi�s","01904","673.80","Client Transport","130098110","22/01/16","Children With Disabilities","Childrens with Disabilities Team","R3042"
"Wolverhampton City Council","http://opendatacommunities.org/id/metropolitan-district-council/wolverhampton","Associated  Radio Taxi�s","8306","475.00","Client Transport","130101957","08/01/16","School Planning & Resources","Special - Transport","R3042"
"Wolverhampton City Council","http://opendatacommunities.org/id/metropolitan-district-council/wolverhampton","Associated  Radio Taxi�s","8310","641.25","Client Transport","130101961","08/01/16","School Planning & Resources","Special - Transport","R3042"
"Wolverhampton City Council","http://opendatacommunities.org/id/metropolitan-district-council/wolverhampton","Associated  Radio Taxi�s","8308","773.64","Client Transport","130101959","08/01/16","School Planning & Resources","Secondary- Transport","R3042"
"Wolverhampton City Council","http://opendatacommunities.org/id/metropolitan-district-council/wolverhampton","Associated  Radio Taxi�s","8309","665.00","Client Transport","130101960","08/01/16","School Planning & Resources","Secondary- Transport","R3042"
"Wolverhampton City Council","http://opendatacommunities.org/id/metropolitan-district-council/wolverhampton","Associated  Radio Taxi�s","01934","700.10","Client Transport","130101819","20/01/16","Children With Disabilities","Childrens with Disabilities Team","R3042"
"Wolverhampton City Council","http://opendatacommunities.org/id/metropolitan-district-council/wolverhampton","Associated  Radio Taxi�s","01934","-700.10","Client Transport","130101819","20/01/16","Children With Disabilities","Childrens with Disabilities Team","R3042"
"Wolverhampton City Council","http://opendatacommunities.org/id/metropolitan-district-council/wolverhampton","Associated  Radio Taxi�s","01934","700.10","Client Transport","130101819","20/01/16","Children With Disabilities","Childrens with Disabilities Team","R3042"
"Wolverhampton City Council","http://opendatacommunities.org/id/metropolitan-district-council/wolverhampton","Associated  Radio Taxi�s","01951","343.30","Client Transport","130102027","20/01/16","Children in Need & Child Protection","Valley Park - CIN  Social Work Unit - S17","R3042"
"Wolverhampton City Council","http://opendatacommunities.org/id/metropolitan-district-council/wolverhampton","Associated  Radio Taxi�s","01951","-343.30","Client Transport","130102027","20/01/16","Children in Need & Child Protection","Valley Park - CIN  Social Work Unit - S17","R3042"
"Wolverhampton City Council","http://opendatacommunities.org/id/metropolitan-district-council/wolverhampton","Associated  Radio Taxi�s","01951","343.30","Client Transport","130102027","20/01/16","Children in Need & Child Protection","Valley Park - CIN  Social Work Unit - S17","R3042"
"Wolverhampton City Council","http://opendatacommunities.org/id/metropolitan-district-council/wolverhampton","Associated  Radio Taxi�s","01957","43.20","Client Transport","130102221","20/01/16","Learning Disability Provider","Ernest Bold Court","R3042"
"Wolverhampton City Council","http://opendatacommunities.org/id/metropolitan-district-council/wolverhampton","Associated  Radio Taxi�s","01957","-43.20","Client Transport","130102221","20/01/16","Learning Disability Provider","Ernest Bold Court","R3042"
"Wolverhampton City Council","http://opendatacommunities.org/id/metropolitan-district-council/wolverhampton","Associated  Radio Taxi�s","01957","43.20","Client Transport","130102221","20/01/16","Learning Disability Provider","Ernest Bold Court","R3042"
"Wolverhampton City Council","http://opendatacommunities.org/id/metropolitan-district-council/wolverhampton","Associated  Radio Taxi�s","8302","829.64","Client Transport","130101953","06/01/16","School Planning & Resources","Primary - Transport","R3042"
"Wolverhampton City Council","http://opendatacommunities.org/id/metropolitan-district-council/wolverhampton","Associated  Radio Taxi�s","01954","98.90","Client Transport","130102028","13/01/16","Learning Disability Provider","Windmill Lane - Respite Home","R3042"
"Wolverhampton City Council","http://opendatacommunities.org/id/metropolitan-district-council/wolverhampton","Associated  Radio Taxi�s","01954","-98.90","Client Transport","130102028","13/01/16","Learning Disability Provider","Windmill Lane - Respite Home","R3042"
"Wolverhampton City Council","http://opendatacommunities.org/id/metropolitan-district-council/wolverhampton","Associated  Radio Taxi�s","01954","98.90","Client Transport","130102028","13/01/16","Learning Disability Provider","Windmill Lane - Respite Home","R3042"
"Wolverhampton City Council","http://opendatacommunities.org/id/metropolitan-district-council/wolverhampton","Associated  Radio Taxi�s","01956","43.20","Client Transport","130101820","13/01/16","Learning Disability Provider","Ernest Bold Court","R3042"
"Wolverhampton City Council","http://opendatacommunities.org/id/metropolitan-district-council/wolverhampton","Associated  Radio Taxi�s","01956","-43.20","Client Transport","130101820","13/01/16","Learning Disability Provider","Ernest Bold Court","R3042"
"Wolverhampton City Council","http://opendatacommunities.org/id/metropolitan-district-council/wolverhampton","Associated  Radio Taxi�s","01956","43.20","Client Transport","130101820","13/01/16","Learning Disability Provider","Ernest Bold Court","R3042"
"Wolverhampton City Council","http://opendatacommunities.org/id/metropolitan-district-council/wolverhampton","Associated  Radio Taxi�s","8304","750.68","Client Transport","130101955","13/01/16","School Planning & Resources","Primary - Transport","R3042"
"Wolverhampton City Council","http://opendatacommunities.org/id/metropolitan-district-council/wolverhampton","Associated  Radio Taxi�s","8304","-750.68","Client Transport","130101955","13/01/16","School Planning & Resources","Primary - Transport","R3042"
"Wolverhampton City Council","http://opendatacommunities.org/id/metropolitan-district-council/wolverhampton","Associated  Radio Taxi�s","8304","750.68","Client Transport","130101955","13/01/16","School Planning & Resources","Primary - Transport","R3042"
"Wolverhampton City Council","http://opendatacommunities.org/id/metropolitan-district-council/wolverhampton","Associated  Radio Taxi�s","8303","910.56","Client Transport","130101954","13/01/16","School Planning & Resources","Secondary- Transport","R3042"
"Wolverhampton City Council","http://opendatacommunities.org/id/metropolitan-district-council/wolverhampton","Associated  Radio Taxi�s","8300","773.64","Client Transport","130101951","13/01/16","School Planning & Resources","Secondary- Transport","R3042"
"Wolverhampton City Council","http://opendatacommunities.org/id/metropolitan-district-council/wolverhampton","Associated  Radio Taxi�s","8307","927.92","Client Transport","130101958","13/01/16","School Planning & Resources","Primary - Transport","R3042"
"Wolverhampton City Council","http://opendatacommunities.org/id/metropolitan-district-council/wolverhampton","Associated  Radio Taxi�s","8301.","773.64","Client Transport","130101952","13/01/16","Schools","Pupil Referral Units ISB","R3042"
"Wolverhampton City Council","http://opendatacommunities.org/id/metropolitan-district-council/wolverhampton","Association Of Adult Education And","INV - 0117","120.00","Training Expenses","130100766","08/01/16","Adult Education","SMT - Senior Management Team","R1650"
"Wolverhampton City Council","http://opendatacommunities.org/id/metropolitan-district-council/wolverhampton","Pelican Rouge Coffee Solutions Limited","150129052","640.94","Provisions (Resale)","130099427","13/01/16","Catering","Civic Centre Catering","R4102"
"Wolverhampton City Council","http://opendatacommunities.org/id/metropolitan-district-council/wolverhampton","Pelican Rouge Coffee Solutions Limited","150129052","-640.94","Provisions (Resale)","130099427","13/01/16","Catering","Civic Centre Catering","R4102"
"Wolverhampton City Council","http://opendatacommunities.org/id/metropolitan-district-council/wolverhampton","Pelican Rouge Coffee Solutions Limited","150129052","640.94","Provisions (Resale)","130099427","13/01/16","Catering","Civic Centre Catering","R4102"
"Wolverhampton City Council","http://opendatacommunities.org/id/metropolitan-district-council/wolverhampton","Pelican Rouge Coffee Solutions Limited","150134109","331.27","Provisions (Resale)","130102237","13/01/16","Catering","Civic Centre Catering","R4102"
"Wolverhampton City Council","http://opendatacommunities.org/id/metropolitan-district-council/wolverhampton","Pelican Rouge Coffee Solutions Limited","150134109","-331.27","Provisions (Resale)","130102237","13/01/16","Catering","Civic Centre Catering","R4102"
"Wolverhampton City Council","http://opendatacommunities.org/id/metropolitan-district-council/wolverhampton","Pelican Rouge Coffee Solutions Limited","150134109","331.27","Provisions (Resale)","130102237","13/01/16","Catering","Civic Centre Catering","R4102"
"Wolverhampton City Council","http://opendatacommunities.org/id/metropolitan-district-council/wolverhampton","Autoguard Alarms Limited","134650","226.80","Fixtures and Fittings - R&M","130103103","22/01/16","Cleaning & Caretaking Service","Bingley Site","R2502"
"Wolverhampton City Council","http://opendatacommunities.org/id/metropolitan-district-council/wolverhampton","Autoguard Alarms Limited","134650","-226.80","Fixtures and Fittings - R&M","130103103","22/01/16","Cleaning & Caretaking Service","Bingley Site","R2502"
"Wolverhampton City Council","http://opendatacommunities.org/id/metropolitan-district-council/wolverhampton","Autoguard Alarms Limited","134650","226.80","Fixtures and Fittings - R&M","130103103","22/01/16","Cleaning & Caretaking Service","Bingley Site","R2502"
"Wolverhampton City Council","http://opendatacommunities.org/id/metropolitan-district-council/wolverhampton","Axiom Building Solutions","01856","55.00","R&M - Departmental planned (external)","130098884","29/01/16","Engineering & Civic Centre","Civic Centre","R2001"
"Wolverhampton City Council","http://opendatacommunities.org/id/metropolitan-district-council/wolverhampton","B + G Cleaning Systems Limited","152456","100.00","Cleaning Supplies and Materials","130103064","15/01/16","Fleet Services","Passenger Transport - General","R2705"
"Wolverhampton City Council","http://opendatacommunities.org/id/metropolitan-district-council/wolverhampton","B + G Cleaning Systems Limited","152079","87.50","Cleaning Supplies and Materials","130103065","15/01/16","Fleet Services","Passenger Transport - General","R2705"
"Wolverhampton City Council","http://opendatacommunities.org/id/metropolitan-district-council/wolverhampton","B + G Cleaning Systems Limited","152248","76.90","Cleaning Supplies and Materials","130103063","15/01/16","Fleet Services","Passenger Transport - General","R2705"
"Wolverhampton City Council","http://opendatacommunities.org/id/metropolitan-district-council/wolverhampton","B + G Cleaning Systems Limited","153335","207.98","Equipment - Purchase","190192488","08/01/16","Fleet Services","Fleet Management","R4000"
"Wolverhampton City Council","http://opendatacommunities.org/id/metropolitan-district-council/wolverhampton","B + G Cleaning Systems Limited","153436","9.95","Equipment - Purchase","190192489","08/01/16","Fleet Services","Fleet Management","R4000"
"Wolverhampton City Council","http://opendatacommunities.org/id/metropolitan-district-council/wolverhampton","B + G Cleaning Systems Limited","153436","20.69","Equipment - Purchase","190192489","08/01/16","Fleet Services","Fleet Management","R4000"
"Wolverhampton City Council","http://opendatacommunities.org/id/metropolitan-district-council/wolverhampton","Badenoch & Clark Recruit. Specialist","4741780","2,412.00","Agency Staff","130100036","08/01/16","Strategic Financial Services","Corporate Procurement Unit","R1100"
"Wolverhampton City Council","http://opendatacommunities.org/id/metropolitan-district-council/wolverhampton","Badenoch & Clark Recruit. Specialist","4741782","2,412.00","Agency Staff","130100038","08/01/16","Strategic Financial Services","Corporate Procurement Unit","R1100"
"Wolverhampton City Council","http://opendatacommunities.org/id/metropolitan-district-council/wolverhampton","Badenoch & Clark Recruit. Specialist","4752567","820.00","Agency Staff","130104587","29/01/16","Strategic Financial Services","Corporate Procurement Unit","R1100"
"Wolverhampton City Council","http://opendatacommunities.org/id/metropolitan-district-council/wolverhampton","Badenoch & Clark Recruit. Specialist","4752576","1,640.00","Agency Staff","130104596","29/01/16","Strategic Financial Services","Corporate Procurement Unit","R1100"
"Wolverhampton City Council","http://opendatacommunities.org/id/metropolitan-district-council/wolverhampton","Badenoch & Clark Recruit. Specialist","4707485","807.50","Agency Staff","130087324","20/01/16","Strategic Financial Services","Strategic Financial Services","R1100"
"Wolverhampton City Council","http://opendatacommunities.org/id/metropolitan-district-council/wolverhampton","Badenoch & Clark Recruit. Specialist","4707492","829.13","Agency Staff","130087331","20/01/16","Strategic Financial Services","Strategic Financial Services","R1100"
"Wolverhampton City Council","http://opendatacommunities.org/id/metropolitan-district-council/wolverhampton","Badenoch & Clark Recruit. Specialist","4707486","712.50","Agency Staff","130087325","20/01/16","Strategic Financial Services","Strategic Financial Services","R1100"
"Wolverhampton City Council","http://opendatacommunities.org/id/metropolitan-district-council/wolverhampton","Badenoch & Clark Recruit. Specialist","4707484","890.63","Agency Staff","130087323","20/01/16","Strategic Financial Services","Strategic Financial Services","R1100"
"Wolverhampton City Council","http://opendatacommunities.org/id/metropolitan-district-council/wolverhampton","Badenoch & Clark Recruit. Specialist","4707487","890.63","Agency Staff","130087326","20/01/16","Strategic Financial Services","Strategic Financial Services","R1100"
"Wolverhampton City Council","http://opendatacommunities.org/id/metropolitan-district-council/wolverhampton","Badenoch & Clark Recruit. Specialist","4707488","823.52","Agency Staff","130087327","20/01/16","Strategic Financial Services","Strategic Financial Services","R1100"
"Wolverhampton City Council","http://opendatacommunities.org/id/metropolitan-district-council/wolverhampton","Badenoch & Clark Recruit. Specialist","4752561","1,449.32","Agency Staff","130104581","27/01/16","Strategic Financial Services","Strategic Financial Services","R1100"
"Wolverhampton City Council","http://opendatacommunities.org/id/metropolitan-district-council/wolverhampton","Badenoch & Clark Recruit. Specialist","4752563","820.00","Agency Staff","130104583","27/01/16","Strategic Financial Services","Corporate Procurement Unit","R1100"
"Wolverhampton City Council","http://opendatacommunities.org/id/metropolitan-district-council/wolverhampton","Badenoch & Clark Recruit. Specialist","4752562","1,230.00","Agency Staff","130104582","27/01/16","Strategic Financial Services","Corporate Procurement Unit","R1100"
"Wolverhampton City Council","http://opendatacommunities.org/id/metropolitan-district-council/wolverhampton","Badenoch & Clark Recruit. Specialist","4752564","820.00","Agency Staff","130104584","27/01/16","Strategic Financial Services","Corporate Procurement Unit","R1100"
"Wolverhampton City Council","http://opendatacommunities.org/id/metropolitan-district-council/wolverhampton","Badenoch & Clark Recruit. Specialist","4752565","820.00","Agency Staff","130104585","27/01/16","Strategic Financial Services","Corporate Procurement Unit","R1100"
"Wolverhampton City Council","http://opendatacommunities.org/id/metropolitan-district-council/wolverhampton","Badenoch & Clark Recruit. Specialist","4752566","2,412.00","Agency Staff","130104586","27/01/16","Strategic Financial Services","Corporate Procurement Unit","R1100"
"Wolverhampton City Council","http://opendatacommunities.org/id/metropolitan-district-council/wolverhampton","Badenoch & Clark Recruit. Specialist","4752568","715.00","Agency Staff","130104588","27/01/16","Physical Regeneration","City Development  - Core Team","R1100"
"Wolverhampton City Council","http://opendatacommunities.org/id/metropolitan-district-council/wolverhampton","Badenoch & Clark Recruit. Specialist","4752569","2,145.00","Agency Staff","130104589","27/01/16","Physical Regeneration","City Development  - Core Team","R1100"
"Wolverhampton City Council","http://opendatacommunities.org/id/metropolitan-district-council/wolverhampton","Badenoch & Clark Recruit. Specialist","4752570","2,145.00","Agency Staff","130104590","27/01/16","Physical Regeneration","City Development  - Core Team","R1100"
"Wolverhampton City Council","http://opendatacommunities.org/id/metropolitan-district-council/wolverhampton","Badenoch & Clark Recruit. Specialist","4752571","2,145.00","Agency Staff","130104591","27/01/16","Physical Regeneration","City Development  - Core Team","R1100"
"Wolverhampton City Council","http://opendatacommunities.org/id/metropolitan-district-council/wolverhampton","Badenoch & Clark Recruit. Specialist","4752572","1,430.00","Agency Staff","130104592","27/01/16","Physical Regeneration","City Development  - Core Team","R1100"
"Wolverhampton City Council","http://opendatacommunities.org/id/metropolitan-district-council/wolverhampton","Badenoch & Clark Recruit. Specialist","4752574","1,350.00","Agency Staff","130104594","27/01/16","Transformation","Corporate Programmes","R1100"
"Wolverhampton City Council","http://opendatacommunities.org/id/metropolitan-district-council/wolverhampton","Badenoch & Clark Recruit. Specialist","4752575","2,625.00","Agency Staff","130104595","27/01/16","Transformation","Corporate Programmes","R1100"
"Wolverhampton City Council","http://opendatacommunities.org/id/metropolitan-district-council/wolverhampton","Badenoch & Clark Recruit. Specialist","4752577","3,250.00","Agency Staff","130104597","27/01/16","Transformation","Corporate Programmes","R1100"
"Wolverhampton City Council","http://opendatacommunities.org/id/metropolitan-district-council/wolverhampton","Badenoch & Clark Recruit. Specialist","4746858","1,575.00","Agency Staff","130101555","06/01/16","Transformation","Corporate Programmes","R1100"
"Wolverhampton City Council","http://opendatacommunities.org/id/metropolitan-district-council/wolverhampton","Badenoch & Clark Recruit. Specialist","4746860","2,362.50","Agency Staff","130101557","06/01/16","Transformation","Corporate Programmes","R1100"
"Wolverhampton City Council","http://opendatacommunities.org/id/metropolitan-district-council/wolverhampton","Badenoch & Clark Recruit. Specialist","4746859","2,362.50","Agency Staff","130101556","06/01/16","Transformation","Corporate Programmes","R1100"
"Wolverhampton City Council","http://opendatacommunities.org/id/metropolitan-district-council/wolverhampton","Badenoch & Clark Recruit. Specialist","4746857","2,750.00","Agency Staff","130101554","06/01/16","Transformation","Corporate Programmes","R1100"
"Wolverhampton City Council","http://opendatacommunities.org/id/metropolitan-district-council/wolverhampton","Badenoch & Clark Recruit. Specialist","4733485","3,250.00","Agency Staff","130097495","06/01/16","Transformation","Corporate Programmes","R1100"
"Wolverhampton City Council","http://opendatacommunities.org/id/metropolitan-district-council/wolverhampton","Badenoch & Clark Recruit. Specialist","4733486","3,250.00","Agency Staff","130097496","06/01/16","Transformation","Corporate Programmes","R1100"
"Wolverhampton City Council","http://opendatacommunities.org/id/metropolitan-district-council/wolverhampton","Badenoch & Clark Recruit. Specialist","4736243","3,250.00","Agency Staff","130097792","06/01/16","Transformation","Corporate Programmes","R1100"
"Wolverhampton City Council","http://opendatacommunities.org/id/metropolitan-district-council/wolverhampton","Badenoch & Clark Recruit. Specialist","4739007","2,750.00","Agency Staff","130099508","06/01/16","Transformation","Corporate Programmes","R1100"
"Wolverhampton City Council","http://opendatacommunities.org/id/metropolitan-district-council/wolverhampton","Badenoch & Clark Recruit. Specialist","4739008","2,750.00","Agency Staff","130099509","06/01/16","Transformation","Corporate Programmes","R1100"
"Wolverhampton City Council","http://opendatacommunities.org/id/metropolitan-district-council/wolverhampton","Badenoch & Clark Recruit. Specialist","4741783","2,750.00","Agency Staff","130100039","06/01/16","Transformation","Corporate Programmes","R1100"
"Wolverhampton City Council","http://opendatacommunities.org/id/metropolitan-district-council/wolverhampton","Badenoch & Clark Recruit. Specialist","4746856","3,529.40","Agency Staff","130101553","06/01/16","Service Director City Environment","Service Director City Environment","R1100"
"Wolverhampton City Council","http://opendatacommunities.org/id/metropolitan-district-council/wolverhampton","Badenoch & Clark Recruit. Specialist","2128738","-3,250.00","Agency Staff","130101040","06/01/16","Transformation","Corporate Programmes","R1100"
"Wolverhampton City Council","http://opendatacommunities.org/id/metropolitan-district-council/wolverhampton","Badenoch & Clark Recruit. Specialist","2128739","-3,250.00","Agency Staff","130101041","06/01/16","Transformation","Corporate Programmes","R1100"
"Wolverhampton City Council","http://opendatacommunities.org/id/metropolitan-district-council/wolverhampton","Badenoch & Clark Recruit. Specialist","2128740","-3,250.00","Agency Staff","130101042","06/01/16","Transformation","Corporate Programmes","R1100"
"Wolverhampton City Council","http://opendatacommunities.org/id/metropolitan-district-council/wolverhampton","Badenoch & Clark Recruit. Specialist","4743252","3,250.00","Agency Staff","130101077","06/01/16","Transformation","Corporate Programmes","R1100"
"Wolverhampton City Council","http://opendatacommunities.org/id/metropolitan-district-council/wolverhampton","Badenoch & Clark Recruit. Specialist","4683103","128.25","Agency Staff","130100464","06/01/16","Safeguarding","Head of Service Quality and Safeguarding","R1100"
"Wolverhampton City Council","http://opendatacommunities.org/id/metropolitan-district-council/wolverhampton","Badenoch & Clark Recruit. Specialist","4683104","72.00","Agency Staff","130100465","06/01/16","Safeguarding","Head of Service Quality and Safeguarding","R1100"
"Wolverhampton City Council","http://opendatacommunities.org/id/metropolitan-district-council/wolverhampton","Badenoch & Clark Recruit. Specialist","4750642","3,250.00","Agency Staff","130102512","13/01/16","Transformation","Corporate Programmes","R1100"
"Wolverhampton City Council","http://opendatacommunities.org/id/metropolitan-district-council/wolverhampton","Badenoch & Clark Recruit. Specialist","4750643","3,250.00","Agency Staff","130102513","13/01/16","Transformation","Corporate Programmes","R1100"
"Wolverhampton City Council","http://opendatacommunities.org/id/metropolitan-district-council/wolverhampton","Badenoch & Clark Recruit. Specialist","4750644","810.00","Agency Staff","130102514","13/01/16","Transformation","Corporate Programmes","R1100"
"Wolverhampton City Council","http://opendatacommunities.org/id/metropolitan-district-council/wolverhampton","Badenoch & Clark Recruit. Specialist","4750641","3,250.00","Agency Staff","130102511","13/01/16","Transformation","Corporate Programmes","R1100"
"Wolverhampton City Council","http://opendatacommunities.org/id/metropolitan-district-council/wolverhampton","Badenoch & Clark Recruit. Specialist","4746854","1,258.32","Agency Staff","130101551","13/01/16","Strategic Financial Services","Strategic Financial Services","R1100"
"Wolverhampton City Council","http://opendatacommunities.org/id/metropolitan-district-council/wolverhampton","Badenoch & Clark Recruit. Specialist","4746855","2,058.80","Agency Staff","130101552","13/01/16","Strategic Financial Services","Strategic Financial Services","R1100"
"Wolverhampton City Council","http://opendatacommunities.org/id/metropolitan-district-council/wolverhampton","Bains Supersave Limited","APNEWS021","26.23","Books","130103602","27/01/16","Library Services","Ashmore Park Library","R4309"
"Wolverhampton City Council","http://opendatacommunities.org/id/metropolitan-district-council/wolverhampton","Bains Supersave Limited","APNEWS 018","50.82","Books","130101973","13/01/16","Library Services","Ashmore Park Library","R4309"
"Wolverhampton City Council","http://opendatacommunities.org/id/metropolitan-district-council/wolverhampton","Bains Supersave Limited","APNEWS 020","48.30","Books","130101975","13/01/16","Library Services","Ashmore Park Library","R4309"
"Wolverhampton City Council","http://opendatacommunities.org/id/metropolitan-district-council/wolverhampton","Bains Supersave Limited","APNEWS 019","41.65","Books","130101974","13/01/16","Library Services","Ashmore Park Library","R4309"
"Wolverhampton City Council","http://opendatacommunities.org/id/metropolitan-district-council/wolverhampton","Baker Hall Limited","WV/10/15","1,472.50","Services - Consultants","130094239","29/01/16","Planning","Building Consultancy","R4404"
"Wolverhampton City Council","http://opendatacommunities.org/id/metropolitan-district-council/wolverhampton","Baker Hall Limited","WV/12/15","1,271.00","Services - Consultants","130102140","27/01/16","Planning","Building Consultancy","R4404"
"Wolverhampton City Council","http://opendatacommunities.org/id/metropolitan-district-council/wolverhampton","Baker Hall Limited","WV/09/15/B","341.00","Services - Consultants","130101616","06/01/16","Planning","Building Consultancy","R4404"
"Wolverhampton City Council","http://opendatacommunities.org/id/metropolitan-district-council/wolverhampton","Barber Of Sheffield Limited","368137","930.18","Equipment - Purchase","130100928","13/01/16","Bereavement Services","Coroners","R4000"
"Wolverhampton City Council","http://opendatacommunities.org/id/metropolitan-district-council/wolverhampton","Barnsley Bate Limited","16011","250.00","Services - Fees and Charges","130103682","22/01/16","Regulatory Services","EHTS Operational","R4401"
"Wolverhampton City Council","http://opendatacommunities.org/id/metropolitan-district-council/wolverhampton","Base 25","2415","280.00","TPP - Public Health Contracts","130103714","22/01/16","Children in Need & Child Protection","Dove  - CIN  Social Work Unit - S17","R5060"
"Wolverhampton City Council","http://opendatacommunities.org/id/metropolitan-district-council/wolverhampton","Base 25","85","-350.00","TPP - Public Health Contracts","130099054","08/01/16","Children in Need & Child Protection","Alfred Squire  - CIN  Social Work Unit - S17","R5060"
"Wolverhampton City Council","http://opendatacommunities.org/id/metropolitan-district-council/wolverhampton","Bbp.Security Services & Training Limited","522SAT201015","150.00","Services - Security","130092058","15/01/16","Engineering & Civic Centre","Management of Vacant Properties","R4405"
"Wolverhampton City Council","http://opendatacommunities.org/id/metropolitan-district-council/wolverhampton","Bbp.Security Services & Training Limited","539SAT200116","731.50","Services - Security","130103940","29/01/16","Older People Assessment & Care Management","Assessment Team (West)","R4405"
"Wolverhampton City Council","http://opendatacommunities.org/id/metropolitan-district-council/wolverhampton","Bbp.Security Services & Training Limited","538SAT200116","855.00","Services - Security","130103939","29/01/16","Older People Assessment & Care Management","Assessment Team (West)","R4405"
"Wolverhampton City Council","http://opendatacommunities.org/id/metropolitan-district-council/wolverhampton","Bbp.Security Services & Training Limited","965CIV120116","4,102.18","Services - Security","130103026","20/01/16","Visitor Economy","Civic & Wulfrun In-House Promotions","R4405"
"Wolverhampton City Council","http://opendatacommunities.org/id/metropolitan-district-council/wolverhampton","Bbp.Security Services & Training Limited","967LCIV120116","1,202.70","Services - Security","130103028","20/01/16","Visitor Economy","The Little Civic","R4405"
"Wolverhampton City Council","http://opendatacommunities.org/id/metropolitan-district-council/wolverhampton","Bbp.Security Services & Training Limited","966CIV120116","5,019.30","Services - Security","130103027","20/01/16","Visitor Economy","Civic & Wulfrun In-House Promotions","R4405"
"Wolverhampton City Council","http://opendatacommunities.org/id/metropolitan-district-council/wolverhampton","Bbp.Security Services & Training Limited","968CIV120116","5,488.61","Services - Security","130103029","20/01/16","Visitor Economy","Civic & Wulfrun Outhouse & Other Comercial Events","R4405"
"Wolverhampton City Council","http://opendatacommunities.org/id/metropolitan-district-council/wolverhampton","Bbp.Security Services & Training Limited","537SAT200116","855.00","Services - Security","130103938","27/01/16","Older People Assessment & Care Management","Assessment Team (West)","R4405"
"Wolverhampton City Council","http://opendatacommunities.org/id/metropolitan-district-council/wolverhampton","Bbp.Security Services & Training Limited","532SAT071215","300.00","Services - Security","130098534","06/01/16","Engineering & Civic Centre","Management of Vacant Properties","R4405"
"Wolverhampton City Council","http://opendatacommunities.org/id/metropolitan-district-council/wolverhampton","Bbp.Security Services & Training Limited","962CIV141215OE","2,489.92","Services - Security","130099713","06/01/16","Visitor Economy","Christmas Festivities","R4405"
"Wolverhampton City Council","http://opendatacommunities.org/id/metropolitan-district-council/wolverhampton","BCC Mac T/A St Edmund�s Catholic","SEN Mainstream Top Ups Autumn 2015-16","2,751.84","Grant Payments","190193386","13/01/16","Schools","High Needs Top Up -Mainstream Schools/Academies","R4700"
"Wolverhampton City Council","http://opendatacommunities.org/id/metropolitan-district-council/wolverhampton","BCC Mac T/A St Michaels Catholic","SEN Mainstream Top Ups Autumn 2015-16","4,127.75","Grant Payments","190193386","13/01/16","Schools","High Needs Top Up -Mainstream Schools/Academies","R4700"
"Wolverhampton City Council","http://opendatacommunities.org/id/metropolitan-district-council/wolverhampton","BCC Mac T/A St Michaels Catholic","EY Spring Interim 2015-16 STMI","13,282.00","Grant Payments","190193392","13/01/16","Schools","Academy Early years","R4700"
"Wolverhampton City Council","http://opendatacommunities.org/id/metropolitan-district-council/wolverhampton","BCC Mac T/A St Michaels Catholic","EY Autumn Term Final 2015-16 STMI","7,133.00","Grant Payments","190193402","13/01/16","Schools","Academy Early years","R4700"
"Wolverhampton City Council","http://opendatacommunities.org/id/metropolitan-district-council/wolverhampton","BCC Mac T/A St Michaels Catholic","2015-16 Autumn Term","705.60","Grant Payments","190193384","13/01/16","Schools","Academy Early years","R4700"
"Wolverhampton City Council","http://opendatacommunities.org/id/metropolitan-district-council/wolverhampton","BCC Mac T/A St Teresa�S Catholic","SEN Mainstream Top Ups Autumn 2015-16","1,375.92","Grant Payments","190193386","13/01/16","Schools","High Needs Top Up -Mainstream Schools/Academies","R4700"
"Wolverhampton City Council","http://opendatacommunities.org/id/metropolitan-district-council/wolverhampton","BCC Mac T/A The Giffard Catholic","EY Spring Interim 2015-16 TGP","14,084.00","Grant Payments","190193393","13/01/16","Schools","Academy Early years","R4700"
"Wolverhampton City Council","http://opendatacommunities.org/id/metropolitan-district-council/wolverhampton","BCC Mac T/A The Giffard Catholic","EY Autumn Term Final 2015-16 TGP","14,991.00","Grant Payments","190193403","13/01/16","Schools","Academy Early years","R4700"
"Wolverhampton City Council","http://opendatacommunities.org/id/metropolitan-district-council/wolverhampton","BCC Mac T/A The Giffard Catholic","SEN Mainstream Top Ups Autumn 2015-16","2,751.83","Grant Payments","190193386","13/01/16","Schools","High Needs Top Up -Mainstream Schools/Academies","R4700"
"Wolverhampton City Council","http://opendatacommunities.org/id/metropolitan-district-council/wolverhampton","Beacon 4 Print Ltd","3528","351.00","Education trips, Holidays, Outings & Activities","130103922","22/01/16","Social Inclusion & Play Service","MAST - Central Team","R4970"
"Wolverhampton City Council","http://opendatacommunities.org/id/metropolitan-district-council/wolverhampton","Beacon Land Surveys","2016011","655.00","Services - Professional Fees","130102657","13/01/16","Estates and Valuations","Disposal Costs","R4400"
"Wolverhampton City Council","http://opendatacommunities.org/id/metropolitan-district-council/wolverhampton","Believe To Achieve Limited","12846","10,000.00","Services - Professional Fees","130103101","27/01/16","Mental Health Commissioning","Head Start Wolverhampton","R4400"
"Wolverhampton City Council","http://opendatacommunities.org/id/metropolitan-district-council/wolverhampton","Berendsen UK Limited","SN2291922","186.52","Protective Clothing","190193095","13/01/16","Fleet Services","Fleet Management","R4200"
"Wolverhampton City Council","http://opendatacommunities.org/id/metropolitan-district-council/wolverhampton","Bertram Trading Limited(Library Serv)","02164580","56.67","Books","130102029","15/01/16","Library Services","Global Budgets","R4309"
"Wolverhampton City Council","http://opendatacommunities.org/id/metropolitan-district-council/wolverhampton","Bertram Trading Limited(Library Serv)","02164967","94.45","Books","130102030","15/01/16","Library Services","Global Budgets","R4309"
"Wolverhampton City Council","http://opendatacommunities.org/id/metropolitan-district-council/wolverhampton","Beverages Direct Limited","678471","260.26","Provisions (Resale)","130103011","20/01/16","Catering","Education Catering - General Overheads","R4102"
"Wolverhampton City Council","http://opendatacommunities.org/id/metropolitan-district-council/wolverhampton","Beverages Direct Limited","678471","-260.26","Provisions (Resale)","130103011","20/01/16","Catering","Education Catering - General Overheads","R4102"
"Wolverhampton City Council","http://opendatacommunities.org/id/metropolitan-district-council/wolverhampton","Beverages Direct Limited","678471","87.28","Provisions (Resale)","130103011","20/01/16","Catering","Education Catering - General Overheads","R4102"
"Wolverhampton City Council","http://opendatacommunities.org/id/metropolitan-district-council/wolverhampton","Beverages Direct Limited","678471","172.98","Provisions (Resale)","130103011","20/01/16","Catering","Education Catering - General Overheads","R4102"
"Wolverhampton City Council","http://opendatacommunities.org/id/metropolitan-district-council/wolverhampton","Bilston Resource Centre","045","7,050.06","Grant Payments","130101824","29/01/16","Adult Education","NESS Neigh/hood Employment & Skills Serv","R4700"
"Wolverhampton City Council","http://opendatacommunities.org/id/metropolitan-district-council/wolverhampton","Bilston Resource Centre","044","5,810.53","Grant Payments","130098905","06/01/16","Adult Education","NESS Neigh/hood Employment & Skills Serv","R4700"
"Wolverhampton City Council","http://opendatacommunities.org/id/metropolitan-district-council/wolverhampton","Birmingham Womens NHS Foundation Trust","OP/I140640","900.00","Services - Professional Fees","130104941","29/01/16","Bereavement Services","Coroners","R4400"
"Wolverhampton City Council","http://opendatacommunities.org/id/metropolitan-district-council/wolverhampton","Birmingham Womens NHS Foundation Trust","OP/I140638","900.00","Services - Professional Fees","130104470","27/01/16","Bereavement Services","Coroners","R4400"
"Wolverhampton City Council","http://opendatacommunities.org/id/metropolitan-district-council/wolverhampton","Black Country Partnership NHS Ft","3100000567","13,855.33","TPP - Social Care Support Services","130100242","06/01/16","Mental Health Commissioning","Child & Adolescent Mental Health Service","R5501"
"Wolverhampton City Council","http://opendatacommunities.org/id/metropolitan-district-council/wolverhampton","Black Country Partnership NHS Ft","3100000566","15,282.08","TPP - Social Care Support Services","130100241","06/01/16","Mental Health Commissioning","Child & Adolescent Mental Health Service","R5501"
"Wolverhampton City Council","http://opendatacommunities.org/id/metropolitan-district-council/wolverhampton","Black Country Partnership NHS Ft","3100000568","8,986.33","TPP - Social Care Support Services","130100243","06/01/16","Mental Health Commissioning","Child & Adolescent Mental Health Service","R5501"
"Wolverhampton City Council","http://opendatacommunities.org/id/metropolitan-district-council/wolverhampton","Blakenhall Neighbourhood Nursery","3269","216.00","TPP - Child Care provided for client","130096604","15/01/16","Adult Education","Discretionary Fund","R5034"
"Wolverhampton City Council","http://opendatacommunities.org/id/metropolitan-district-council/wolverhampton","Blakenhall Neighbourhood Nursery","3369","30.00","Room Hire","130100926","08/01/16","Childrens Centres & Early Years","Childrens Centres & Early Years","R2201"
"Wolverhampton City Council","http://opendatacommunities.org/id/metropolitan-district-council/wolverhampton","Blue Group Interntl Limited T/A Bluecare","HSOC5532232","1,020.00","Agency Staff","130101130","15/01/16","Children in Need & Child Protection","CIN Agency","R1100"
"Wolverhampton City Council","http://opendatacommunities.org/id/metropolitan-district-council/wolverhampton","Blue Group Interntl Limited T/A Bluecare","HSOC5532229","1,020.00","Agency Staff","130101585","15/01/16","Children in Need & Child Protection","CIN Agency","R1100"
"Wolverhampton City Council","http://opendatacommunities.org/id/metropolitan-district-council/wolverhampton","Blue Group Interntl Limited T/A Bluecare","HSOC5532234","832.50","Agency Staff","130101588","15/01/16","Children in Need & Child Protection","CIN Agency","R1100"
"Wolverhampton City Council","http://opendatacommunities.org/id/metropolitan-district-council/wolverhampton","Blue Group Interntl Limited T/A Bluecare","HSOC5532233","1,369.00","Agency Staff","130101131","15/01/16","Children in Need & Child Protection","CIN Agency","R1100"
"Wolverhampton City Council","http://opendatacommunities.org/id/metropolitan-district-council/wolverhampton","Blue Group Interntl Limited T/A Bluecare","HSOC5532230","1,369.00","Agency Staff","130101586","15/01/16","Children in Need & Child Protection","CIN Agency","R1100"
"Wolverhampton City Council","http://opendatacommunities.org/id/metropolitan-district-council/wolverhampton","Blue Group Interntl Limited T/A Bluecare","HSOC5532231","14.40","Agency Staff","130101587","15/01/16","Children in Need & Child Protection","CIN Agency","R1100"
"Wolverhampton City Council","http://opendatacommunities.org/id/metropolitan-district-council/wolverhampton","Blue Group Interntl Limited T/A Bluecare","HSOC5430856","1,258.00","Agency Staff","130101811","15/01/16","Children in Need & Child Protection","CIN - Warstones MAST - Area 4","R1100"
"Wolverhampton City Council","http://opendatacommunities.org/id/metropolitan-district-council/wolverhampton","Blue Group Interntl Limited T/A Bluecare","HSOC5522304","1,020.00","Agency Staff","130095182","22/01/16","Children in Need & Child Protection","CIN Agency","R1100"
"Wolverhampton City Council","http://opendatacommunities.org/id/metropolitan-district-council/wolverhampton","Blue Group Interntl Limited T/A Bluecare","HSOC5530248","1,332.00","Agency Staff","130099850","08/01/16","Children in Need & Child Protection","CIN - Warstones MAST - Area 4","R1100"
"Wolverhampton City Council","http://opendatacommunities.org/id/metropolitan-district-council/wolverhampton","Blue Group Interntl Limited T/A Bluecare","HSOC5517578","792.00","Agency Staff","130092974","08/01/16","Children in Need & Child Protection","CIN - Warstones MAST - Area 4","R1100"
"Wolverhampton City Council","http://opendatacommunities.org/id/metropolitan-district-council/wolverhampton","Blue Group Interntl Limited T/A Bluecare","HSOC5535074","810.00","Agency Staff","130102130","29/01/16","Children in Need & Child Protection","CIN - Warstones MAST - Area 4","R1100"
"Wolverhampton City Council","http://opendatacommunities.org/id/metropolitan-district-council/wolverhampton","Blue Group Interntl Limited T/A Bluecare","MAN22411C","-5,107.11","Agency Staff","130095387","20/01/16","Children in Need & Child Protection","Eastfield 2 - CIN  Social Work Unit - S17","R1100"
"Wolverhampton City Council","http://opendatacommunities.org/id/metropolitan-district-council/wolverhampton","Blue Group Interntl Limited T/A Bluecare","HSOC5533377","832.50","Agency Staff","130101466","20/01/16","Children in Need & Child Protection","CIN Agency","R1100"
"Wolverhampton City Council","http://opendatacommunities.org/id/metropolitan-district-council/wolverhampton","Blue Group Interntl Limited T/A Bluecare","HSOC5532865","18.00","Agency Staff","130101462","20/01/16","Looked After Children","Fostering Team & Allowances","R1100"
"Wolverhampton City Council","http://opendatacommunities.org/id/metropolitan-district-council/wolverhampton","Blue Group Interntl Limited T/A Bluecare","HSOC5532864","1,110.00","Agency Staff","130101461","20/01/16","Looked After Children","Fostering Team & Allowances","R1100"
"Wolverhampton City Council","http://opendatacommunities.org/id/metropolitan-district-council/wolverhampton","Blue Group Interntl Limited T/A Bluecare","HSOC5533376","13.05","Agency Staff","130101465","20/01/16","Looked After Children","Fostering Team & Allowances","R1100"
"Wolverhampton City Council","http://opendatacommunities.org/id/metropolitan-district-council/wolverhampton","Blue Group Interntl Limited T/A Bluecare","HSOC5533375","675.00","Agency Staff","130101464","20/01/16","Looked After Children","Fostering Team & Allowances","R1100"
"Wolverhampton City Council","http://opendatacommunities.org/id/metropolitan-district-council/wolverhampton","Blue Group Interntl Limited T/A Bluecare","HSOC5528426A","1,606.00","Agency Staff","130103800","20/01/16","Looked After Children","Adoption and Residence Team & Allowances","R1100"
"Wolverhampton City Council","http://opendatacommunities.org/id/metropolitan-district-council/wolverhampton","Blue Group Interntl Limited T/A Bluecare","HSOC5532866","1,332.00","Agency Staff","130101463","20/01/16","Children in Need & Child Protection","CIN - Warstones MAST - Area 4","R1100"
"Wolverhampton City Council","http://opendatacommunities.org/id/metropolitan-district-council/wolverhampton","Blue Group Interntl Limited T/A Bluecare","HSOC5516647","1,480.00","Agency Staff","130101810","20/01/16","Children in Need & Child Protection","CIN - Graisley MAST - Area 3","R1100"
"Wolverhampton City Council","http://opendatacommunities.org/id/metropolitan-district-council/wolverhampton","Blue Group Interntl Limited T/A Bluecare","HSOC5528427","1,332.00","Agency Staff","130098589","06/01/16","Children in Need & Child Protection","CIN - Warstones MAST - Area 4","R1100"
"Wolverhampton City Council","http://opendatacommunities.org/id/metropolitan-district-council/wolverhampton","Blue Group Interntl Limited T/A Bluecare","HSOC5528825","13.95","Agency Staff","130099074","06/01/16","Looked After Children","Fostering Team & Allowances","R1100"
"Wolverhampton City Council","http://opendatacommunities.org/id/metropolitan-district-council/wolverhampton","Blue Group Interntl Limited T/A Bluecare","HSOC5528824","1,110.00","Agency Staff","130099073","06/01/16","Looked After Children","Fostering Team & Allowances","R1100"
"Wolverhampton City Council","http://opendatacommunities.org/id/metropolitan-district-council/wolverhampton","Blue Group Interntl Limited T/A Bluecare","HSOC5529550","1,258.00","Agency Staff","130099576","06/01/16","Children in Need & Child Protection","CIN Agency","R1100"
"Wolverhampton City Council","http://opendatacommunities.org/id/metropolitan-district-council/wolverhampton","Blue Group Interntl Limited T/A Bluecare","HSOC5528822","1,369.00","Agency Staff","130099071","06/01/16","Children in Need & Child Protection","CIN Agency","R1100"
"Wolverhampton City Council","http://opendatacommunities.org/id/metropolitan-district-council/wolverhampton","Blue Group Interntl Limited T/A Bluecare","HSOC5528826","1,369.00","Agency Staff","130099075","06/01/16","Children in Need & Child Protection","CIN Agency","R1100"
"Wolverhampton City Council","http://opendatacommunities.org/id/metropolitan-district-council/wolverhampton","Blue Group Interntl Limited T/A Bluecare","HSOC5528823","16.65","Agency Staff","130099072","06/01/16","Children in Need & Child Protection","CIN Agency","R1100"
"Wolverhampton City Council","http://opendatacommunities.org/id/metropolitan-district-council/wolverhampton","Blue Group Interntl Limited T/A Bluecare","HSOC5528827","12.75","Agency Staff","130099076","06/01/16","Children in Need & Child Protection","CIN Agency","R1100"
"Wolverhampton City Council","http://opendatacommunities.org/id/metropolitan-district-council/wolverhampton","Blue Group Interntl Limited T/A Bluecare","HSOC5528426","1,350.50","Agency Staff","130098588","06/01/16","Looked After Children","Adoption and Residence Team & Allowances","R1100"
"Wolverhampton City Council","http://opendatacommunities.org/id/metropolitan-district-council/wolverhampton","Blue Group Interntl Limited T/A Bluecare","HSOC5522301","1,020.00","Agency Staff","130101812","06/01/16","Children in Need & Child Protection","CIN Agency","R1100"
"Wolverhampton City Council","http://opendatacommunities.org/id/metropolitan-district-council/wolverhampton","Blue Group Interntl Limited T/A Bluecare","HSOC5528828","1,369.00","Agency Staff","130099077","06/01/16","Children in Need & Child Protection","CIN Agency","R1100"
"Wolverhampton City Council","http://opendatacommunities.org/id/metropolitan-district-council/wolverhampton","Blue Group Interntl Limited T/A Bluecare","HSOC5514583","1,184.00","Agency Staff","130101711","13/01/16","Children in Need & Child Protection","Eastfield 2 - CIN  Social Work Unit - S17","R1100"
"Wolverhampton City Council","http://opendatacommunities.org/id/metropolitan-district-council/wolverhampton","Blue Group Interntl Limited T/A Bluecare","HSOC5530620","1,369.00","Agency Staff","130100085","13/01/16","Children in Need & Child Protection","CIN Agency","R1100"
"Wolverhampton City Council","http://opendatacommunities.org/id/metropolitan-district-council/wolverhampton","Blue Group Interntl Limited T/A Bluecare","HSOC5530618","1,369.00","Agency Staff","130100083","13/01/16","Children in Need & Child Protection","CIN Agency","R1100"
"Wolverhampton City Council","http://opendatacommunities.org/id/metropolitan-district-council/wolverhampton","Blue Group Interntl Limited T/A Bluecare","HSOC5530616","1,110.00","Agency Staff","130100081","13/01/16","Looked After Children","Fostering Team & Allowances","R1100"
"Wolverhampton City Council","http://opendatacommunities.org/id/metropolitan-district-council/wolverhampton","Blue Group Interntl Limited T/A Bluecare","HSOC5530617","45.00","Agency Staff","130100082","13/01/16","Looked After Children","Fostering Team & Allowances","R1100"
"Wolverhampton City Council","http://opendatacommunities.org/id/metropolitan-district-council/wolverhampton","Blue Group Interntl Limited T/A Bluecare","HSOC5531330","31.50","Agency Staff","130100528","13/01/16","Children in Need & Child Protection","CIN - Warstones MAST - Area 4","R1100"
"Wolverhampton City Council","http://opendatacommunities.org/id/metropolitan-district-council/wolverhampton","Blue Group Interntl Limited T/A Bluecare","HSOC5531329","98.42","Agency Staff","130100527","13/01/16","Children in Need & Child Protection","CIN - Warstones MAST - Area 4","R1100"
"Wolverhampton City Council","http://opendatacommunities.org/id/metropolitan-district-council/wolverhampton","Blue Group Interntl Limited T/A Bluecare","HSOC5530619","4.05","Agency Staff","130100084","13/01/16","Children in Need & Child Protection","CIN Agency","R1100"
"Wolverhampton City Council","http://opendatacommunities.org/id/metropolitan-district-council/wolverhampton","Blue Mountain Foods Limited","6603","322.00","Provisions (Resale)","130101212","20/01/16","Catering","Meals on Wheels","R4102"
"Wolverhampton City Council","http://opendatacommunities.org/id/metropolitan-district-council/wolverhampton","Blue Mountain Foods Limited","6605","19.00","Provisions (Resale)","130101214","20/01/16","Catering","Education Catering - General Overheads","R4102"
"Wolverhampton City Council","http://opendatacommunities.org/id/metropolitan-district-council/wolverhampton","Blue Mountain Foods Limited","6606","38.00","Provisions (Resale)","130101215","20/01/16","Catering","Education Catering - General Overheads","R4102"
"Wolverhampton City Council","http://opendatacommunities.org/id/metropolitan-district-council/wolverhampton","Blue Mountain Foods Limited","6604","76.00","Provisions (Resale)","130101213","20/01/16","Catering","Education Catering - General Overheads","R4102"
"Wolverhampton City Council","http://opendatacommunities.org/id/metropolitan-district-council/wolverhampton","Blue Mountain Foods Limited","6607","76.00","Provisions (Resale)","130101216","20/01/16","Catering","Education Catering - General Overheads","R4102"
"Wolverhampton City Council","http://opendatacommunities.org/id/metropolitan-district-council/wolverhampton","Blue Mountain Foods Limited","6608","114.00","Provisions (Resale)","130101217","20/01/16","Catering","Education Catering - General Overheads","R4102"
"Wolverhampton City Council","http://opendatacommunities.org/id/metropolitan-district-council/wolverhampton","BME Travel","1614","1,400.00","Client Transport","130101643","13/01/16","School Planning & Resources","Special - Transport","R3042"
"Wolverhampton City Council","http://opendatacommunities.org/id/metropolitan-district-council/wolverhampton","Boc Limited","3033447741","126.27","Equipment - Purchase","130101386","08/01/16","Visitor Economy","Catering Overhead Account","R4000"
"Wolverhampton City Council","http://opendatacommunities.org/id/metropolitan-district-council/wolverhampton","Boc Limited","3033624427","164.37","Equipment - Purchase","130101914","27/01/16","Visitor Economy","Catering Overhead Account","R4000"
"Wolverhampton City Council","http://opendatacommunities.org/id/metropolitan-district-council/wolverhampton","Boc Limited","3033569082","78.78","Equipment - Purchase","130101913","27/01/16","Visitor Economy","Catering Overhead Account","R4000"
"Wolverhampton City Council","http://opendatacommunities.org/id/metropolitan-district-council/wolverhampton","Boc Limited","3033476796","316.90","Equipment - Purchase","130101539","13/01/16","Visitor Economy","Catering Overhead Account","R4000"
"Wolverhampton City Council","http://opendatacommunities.org/id/metropolitan-district-council/wolverhampton","Booker Cash & Carry Limited","0388456","298.94","Provisions (Resale)","130098671","15/01/16","Visitor Economy","Catering Overhead Account","R4102"
"Wolverhampton City Council","http://opendatacommunities.org/id/metropolitan-district-council/wolverhampton","Booker Cash & Carry Limited","0388456","-298.94","Provisions (Resale)","130098671","15/01/16","Visitor Economy","Catering Overhead Account","R4102"
"Wolverhampton City Council","http://opendatacommunities.org/id/metropolitan-district-council/wolverhampton","Booker Cash & Carry Limited","0388456","298.94","Provisions (Resale)","130098671","15/01/16","Visitor Economy","Catering Overhead Account","R4102"
"Wolverhampton City Council","http://opendatacommunities.org/id/metropolitan-district-council/wolverhampton","Booker Cash & Carry Limited","0431530","712.09","Provisions (Resale)","130098674","08/01/16","Visitor Economy","Catering Overhead Account","R4102"
"Wolverhampton City Council","http://opendatacommunities.org/id/metropolitan-district-council/wolverhampton","Booker Cash & Carry Limited","0201145","811.83","Provisions (Resale)","130098668","08/01/16","Visitor Economy","Catering Overhead Account","R4102"
"Wolverhampton City Council","http://opendatacommunities.org/id/metropolitan-district-council/wolverhampton","Booker Cash & Carry Limited","0201145","-811.83","Provisions (Resale)","130098668","08/01/16","Visitor Economy","Catering Overhead Account","R4102"
"Wolverhampton City Council","http://opendatacommunities.org/id/metropolitan-district-council/wolverhampton","Booker Cash & Carry Limited","0201145","228.16","Provisions (Resale)","130098668","08/01/16","Visitor Economy","Catering Overhead Account","R4102"
"Wolverhampton City Council","http://opendatacommunities.org/id/metropolitan-district-council/wolverhampton","Booker Cash & Carry Limited","0201145","583.67","Provisions (Resale)","130098668","08/01/16","Visitor Economy","Catering Overhead Account","R4102"
"Wolverhampton City Council","http://opendatacommunities.org/id/metropolitan-district-council/wolverhampton","Booker Cash & Carry Limited","0201549","283.32","Provisions (Resale)","130098669","08/01/16","Visitor Economy","Catering Overhead Account","R4102"
"Wolverhampton City Council","http://opendatacommunities.org/id/metropolitan-district-council/wolverhampton","Booker Cash & Carry Limited","0201549","-283.32","Provisions (Resale)","130098669","08/01/16","Visitor Economy","Catering Overhead Account","R4102"
"Wolverhampton City Council","http://opendatacommunities.org/id/metropolitan-district-council/wolverhampton","Booker Cash & Carry Limited","0201549","39.94","Provisions (Resale)","130098669","08/01/16","Visitor Economy","Catering Overhead Account","R4102"
"Wolverhampton City Council","http://opendatacommunities.org/id/metropolitan-district-council/wolverhampton","Booker Cash & Carry Limited","0201549","243.38","Provisions (Resale)","130098669","08/01/16","Visitor Economy","Catering Overhead Account","R4102"
"Wolverhampton City Council","http://opendatacommunities.org/id/metropolitan-district-council/wolverhampton","Booker Cash & Carry Limited","0388901","820.25","Provisions (Resale)","130098670","08/01/16","Visitor Economy","Catering Overhead Account","R4102"
"Wolverhampton City Council","http://opendatacommunities.org/id/metropolitan-district-council/wolverhampton","Booker Cash & Carry Limited","0388901","-820.25","Provisions (Resale)","130098670","08/01/16","Visitor Economy","Catering Overhead Account","R4102"
"Wolverhampton City Council","http://opendatacommunities.org/id/metropolitan-district-council/wolverhampton","Booker Cash & Carry Limited","0388901","819.07","Provisions (Resale)","130098670","08/01/16","Visitor Economy","Catering Overhead Account","R4102"
"Wolverhampton City Council","http://opendatacommunities.org/id/metropolitan-district-council/wolverhampton","Booker Cash & Carry Limited","0388901","1.18","Provisions (Resale)","130098670","08/01/16","Visitor Economy","Catering Overhead Account","R4102"
"Wolverhampton City Council","http://opendatacommunities.org/id/metropolitan-district-council/wolverhampton","Booker Cash & Carry Limited","0390163.","530.44","Provisions (Resale)","130103481","27/01/16","Visitor Economy","Catering Overhead Account","R4102"
"Wolverhampton City Council","http://opendatacommunities.org/id/metropolitan-district-council/wolverhampton","Booker Cash & Carry Limited","0390163.","-530.44","Provisions (Resale)","130103481","27/01/16","Visitor Economy","Catering Overhead Account","R4102"
"Wolverhampton City Council","http://opendatacommunities.org/id/metropolitan-district-council/wolverhampton","Booker Cash & Carry Limited","0390163.","500.20","Provisions (Resale)","130103481","27/01/16","Visitor Economy","Catering Overhead Account","R4102"
"Wolverhampton City Council","http://opendatacommunities.org/id/metropolitan-district-council/wolverhampton","Booker Cash & Carry Limited","0390163.","30.24","Provisions (Resale)","130103481","27/01/16","Visitor Economy","Catering Overhead Account","R4102"
"Wolverhampton City Council","http://opendatacommunities.org/id/metropolitan-district-council/wolverhampton","Booker Cash & Carry Limited","0431361","363.80","Provisions (Resale)","130098673","13/01/16","Visitor Economy","Catering Overhead Account","R4102"
"Wolverhampton City Council","http://opendatacommunities.org/id/metropolitan-district-council/wolverhampton","Booker Cash & Carry Limited","0431361","-363.80","Provisions (Resale)","130098673","13/01/16","Visitor Economy","Catering Overhead Account","R4102"
"Wolverhampton City Council","http://opendatacommunities.org/id/metropolitan-district-council/wolverhampton","Booker Cash & Carry Limited","0431361","278.77","Provisions (Resale)","130098673","13/01/16","Visitor Economy","Catering Overhead Account","R4102"
"Wolverhampton City Council","http://opendatacommunities.org/id/metropolitan-district-council/wolverhampton","Booker Cash & Carry Limited","0431361","85.03","Provisions (Resale)","130098673","13/01/16","Visitor Economy","Catering Overhead Account","R4102"
"Wolverhampton City Council","http://opendatacommunities.org/id/metropolitan-district-council/wolverhampton","Booker Cash & Carry Limited","0430418","296.16","Provisions (Resale)","130098672","13/01/16","Visitor Economy","Catering Overhead Account","R4102"
"Wolverhampton City Council","http://opendatacommunities.org/id/metropolitan-district-council/wolverhampton","Booker Cash & Carry Limited","0430418","185.27","Provisions (Resale)","130098672","13/01/16","Visitor Economy","Catering Overhead Account","R4102"
"Wolverhampton City Council","http://opendatacommunities.org/id/metropolitan-district-council/wolverhampton","Booker Cash & Carry Limited","0388438","328.37","Provisions (Resale)","130098890","13/01/16","Visitor Economy","Catering Overhead Account","R4102"
"Wolverhampton City Council","http://opendatacommunities.org/id/metropolitan-district-council/wolverhampton","Booker Cash & Carry Limited","0388438","-328.37","Provisions (Resale)","130098890","13/01/16","Visitor Economy","Catering Overhead Account","R4102"
"Wolverhampton City Council","http://opendatacommunities.org/id/metropolitan-district-council/wolverhampton","Booker Cash & Carry Limited","0388438","199.88","Provisions (Resale)","130098890","13/01/16","Visitor Economy","Catering Overhead Account","R4102"
"Wolverhampton City Council","http://opendatacommunities.org/id/metropolitan-district-council/wolverhampton","Booker Cash & Carry Limited","0388438","128.49","Provisions (Resale)","130098890","13/01/16","Visitor Economy","Catering Overhead Account","R4102"
"Wolverhampton City Council","http://opendatacommunities.org/id/metropolitan-district-council/wolverhampton","Booker Cash & Carry Limited","0431531","81.06","Provisions (Resale)","130102009","13/01/16","Visitor Economy","Catering Overhead Account","R4102"
"Wolverhampton City Council","http://opendatacommunities.org/id/metropolitan-district-council/wolverhampton","Booker Cash & Carry Limited","0431531","-81.06","Provisions (Resale)","130102009","13/01/16","Visitor Economy","Catering Overhead Account","R4102"
"Wolverhampton City Council","http://opendatacommunities.org/id/metropolitan-district-council/wolverhampton","Booker Cash & Carry Limited","0431531","81.06","Provisions (Resale)","130102009","13/01/16","Visitor Economy","Catering Overhead Account","R4102"
"Wolverhampton City Council","http://opendatacommunities.org/id/metropolitan-district-council/wolverhampton","Booker Cash & Carry Limited","0430418","481.43","Provisions (Resale)","130098672","13/01/16","Visitor Economy","Catering Overhead Account","R4102"
"Wolverhampton City Council","http://opendatacommunities.org/id/metropolitan-district-council/wolverhampton","Booker Cash & Carry Limited","0430418","-481.43","Provisions (Resale)","130098672","13/01/16","Visitor Economy","Catering Overhead Account","R4102"
"Wolverhampton City Council","http://opendatacommunities.org/id/metropolitan-district-council/wolverhampton","Booker Cash & Carry Limited","0389649","1,121.37","Provisions (Resale)","130101339","13/01/16","Visitor Economy","Catering Overhead Account","R4102"
"Wolverhampton City Council","http://opendatacommunities.org/id/metropolitan-district-council/wolverhampton","Booker Cash & Carry Limited","0389649","-1,121.37","Provisions (Resale)","130101339","13/01/16","Visitor Economy","Catering Overhead Account","R4102"
"Wolverhampton City Council","http://opendatacommunities.org/id/metropolitan-district-council/wolverhampton","Booker Cash & Carry Limited","0389649","1,095.31","Provisions (Resale)","130101339","13/01/16","Visitor Economy","Catering Overhead Account","R4102"
"Wolverhampton City Council","http://opendatacommunities.org/id/metropolitan-district-council/wolverhampton","Booker Cash & Carry Limited","0389649","26.06","Provisions (Resale)","130101339","13/01/16","Visitor Economy","Catering Overhead Account","R4102"
"Wolverhampton City Council","http://opendatacommunities.org/id/metropolitan-district-council/wolverhampton","Booker Cash & Carry Limited","0389008","7.17","Provisions (Resale)","130099939","13/01/16","Visitor Economy","Catering Overhead Account","R4102"
"Wolverhampton City Council","http://opendatacommunities.org/id/metropolitan-district-council/wolverhampton","Booker Cash & Carry Limited","0389008","111.59","Provisions (Resale)","130099939","13/01/16","Visitor Economy","Catering Overhead Account","R4102"
"Wolverhampton City Council","http://opendatacommunities.org/id/metropolitan-district-council/wolverhampton","Booker Cash & Carry Limited","0202796","1,640.40","Provisions (Resale)","130099937","13/01/16","Visitor Economy","Catering Overhead Account","R4102"
"Wolverhampton City Council","http://opendatacommunities.org/id/metropolitan-district-council/wolverhampton","Booker Cash & Carry Limited","0202599","497.94","Provisions (Resale)","130099936","13/01/16","Visitor Economy","Catering Overhead Account","R4102"
"Wolverhampton City Council","http://opendatacommunities.org/id/metropolitan-district-council/wolverhampton","Boots UK Ltd","EHC VAT Q3 High Street","1.25","TPP - Public Health Contracts","190198388","22/01/16","Contracts","Sexual Health","R5060"
"Wolverhampton City Council","http://opendatacommunities.org/id/metropolitan-district-council/wolverhampton","Boots UK Ltd","EHC VAT Q3 Blackhalve","4.08","TPP - Public Health Contracts","190198385","22/01/16","Contracts","Sexual Health","R5060"
"Wolverhampton City Council","http://opendatacommunities.org/id/metropolitan-district-council/wolverhampton","Boots UK Ltd","EHC VAT Q3 Bilston","20.69","TPP - Public Health Contracts","190198386","22/01/16","Contracts","Sexual Health","R5060"
"Wolverhampton City Council","http://opendatacommunities.org/id/metropolitan-district-council/wolverhampton","Boots UK Ltd","EHC VAT Q3 Bentley","6.27","TPP - Public Health Contracts","190198384","22/01/16","Contracts","Sexual Health","R5060"
"Wolverhampton City Council","http://opendatacommunities.org/id/metropolitan-district-council/wolverhampton","Boots UK Ltd","EHC VAT Q3 Dudley St","86.21","TPP - Public Health Contracts","190198387","22/01/16","Contracts","Sexual Health","R5060"
"Wolverhampton City Council","http://opendatacommunities.org/id/metropolitan-district-council/wolverhampton","Boots UK Ltd","SMSCOMQ Q32015 140","350.00","TPP - Public Health Contracts","190199964","29/01/16","Contracts","Alcohol and Drug","R5060"
"Wolverhampton City Council","http://opendatacommunities.org/id/metropolitan-district-council/wolverhampton","Boots UK Ltd","SMNEPIQ Q32015 989","989.00","TPP - Public Health Contracts","190199958","29/01/16","Contracts","Alcohol and Drug","R5060"
"Wolverhampton City Council","http://opendatacommunities.org/id/metropolitan-district-council/wolverhampton","Boots UK Ltd","SMNEPRQ Q32015 42","21.00","TPP - Public Health Contracts","190199963","29/01/16","Contracts","Alcohol and Drug","R5060"
"Wolverhampton City Council","http://opendatacommunities.org/id/metropolitan-district-council/wolverhampton","Boots UK Ltd","SMNEPRQ Q32015 354","177.00","TPP - Public Health Contracts","190199959","29/01/16","Contracts","Alcohol and Drug","R5060"
"Wolverhampton City Council","http://opendatacommunities.org/id/metropolitan-district-council/wolverhampton","Boots UK Ltd","SMNEPIQ Q32015 104","104.00","TPP - Public Health Contracts","190199962","29/01/16","Contracts","Alcohol and Drug","R5060"
"Wolverhampton City Council","http://opendatacommunities.org/id/metropolitan-district-council/wolverhampton","Boots UK Ltd","SMSCOSQ Q32015 45","135.00","TPP - Public Health Contracts","190199965","29/01/16","Contracts","Alcohol and Drug","R5060"
"Wolverhampton City Council","http://opendatacommunities.org/id/metropolitan-district-council/wolverhampton","Boots UK Ltd","SMSCOMQ Q32015 1868","4,670.00","TPP - Public Health Contracts","190199960","29/01/16","Contracts","Alcohol and Drug","R5060"
"Wolverhampton City Council","http://opendatacommunities.org/id/metropolitan-district-council/wolverhampton","Boots UK Ltd","SMSCOSQ Q32015 602","1,806.00","TPP - Public Health Contracts","190199961","29/01/16","Contracts","Alcohol and Drug","R5060"
"Wolverhampton City Council","http://opendatacommunities.org/id/metropolitan-district-council/wolverhampton","Boots UK Ltd","HLNRTPQ Q32015 40.49","40.49","TPP - Public Health Contracts","190200063","29/01/16","Contracts","Healthy Lifestyles","R5060"
"Wolverhampton City Council","http://opendatacommunities.org/id/metropolitan-district-council/wolverhampton","Boots UK Ltd","HLNRTPQ Q32015 269.72","269.72","TPP - Public Health Contracts","190200058","29/01/16","Contracts","Healthy Lifestyles","R5060"
"Wolverhampton City Council","http://opendatacommunities.org/id/metropolitan-district-council/wolverhampton","Boots UK Ltd","HLNRTPQ Q32015 43.58","43.58","TPP - Public Health Contracts","190200065","29/01/16","Contracts","Healthy Lifestyles","R5060"
"Wolverhampton City Council","http://opendatacommunities.org/id/metropolitan-district-council/wolverhampton","Boots UK Ltd","HLNRTPQ Q32015 51.88","51.88","TPP - Public Health Contracts","190200064","29/01/16","Contracts","Healthy Lifestyles","R5060"
"Wolverhampton City Council","http://opendatacommunities.org/id/metropolitan-district-council/wolverhampton","Boots UK Ltd","HLNRTPQ Q32015 183.64","183.64","TPP - Public Health Contracts","190200055","29/01/16","Contracts","Healthy Lifestyles","R5060"
"Wolverhampton City Council","http://opendatacommunities.org/id/metropolitan-district-council/wolverhampton","Boots UK Ltd","HLNRTPQ Q22015 25.94","25.94","TPP - Public Health Contracts","190200059","29/01/16","Contracts","Healthy Lifestyles","R5060"
"Wolverhampton City Council","http://opendatacommunities.org/id/metropolitan-district-council/wolverhampton","Boots UK Ltd","HLNRTPQ Q32015 26.55","26.55","TPP - Public Health Contracts","190200061","29/01/16","Contracts","Healthy Lifestyles","R5060"
"Wolverhampton City Council","http://opendatacommunities.org/id/metropolitan-district-council/wolverhampton","Boots UK Ltd","HLNRTPQ Q32015 27.52","27.52","TPP - Public Health Contracts","190200062","29/01/16","Contracts","Healthy Lifestyles","R5060"
"Wolverhampton City Council","http://opendatacommunities.org/id/metropolitan-district-council/wolverhampton","Boots UK Ltd","HLNRTPQ Q22015 105.65","105.65","TPP - Public Health Contracts","190200057","29/01/16","Contracts","Healthy Lifestyles","R5060"
"Wolverhampton City Council","http://opendatacommunities.org/id/metropolitan-district-council/wolverhampton","Boots UK Ltd","HLNRTPQ Q32015 67.66","67.66","TPP - Public Health Contracts","190200056","29/01/16","Contracts","Healthy Lifestyles","R5060"
"Wolverhampton City Council","http://opendatacommunities.org/id/metropolitan-district-council/wolverhampton","Boots UK Ltd","HLNRTPQ Q22015 12.97","12.97","TPP - Public Health Contracts","190200060","29/01/16","Contracts","Healthy Lifestyles","R5060"
"Wolverhampton City Council","http://opendatacommunities.org/id/metropolitan-district-council/wolverhampton","Boots UK Ltd","HLNRTPQ Q32015 195.25","195.25","TPP - Public Health Contracts","190200066","29/01/16","Contracts","Healthy Lifestyles","R5060"
"Wolverhampton City Council","http://opendatacommunities.org/id/metropolitan-district-council/wolverhampton","Boots UK Ltd","SHEHCLQ Q32015 fh473","125.40","TPP - Public Health Contracts","190193693","13/01/16","Contracts","Sexual Health","R5060"
"Wolverhampton City Council","http://opendatacommunities.org/id/metropolitan-district-council/wolverhampton","Boots UK Ltd","SHEHCLQ Q32015 FLC50","413.82","TPP - Public Health Contracts","190193696","13/01/16","Contracts","Sexual Health","R5060"
"Wolverhampton City Council","http://opendatacommunities.org/id/metropolitan-district-council/wolverhampton","Boots UK Ltd","SHEHCC24Q Q32015 fd642","41.92","TPP - Public Health Contracts","190193697","13/01/16","Contracts","Sexual Health","R5060"
"Wolverhampton City Council","http://opendatacommunities.org/id/metropolitan-district-council/wolverhampton","Boots UK Ltd","SHEHCC24Q Q32015 fh473","31.44","TPP - Public Health Contracts","190193691","13/01/16","Contracts","Sexual Health","R5060"
"Wolverhampton City Council","http://opendatacommunities.org/id/metropolitan-district-council/wolverhampton","Boots UK Ltd","SHEHCC25Q Q32015 fh473","178.16","TPP - Public Health Contracts","190193692","13/01/16","Contracts","Sexual Health","R5060"
"Wolverhampton City Council","http://opendatacommunities.org/id/metropolitan-district-council/wolverhampton","Boots UK Ltd","SHEHCC24Q Q32015 FLC50","94.32","TPP - Public Health Contracts","190193694","13/01/16","Contracts","Sexual Health","R5060"
"Wolverhampton City Council","http://opendatacommunities.org/id/metropolitan-district-council/wolverhampton","Boots UK Ltd","SHEHCC25Q Q32015 fd642","94.32","TPP - Public Health Contracts","190193698","13/01/16","Contracts","Sexual Health","R5060"
"Wolverhampton City Council","http://opendatacommunities.org/id/metropolitan-district-council/wolverhampton","Boots UK Ltd","SHEHCC25Q Q32015 FLC50","576.40","TPP - Public Health Contracts","190193695","13/01/16","Contracts","Sexual Health","R5060"
"Wolverhampton City Council","http://opendatacommunities.org/id/metropolitan-district-council/wolverhampton","Boots UK Ltd","SHEHCC24Q Q32015 FC454","10.48","TPP - Public Health Contracts","190193704","13/01/16","Contracts","Sexual Health","R5060"
"Wolverhampton City Council","http://opendatacommunities.org/id/metropolitan-district-council/wolverhampton","Boots UK Ltd","SHEHCC25Q Q32015 fky89","1,058.48","TPP - Public Health Contracts","190193702","13/01/16","Contracts","Sexual Health","R5060"
"Wolverhampton City Council","http://opendatacommunities.org/id/metropolitan-district-council/wolverhampton","Boots UK Ltd","SHEHCC16Q Q32015 fky89","73.36","TPP - Public Health Contracts","190193700","13/01/16","Contracts","Sexual Health","R5060"
"Wolverhampton City Council","http://opendatacommunities.org/id/metropolitan-district-council/wolverhampton","Boots UK Ltd","SHEHCLQ Q32015 FC454","25.08","TPP - Public Health Contracts","190193706","13/01/16","Contracts","Sexual Health","R5060"
"Wolverhampton City Council","http://opendatacommunities.org/id/metropolitan-district-council/wolverhampton","Boots UK Ltd","SHEHCC24Q Q32015 fky89","1,771.12","TPP - Public Health Contracts","190193701","13/01/16","Contracts","Sexual Health","R5060"
"Wolverhampton City Council","http://opendatacommunities.org/id/metropolitan-district-council/wolverhampton","Boots UK Ltd","SHEHCLQ Q32015 fky89","1,724.25","TPP - Public Health Contracts","190193703","13/01/16","Contracts","Sexual Health","R5060"
"Wolverhampton City Council","http://opendatacommunities.org/id/metropolitan-district-council/wolverhampton","Boots UK Ltd","SHEHCC25Q Q32015 FC454","31.44","TPP - Public Health Contracts","190193705","13/01/16","Contracts","Sexual Health","R5060"
"Wolverhampton City Council","http://opendatacommunities.org/id/metropolitan-district-council/wolverhampton","Boots UK Ltd","SHEHCLQ Q32015 fd642","81.51","TPP - Public Health Contracts","190193699","13/01/16","Contracts","Sexual Health","R5060"
"Wolverhampton City Council","http://opendatacommunities.org/id/metropolitan-district-council/wolverhampton","Boulton Travel Limited","BTWCBM4.4","1,330.00","Client Transport","130100747","13/01/16","School Planning & Resources","Special - Transport","R3042"
"Wolverhampton City Council","http://opendatacommunities.org/id/metropolitan-district-council/wolverhampton","Boulton Travel Limited","BTWCBM5.4","1,220.00","Client Transport","130100748","13/01/16","School Planning & Resources","Special - Transport","R3042"
"Wolverhampton City Council","http://opendatacommunities.org/id/metropolitan-district-council/wolverhampton","Boulton Travel Limited","BTWCBM3.4","1,300.00","Client Transport","130100746","13/01/16","School Planning & Resources","Special - Transport","R3042"
"Wolverhampton City Council","http://opendatacommunities.org/id/metropolitan-district-council/wolverhampton","Boulton Travel Limited","BTWCBM1.4","1,330.00","Client Transport","130101583","13/01/16","School Planning & Resources","Special - Transport","R3042"
"Wolverhampton City Council","http://opendatacommunities.org/id/metropolitan-district-council/wolverhampton","Bradley Environmental Consultant Limited","91566","400.00","Training Expenses","130104623","27/01/16","Audit Services","Site Management Health & Safety","R1650"
"Wolverhampton City Council","http://opendatacommunities.org/id/metropolitan-district-council/wolverhampton","Bradmore Community Association","1554","66.00","Room Hire","130103680","20/01/16","Community Safety","SWP - Locations","R2201"
"Wolverhampton City Council","http://opendatacommunities.org/id/metropolitan-district-council/wolverhampton","Braitch Solicitors","HAKP","850.00","Services - Professional Fees","130099070","15/01/16","Children in Need & Child Protection","Graisley - CIN  Social Work Unit - S17","R4400"
"Wolverhampton City Council","http://opendatacommunities.org/id/metropolitan-district-council/wolverhampton","Braitch Solicitors","HAKP","-850.00","Services - Professional Fees","130099070","15/01/16","Children in Need & Child Protection","Graisley - CIN  Social Work Unit - S17","R4400"
"Wolverhampton City Council","http://opendatacommunities.org/id/metropolitan-district-council/wolverhampton","Braitch Solicitors","HAKP","850.00","Services - Professional Fees","130099070","15/01/16","Children in Need & Child Protection","Graisley - CIN  Social Work Unit - S17","R4400"
"Wolverhampton City Council","http://opendatacommunities.org/id/metropolitan-district-council/wolverhampton","Braitch Solicitors","DSKP13082","550.00","Services - Professional Fees","130101128","06/01/16","Children in Need & Child Protection","CIN - Alfred Squire Square MAST - Area 8","R4400"
"Wolverhampton City Council","http://opendatacommunities.org/id/metropolitan-district-council/wolverhampton","Braitch Solicitors","DSKP13082","-550.00","Services - Professional Fees","130101128","06/01/16","Children in Need & Child Protection","CIN - Alfred Squire Square MAST - Area 8","R4400"
"Wolverhampton City Council","http://opendatacommunities.org/id/metropolitan-district-council/wolverhampton","Braitch Solicitors","DSKP13082","550.00","Services - Professional Fees","130101128","06/01/16","Children in Need & Child Protection","CIN - Alfred Squire Square MAST - Area 8","R4400"
"Wolverhampton City Council","http://opendatacommunities.org/id/metropolitan-district-council/wolverhampton","Braitch Solicitors","P11283220160111","1,399.00","Services - Professional Fees","190193314","13/01/16","Looked After Children","LAC Transitions Team","R4400"
"Wolverhampton City Council","http://opendatacommunities.org/id/metropolitan-district-council/wolverhampton","Brakes/Brakefresh","9237696767","25.99","Provisions (Not for resale)","130100323","20/01/16","Catering","Civic Centre Catering","R4101"
"Wolverhampton City Council","http://opendatacommunities.org/id/metropolitan-district-council/wolverhampton","Brakes/Brakefresh","9237701792","121.24","Provisions (Not for resale)","130101417","20/01/16","Catering","Civic Centre Catering","R4101"
"Wolverhampton City Council","http://opendatacommunities.org/id/metropolitan-district-council/wolverhampton","Brakes/Brakefresh","9237701792","-121.24","Provisions (Not for resale)","130101417","20/01/16","Catering","Civic Centre Catering","R4101"
"Wolverhampton City Council","http://opendatacommunities.org/id/metropolitan-district-council/wolverhampton","Brakes/Brakefresh","9237690268","9.34","Provisions (Not for resale)","130100321","20/01/16","Catering","Civic Centre Catering","R4101"
"Wolverhampton City Council","http://opendatacommunities.org/id/metropolitan-district-council/wolverhampton","Brakes/Brakefresh","9237693308","51.92","Provisions (Not for resale)","130100322","20/01/16","Catering","Civic Centre Catering","R4101"
"Wolverhampton City Council","http://opendatacommunities.org/id/metropolitan-district-council/wolverhampton","Brakes/Brakefresh","9237701792","112.72","Provisions (Not for resale)","130101417","20/01/16","Catering","Civic Centre Catering","R4101"
"Wolverhampton City Council","http://opendatacommunities.org/id/metropolitan-district-council/wolverhampton","Brakes/Brakefresh","9237701792","8.52","Provisions (Not for resale)","130101417","20/01/16","Catering","Civic Centre Catering","R4101"
"Wolverhampton City Council","http://opendatacommunities.org/id/metropolitan-district-council/wolverhampton","Brakes/Brakefresh","54630249","19.12","Provisions (Not for resale)","130100281","06/01/16","Catering","Civic Centre Catering","R4101"
"Wolverhampton City Council","http://opendatacommunities.org/id/metropolitan-district-council/wolverhampton","Brakes/Brakefresh","9237678577","97.59","Provisions (Not for resale)","130099560","13/01/16","Catering","Civic Centre Catering","R4101"
"Wolverhampton City Council","http://opendatacommunities.org/id/metropolitan-district-council/wolverhampton","Brakes/Brakefresh","9237688323","48.74","Provisions (Not for resale)","130100320","13/01/16","Catering","Civic Centre Catering","R4101"
"Wolverhampton City Council","http://opendatacommunities.org/id/metropolitan-district-council/wolverhampton","Brakes/Brakefresh","9237681943","103.02","Provisions (Not for resale)","130100319","13/01/16","Catering","Civic Centre Catering","R4101"
"Wolverhampton City Council","http://opendatacommunities.org/id/metropolitan-district-council/wolverhampton","Brakes/Brakefresh","9237680184","520.40","Provisions (Not for resale)","130099561","13/01/16","Catering","Civic Centre Catering","R4101"
"Wolverhampton City Council","http://opendatacommunities.org/id/metropolitan-district-council/wolverhampton","Brakes/Brakefresh","9237673944","163.56","Provisions (Not for resale)","130099841","13/01/16","Catering","Civic Centre Catering","R4101"
"Wolverhampton City Council","http://opendatacommunities.org/id/metropolitan-district-council/wolverhampton","Briggs Equiptment UK Limited","107051230","1,239.99","Hire of Vehicles","130101164","06/01/16","Markets","Wholesale Market Facilities Management","R3200"
"Wolverhampton City Council","http://opendatacommunities.org/id/metropolitan-district-council/wolverhampton","Bristol City Council","8002845148","440.00","Materials","130102728","27/01/16","Environmental Maintenance","Ground Maintenance East","R4007"
"Wolverhampton City Council","http://opendatacommunities.org/id/metropolitan-district-council/wolverhampton","Bristow & Sutor","161134","-110.46","Services - Professional Fees","130101642","22/01/16","Revenues & Benefits","Revenues","R4400"
"Wolverhampton City Council","http://opendatacommunities.org/id/metropolitan-district-council/wolverhampton","Bristow & Sutor","161117","1,076.19","Services - Professional Fees","130101641","22/01/16","Revenues & Benefits","Revenues","R4400"
"Wolverhampton City Council","http://opendatacommunities.org/id/metropolitan-district-council/wolverhampton","Bristow & Sutor","161189","78.55","Services - Professional Fees","130102464","29/01/16","Revenues & Benefits","Revenues","R4400"
"Wolverhampton City Council","http://opendatacommunities.org/id/metropolitan-district-council/wolverhampton","Bristow & Sutor","161305","150.68","Services - Professional Fees","130102465","29/01/16","Revenues & Benefits","Revenues","R4400"
"Wolverhampton City Council","http://opendatacommunities.org/id/metropolitan-district-council/wolverhampton","Bristow & Sutor","160458-VAT ONLY","60.42","Services - Professional Fees","130099901","08/01/16","Revenues & Benefits","Revenues","R4400"
"Wolverhampton City Council","http://opendatacommunities.org/id/metropolitan-district-council/wolverhampton","Bristow & Sutor","160577","75.00","Services - Professional Fees","130100409","08/01/16","Revenues & Benefits","Revenues","R4400"
"Wolverhampton City Council","http://opendatacommunities.org/id/metropolitan-district-council/wolverhampton","Bristow & Sutor","160769","392.11","Services - Professional Fees","130100410","08/01/16","Revenues & Benefits","Revenues","R4400"
"Wolverhampton City Council","http://opendatacommunities.org/id/metropolitan-district-council/wolverhampton","Bristow & Sutor","160330","4,834.50","Services - Professional Fees","130099429","06/01/16","Revenues & Benefits","Revenues","R4400"
"Wolverhampton City Council","http://opendatacommunities.org/id/metropolitan-district-council/wolverhampton","Bristow & Sutor","160456","759.15","Services - Professional Fees","130099430","06/01/16","Revenues & Benefits","Revenues","R4400"
"Wolverhampton City Council","http://opendatacommunities.org/id/metropolitan-district-council/wolverhampton","BT (Phone Bills)","CM 5937 1934 Q108 M6","252.22","Comms - Telephone Call charges","130090788","22/01/16","Learning Disability Provider","Learning Disabilities Management","R4505"
"Wolverhampton City Council","http://opendatacommunities.org/id/metropolitan-district-council/wolverhampton","BT (Phone Bills)","CM 5937 1934 Q108 M6","-252.22","Comms - Telephone Call charges","130090788","22/01/16","Learning Disability Provider","Learning Disabilities Management","R4505"
"Wolverhampton City Council","http://opendatacommunities.org/id/metropolitan-district-council/wolverhampton","BT (Phone Bills)","CM 5937 1934 Q108 M6","232.22","Comms - Telephone Call charges","130090788","22/01/16","Learning Disability Provider","Learning Disabilities Management","R4505"
"Wolverhampton City Council","http://opendatacommunities.org/id/metropolitan-district-council/wolverhampton","BT (Phone Bills)","CM 5937 1934 Q108 M6","20.00","Comms - Telephone Call charges","130090788","22/01/16","Learning Disability Provider","Learning Disabilities Management","R4505"
"Wolverhampton City Council","http://opendatacommunities.org/id/metropolitan-district-council/wolverhampton","BT (Phone Bills)","CM 6844 8565 Q002 56","101.40","Comms - Telephone Call charges","130104196","22/01/16","Learning Disability Provider","Learning Disabilities Management","R4505"
"Wolverhampton City Council","http://opendatacommunities.org/id/metropolitan-district-council/wolverhampton","BT (Phone Bills)","CM  6292 4296 Q045 T8","-79.20","Comms - Telephone Rental","130036175","22/01/16","Visitor Economy","Civic Halls Non-Direct Event Management Account","R4504"
"Wolverhampton City Council","http://opendatacommunities.org/id/metropolitan-district-council/wolverhampton","BT (Phone Bills)","CM  6292 4296 Q045 T8","60.96","Comms - Telephone Rental","130036175","22/01/16","Visitor Economy","Civic Halls Non-Direct Event Management Account","R4504"
"Wolverhampton City Council","http://opendatacommunities.org/id/metropolitan-district-council/wolverhampton","BT (Phone Bills)","CM  6292 4296 Q045 T8","9.00","Comms - Telephone Rental","130036175","22/01/16","Visitor Economy","Civic Halls Non-Direct Event Management Account","R4504"
"Wolverhampton City Council","http://opendatacommunities.org/id/metropolitan-district-council/wolverhampton","BT (Phone Bills)","CM  6292 4296 Q045 T8","13.50","Comms - Telephone Rental","130036175","22/01/16","Visitor Economy","Civic Halls Non-Direct Event Management Account","R4504"
"Wolverhampton City Council","http://opendatacommunities.org/id/metropolitan-district-council/wolverhampton","BT (Phone Bills)","CM 5940 2768 Q153 62","100.97","Comms - Telephone Rental","130092309","22/01/16","Engineering & Civic Centre","Civic Centre","R4504"
"Wolverhampton City Council","http://opendatacommunities.org/id/metropolitan-district-council/wolverhampton","BT (Phone Bills)","CM 5940 2768 Q153 62","-100.97","Comms - Telephone Rental","130092309","22/01/16","Engineering & Civic Centre","Civic Centre","R4504"
"Wolverhampton City Council","http://opendatacommunities.org/id/metropolitan-district-council/wolverhampton","BT (Phone Bills)","CM 5940 2768 Q153 62","81.00","Comms - Telephone Rental","130092309","22/01/16","Engineering & Civic Centre","Civic Centre","R4504"
"Wolverhampton City Council","http://opendatacommunities.org/id/metropolitan-district-council/wolverhampton","BT (Phone Bills)","CM 5940 2768 Q153 62","20.00","Comms - Telephone Rental","130092309","22/01/16","Engineering & Civic Centre","Civic Centre","R4504"
"Wolverhampton City Council","http://opendatacommunities.org/id/metropolitan-district-council/wolverhampton","BT (Phone Bills)","CM 6571 4142 Q026 E9","82.68","Comms - Telephone Rental","130103333","22/01/16","Engineering & Civic Centre","Asset Management Team","R4504"
"Wolverhampton City Council","http://opendatacommunities.org/id/metropolitan-district-council/wolverhampton","BT (Phone Bills)","CM 6571 4142 Q026 E9","30.00","Comms - Telephone Rental","130103333","22/01/16","Engineering & Civic Centre","Asset Management Team","R4504"
"Wolverhampton City Council","http://opendatacommunities.org/id/metropolitan-district-council/wolverhampton","BT (Phone Bills)","wm4080 0259 q006hr","111.75","Computing - Internet","190198156","22/01/16","Older People Provider Services","Warstones Resource Centre","R4537"
"Wolverhampton City Council","http://opendatacommunities.org/id/metropolitan-district-council/wolverhampton","BT (Phone Bills)","WN 8477 1646 Q005 CE","102.83","Comms - Telephone Rental","130102155","08/01/16","School Planning & Resources","Towers Outdoor Education Centre","R4504"
"Wolverhampton City Council","http://opendatacommunities.org/id/metropolitan-district-council/wolverhampton","BT (Phone Bills)","WN 8477 1646 Q005 CE","13.50","Comms - Telephone Rental","130102155","08/01/16","School Planning & Resources","Towers Outdoor Education Centre","R4504"
"Wolverhampton City Council","http://opendatacommunities.org/id/metropolitan-district-council/wolverhampton","BT (Phone Bills)","CM 5931 7141 Q108 W3","80.97","Fixtures and Fittings - R&M","130103326","29/01/16","Engineering & Civic Centre","Management of Vacant Properties","R2502"
"Wolverhampton City Council","http://opendatacommunities.org/id/metropolitan-district-council/wolverhampton","BT (Phone Bills)","CM 5931 7141 Q108 W3","30.00","Fixtures and Fittings - R&M","130103326","29/01/16","Engineering & Civic Centre","Management of Vacant Properties","R2502"
"Wolverhampton City Council","http://opendatacommunities.org/id/metropolitan-district-council/wolverhampton","BT (Phone Bills)","CM 6302 9105 Q045 UQ","71.97","Comms - Telephone Call charges","130059118","29/01/16","Engineering & Civic Centre","Management of Vacant Properties","R4505"
"Wolverhampton City Council","http://opendatacommunities.org/id/metropolitan-district-council/wolverhampton","BT (Phone Bills)","CM 6302 9105 Q045 UQ","20.00","Comms - Telephone Call charges","130059118","29/01/16","Engineering & Civic Centre","Management of Vacant Properties","R4505"
"Wolverhampton City Council","http://opendatacommunities.org/id/metropolitan-district-council/wolverhampton","BT (Phone Bills)","CM 6406 8105 Q032 RO","69.96","Computing - Internet","130033577","29/01/16","Engineering & Civic Centre","Management of Vacant Properties","R4537"
"Wolverhampton City Council","http://opendatacommunities.org/id/metropolitan-district-council/wolverhampton","BT (Phone Bills)","CM 6406 8105 Q032 RO","13.50","Computing - Internet","130033577","29/01/16","Engineering & Civic Centre","Management of Vacant Properties","R4537"
"Wolverhampton City Council","http://opendatacommunities.org/id/metropolitan-district-council/wolverhampton","BT (Phone Bills)","CM 5931 7141 Q106 OM","20.00","Comms - Telephone Rental","130081485","29/01/16","Engineering & Civic Centre","Management of Vacant Properties","R4504"
"Wolverhampton City Council","http://opendatacommunities.org/id/metropolitan-district-council/wolverhampton","BT (Phone Bills)","CM 5931 7141 Q106 OM","71.97","Comms - Telephone Rental","130081485","29/01/16","Engineering & Civic Centre","Management of Vacant Properties","R4504"
"Wolverhampton City Council","http://opendatacommunities.org/id/metropolitan-district-council/wolverhampton","BT (Phone Bills)","CM 6036 0215 Q095 KV","248.37","Comms - Telephone Rental","130086491","29/01/16","School Planning & Resources","Other Support Services","R4504"
"Wolverhampton City Council","http://opendatacommunities.org/id/metropolitan-district-council/wolverhampton","BT (Phone Bills)","CM 6036 0215 Q096 OW","259.67","Comms - Telephone Rental","130099843","29/01/16","School Planning & Resources","Other Support Services","R4504"
"Wolverhampton City Council","http://opendatacommunities.org/id/metropolitan-district-council/wolverhampton","BT (Phone Bills)","CM 6036 0215 Q096 OW","20.00","Comms - Telephone Rental","130099843","29/01/16","School Planning & Resources","Other Support Services","R4504"
"Wolverhampton City Council","http://opendatacommunities.org/id/metropolitan-district-council/wolverhampton","BT (Phone Bills)","CM 6151 8572 Q071 BR","84.00","Comms - Telephone Rental","130092310","29/01/16","Engineering & Civic Centre","Civic Centre","R4504"
"Wolverhampton City Council","http://opendatacommunities.org/id/metropolitan-district-council/wolverhampton","BT (Phone Bills)","GB12104623 M024","38.00","Comms - Telephone Call charges","130077040","29/01/16","Operation & Maintenance of Existing Network","UTC only � External Rechargeable Works","R4505"
"Wolverhampton City Council","http://opendatacommunities.org/id/metropolitan-district-council/wolverhampton","BT (Phone Bills)","CM 5915 1542 Q107 W0","80.97","Comms - Telephone Rental","130103166","29/01/16","Engineering & Civic Centre","Management of Vacant Properties","R4504"
"Wolverhampton City Council","http://opendatacommunities.org/id/metropolitan-district-council/wolverhampton","BT (Phone Bills)","CM 6130 8999 Q073 LM","80.97","Comms - Telephone Call charges","130103167","29/01/16","Leisure Services","Training & Development","R4505"
"Wolverhampton City Council","http://opendatacommunities.org/id/metropolitan-district-council/wolverhampton","BT (Phone Bills)","VP 15694670 M02701 NO","1,651.50","Comms - Telephone Call charges","130099363","20/01/16","School Planning & Resources","Services for Schools","R4505"
"Wolverhampton City Council","http://opendatacommunities.org/id/metropolitan-district-council/wolverhampton","BT (Phone Bills)","VP 15694670 M02701 NO","30.00","Comms - Telephone Call charges","130099363","20/01/16","School Planning & Resources","Services for Schools","R4505"
"Wolverhampton City Council","http://opendatacommunities.org/id/metropolitan-district-council/wolverhampton","BT (Phone Bills)","CM 5937 1934 Q109","261.30","Comms - Telephone Call charges","130103193","20/01/16","Learning Disability Provider","Learning Disabilities Management","R4505"
"Wolverhampton City Council","http://opendatacommunities.org/id/metropolitan-district-council/wolverhampton","BT (Phone Bills)","CM 5937 1934 Q109","-261.30","Comms - Telephone Call charges","130103193","20/01/16","Learning Disability Provider","Learning Disabilities Management","R4505"
"Wolverhampton City Council","http://opendatacommunities.org/id/metropolitan-district-council/wolverhampton","BT (Phone Bills)","CM 5937 1934 Q109","241.30","Comms - Telephone Call charges","130103193","20/01/16","Learning Disability Provider","Learning Disabilities Management","R4505"
"Wolverhampton City Council","http://opendatacommunities.org/id/metropolitan-district-council/wolverhampton","BT (Phone Bills)","CM 5937 1934 Q109","20.00","Comms - Telephone Call charges","130103193","20/01/16","Learning Disability Provider","Learning Disabilities Management","R4505"
"Wolverhampton City Council","http://opendatacommunities.org/id/metropolitan-district-council/wolverhampton","BT (Phone Bills)","CM638165410391 Q039 XN","99.50","Fixtures and Fittings - R&M","190196698","20/01/16","Community Centres (Corporate Landlord)","Caretakers Community Centre","R2502"
"Wolverhampton City Council","http://opendatacommunities.org/id/metropolitan-district-council/wolverhampton","BT (Phone Bills)","CM649206630301 Q030 E2","80.97","Fixtures and Fittings - R&M","190196699","20/01/16","Cleaning & Caretaking Service","Bilston Town Hall","R2502"
"Wolverhampton City Council","http://opendatacommunities.org/id/metropolitan-district-council/wolverhampton","BT (Phone Bills)","CM593559381071 Q107 XU","85.65","Fixtures and Fittings - R&M","190196700","20/01/16","Community Centres (Corporate Landlord)","Caretakers Community Centre","R2502"
"Wolverhampton City Council","http://opendatacommunities.org/id/metropolitan-district-council/wolverhampton","BT (Phone Bills)","CM 5932 4566 Q106 RL","80.97","Fixtures and Fittings - R&M","130100520","20/01/16","Engineering & Civic Centre","Management of Vacant Properties","R2502"
"Wolverhampton City Council","http://opendatacommunities.org/id/metropolitan-district-council/wolverhampton","BT (Phone Bills)","CM 5932 4566 Q106 RL","30.00","Fixtures and Fittings - R&M","130100520","20/01/16","Engineering & Civic Centre","Management of Vacant Properties","R2502"
"Wolverhampton City Council","http://opendatacommunities.org/id/metropolitan-district-council/wolverhampton","BT (Phone Bills)","CM 5937 1920 Q107 ES","90.87","Fixtures and Fittings - R&M","130100521","20/01/16","Engineering & Civic Centre","Management of Vacant Properties","R2502"
"Wolverhampton City Council","http://opendatacommunities.org/id/metropolitan-district-council/wolverhampton","BT (Phone Bills)","CM 5937 1920 Q107 ES","30.00","Fixtures and Fittings - R&M","130100521","20/01/16","Engineering & Civic Centre","Management of Vacant Properties","R2502"
"Wolverhampton City Council","http://opendatacommunities.org/id/metropolitan-district-council/wolverhampton","BT (Phone Bills)","CM 6397 5716 Q042 6S","68.97","Comms - Telephone Rental","130103032","20/01/16","School Planning & Resources","Pupil & Student Support","R4504"
"Wolverhampton City Council","http://opendatacommunities.org/id/metropolitan-district-council/wolverhampton","BT (Phone Bills)","CM 6353 4916 Q042 QY","100.97","Comms - Telephone Call charges","130103053","20/01/16","Adult Education","Old Hall Street Main","R4505"
"Wolverhampton City Council","http://opendatacommunities.org/id/metropolitan-district-council/wolverhampton","BT (Phone Bills)","CM 6353 4916 Q042 QY","-100.97","Comms - Telephone Call charges","130103053","20/01/16","Adult Education","Old Hall Street Main","R4505"
"Wolverhampton City Council","http://opendatacommunities.org/id/metropolitan-district-council/wolverhampton","BT (Phone Bills)","CM 6353 4916 Q042 QY","80.97","Comms - Telephone Call charges","130103053","20/01/16","Adult Education","Old Hall Street Main","R4505"
"Wolverhampton City Council","http://opendatacommunities.org/id/metropolitan-district-council/wolverhampton","BT (Phone Bills)","CM 6353 4916 Q042 QY","20.00","Comms - Telephone Call charges","130103053","20/01/16","Adult Education","Old Hall Street Main","R4505"
"Wolverhampton City Council","http://opendatacommunities.org/id/metropolitan-district-council/wolverhampton","BT (Phone Bills)","CM 6092 3329 Q081 20","111.08","Comms - Telephone Call charges","130100780","06/01/16","Older People Assessment & Care Management","Assessment Team (North)","R4505"
"Wolverhampton City Council","http://opendatacommunities.org/id/metropolitan-district-council/wolverhampton","BT (Phone Bills)","CM 6092 3329 Q081 20","-111.08","Comms - Telephone Call charges","130100780","06/01/16","Older People Assessment & Care Management","Assessment Team (North)","R4505"
"Wolverhampton City Council","http://opendatacommunities.org/id/metropolitan-district-council/wolverhampton","BT (Phone Bills)","CM 6092 3329 Q081 20","81.08","Comms - Telephone Call charges","130100780","06/01/16","Older People Assessment & Care Management","Assessment Team (North)","R4505"
"Wolverhampton City Council","http://opendatacommunities.org/id/metropolitan-district-council/wolverhampton","BT (Phone Bills)","CM 6092 3329 Q081 20","30.00","Comms - Telephone Call charges","130100780","06/01/16","Older People Assessment & Care Management","Assessment Team (North)","R4505"
"Wolverhampton City Council","http://opendatacommunities.org/id/metropolitan-district-council/wolverhampton","BT (Phone Bills)","CM59370317 Q107RL(2)","13.33","Comms - Telephone Rental","190191112","06/01/16","Engineering & Civic Centre","Management of Vacant Properties","R4504"
"Wolverhampton City Council","http://opendatacommunities.org/id/metropolitan-district-council/wolverhampton","BT (Phone Bills)","CM59370317 Q107RL","99.96","Comms - Telephone Rental","190191111","06/01/16","Engineering & Civic Centre","Management of Vacant Properties","R4504"
"Wolverhampton City Council","http://opendatacommunities.org/id/metropolitan-district-council/wolverhampton","BT (Phone Bills)","CM59370317 Q104FZ(2)","12.51","Comms - Telephone Rental","190191114","06/01/16","Engineering & Civic Centre","Management of Vacant Properties","R4504"
"Wolverhampton City Council","http://opendatacommunities.org/id/metropolitan-district-council/wolverhampton","BT (Phone Bills)","CM59370317 Q104FZ","88.54","Comms - Telephone Rental","190191113","06/01/16","Engineering & Civic Centre","Management of Vacant Properties","R4504"
"Wolverhampton City Council","http://opendatacommunities.org/id/metropolitan-district-council/wolverhampton","BT (Phone Bills)","CM 6674 2970 Q020 Z5","110.97","Comms - Telephone Call charges","130101486","06/01/16","Learning Disability Provider","Community Enablement","R4505"
"Wolverhampton City Council","http://opendatacommunities.org/id/metropolitan-district-council/wolverhampton","BT (Phone Bills)","CM 6674 2970 Q020 Z5","-110.97","Comms - Telephone Call charges","130101486","06/01/16","Learning Disability Provider","Community Enablement","R4505"
"Wolverhampton City Council","http://opendatacommunities.org/id/metropolitan-district-council/wolverhampton","BT (Phone Bills)","CM 6674 2970 Q020 Z5","80.97","Comms - Telephone Call charges","130101486","06/01/16","Learning Disability Provider","Community Enablement","R4505"
"Wolverhampton City Council","http://opendatacommunities.org/id/metropolitan-district-council/wolverhampton","BT (Phone Bills)","CM 6674 2970 Q020 Z5","30.00","Comms - Telephone Call charges","130101486","06/01/16","Learning Disability Provider","Community Enablement","R4505"
"Wolverhampton City Council","http://opendatacommunities.org/id/metropolitan-district-council/wolverhampton","BT (Phone Bills)","CS00001421 Q204","516.78","Services - Assistive technology","130100328","13/01/16","All Age Disability (Disabilities)","CSDP","R4407"
"Wolverhampton City Council","http://opendatacommunities.org/id/metropolitan-district-council/wolverhampton","BT (Phone Bills)","CS 00001421 Q205","278.90","Services - Assistive technology","130100327","13/01/16","All Age Disability (Disabilities)","CSDP","R4407"
"Wolverhampton City Council","http://opendatacommunities.org/id/metropolitan-district-council/wolverhampton","BT (Phone Bills)","CM 6015 8329 Q092 ZI","80.97","Fixtures and Fittings - R&M","190193445","13/01/16","Community Centres (Corporate Landlord)","Caretakers Community Centre","R2502"
"Wolverhampton City Council","http://opendatacommunities.org/id/metropolitan-district-council/wolverhampton","BT (Phone Bills)","CM 6492 0657 Q030 00","80.97","Fixtures and Fittings - R&M","190193443","13/01/16","Cleaning & Caretaking Service","Bilston Town Hall","R2502"
"Wolverhampton City Council","http://opendatacommunities.org/id/metropolitan-district-council/wolverhampton","BT (Phone Bills)","CM 6684 0541Q018VZ","80.97","Fixtures and Fittings - R&M","190193444","13/01/16","Cleaning & Caretaking Service","Culwell Street Depot","R2502"
"Wolverhampton City Council","http://opendatacommunities.org/id/metropolitan-district-council/wolverhampton","BT (Phone Bills)","CM 5996 6476 Q096 SA","100.49","Fixtures and Fittings - R&M","190193446","13/01/16","Community Centres (Corporate Landlord)","Caretakers Community Centre","R2502"
"Wolverhampton City Council","http://opendatacommunities.org/id/metropolitan-district-council/wolverhampton","BT Phone Book Advertising","A142338","7,975.23","Construction and Conversion","130101420","08/01/16","","Integrated Transport","C1100"
"Wolverhampton City Council","http://opendatacommunities.org/id/metropolitan-district-council/wolverhampton","BT Phone Book Advertising","A142382","1,015.63","Construction and Conversion","130101581","13/01/16","","Integrated Transport","C1100"
"Wolverhampton City Council","http://opendatacommunities.org/id/metropolitan-district-council/wolverhampton","British Telecommunications PLC","CM 6050 4979 Q086 PN","113.27","Comms - Telephone Call charges","130102379","13/01/16","Markets","Wolverhampton Indoor and Open Market","R4505"
"Wolverhampton City Council","http://opendatacommunities.org/id/metropolitan-district-council/wolverhampton","British Telecommunications PLC","CM 6050 4979 Q086 PN","-113.27","Comms - Telephone Call charges","130102379","13/01/16","Markets","Wolverhampton Indoor and Open Market","R4505"
"Wolverhampton City Council","http://opendatacommunities.org/id/metropolitan-district-council/wolverhampton","British Telecommunications PLC","CM 6050 4979 Q086 PN","93.27","Comms - Telephone Call charges","130102379","13/01/16","Markets","Wolverhampton Indoor and Open Market","R4505"
"Wolverhampton City Council","http://opendatacommunities.org/id/metropolitan-district-council/wolverhampton","British Telecommunications PLC","CM 6050 4979 Q086 PN","20.00","Comms - Telephone Call charges","130102379","13/01/16","Markets","Wolverhampton Indoor and Open Market","R4505"
"Wolverhampton City Council","http://opendatacommunities.org/id/metropolitan-district-council/wolverhampton","British Telecommunications PLC","CM 5928 5802 Q107 8Q","92.67","Comms - Telephone Call charges","130102381","13/01/16","Markets","Bilston Market and Licensed Operations","R4505"
"Wolverhampton City Council","http://opendatacommunities.org/id/metropolitan-district-council/wolverhampton","British Telecommunications PLC","CM 5928 5802 Q107 8Q","-92.67","Comms - Telephone Call charges","130102381","13/01/16","Markets","Bilston Market and Licensed Operations","R4505"
"Wolverhampton City Council","http://opendatacommunities.org/id/metropolitan-district-council/wolverhampton","British Telecommunications PLC","CM 5928 5802 Q107 8Q","62.67","Comms - Telephone Call charges","130102381","13/01/16","Markets","Bilston Market and Licensed Operations","R4505"
"Wolverhampton City Council","http://opendatacommunities.org/id/metropolitan-district-council/wolverhampton","British Telecommunications PLC","CM 5928 5802 Q107 8Q","30.00","Comms - Telephone Call charges","130102381","13/01/16","Markets","Bilston Market and Licensed Operations","R4505"
"Wolverhampton City Council","http://opendatacommunities.org/id/metropolitan-district-council/wolverhampton","Brooklands Pharmacy","SMNEPRQ Q32015 102","51.00","TPP - Public Health Contracts","190199971","29/01/16","Contracts","Alcohol and Drug","R5060"
"Wolverhampton City Council","http://opendatacommunities.org/id/metropolitan-district-council/wolverhampton","Brooklands Pharmacy","SMSCOSQ Q32015 147","441.00","TPP - Public Health Contracts","190199973","29/01/16","Contracts","Alcohol and Drug","R5060"
"Wolverhampton City Council","http://opendatacommunities.org/id/metropolitan-district-council/wolverhampton","Brooklands Pharmacy","SMNEPIQ Q32015 172","172.00","TPP - Public Health Contracts","190199970","29/01/16","Contracts","Alcohol and Drug","R5060"
"Wolverhampton City Council","http://opendatacommunities.org/id/metropolitan-district-council/wolverhampton","Brooklands Pharmacy","SMSCOMQ Q32015 361","902.50","TPP - Public Health Contracts","190199972","29/01/16","Contracts","Alcohol and Drug","R5060"
"Wolverhampton City Council","http://opendatacommunities.org/id/metropolitan-district-council/wolverhampton","Good Shepherd Ministry","charity1","1,000.00","Donations","190198504","22/01/16","","Mayor�s Charity","R9140"
"Wolverhampton City Council","http://opendatacommunities.org/id/metropolitan-district-council/wolverhampton","Good Shepherd Ministry","LB0006","13,353.00","Grant Payments","190191270","06/01/16","Housing","Emergency Homeless - Little Brothers","R4700"
"Wolverhampton City Council","http://opendatacommunities.org/id/metropolitan-district-council/wolverhampton","Good Shepherd Ministry","LB0005","13,353.00","Grant Payments","190191269","06/01/16","Housing","Emergency Homeless - Little Brothers","R4700"
"Wolverhampton City Council","http://opendatacommunities.org/id/metropolitan-district-council/wolverhampton","Browne Jacobson Llp","311315","2,450.00","Insurance - General","130100445","08/01/16","Audit Services","Legal Liability","R4962"
"Wolverhampton City Council","http://opendatacommunities.org/id/metropolitan-district-council/wolverhampton","Bruel & Kjaer UK Limited","3055691","195.50","Services - Professional Fees","130101187","06/01/16","Regulatory Services","Air Quality and Noise","R4400"
"Wolverhampton City Council","http://opendatacommunities.org/id/metropolitan-district-council/wolverhampton","BT (Business)","CM131841","-136.98","Computing - Purchase of Hardware","130095175","15/01/16","School Planning & Resources","Technical Support","R4530"
"Wolverhampton City Council","http://opendatacommunities.org/id/metropolitan-district-council/wolverhampton","BT (Business)","CM 6130 5049 F070 NL","-50.64","Comms - Telephone Rental","130043901","29/01/16","Street Lighting","Street Lighting Maintenance","R4504"
"Wolverhampton City Council","http://opendatacommunities.org/id/metropolitan-district-council/wolverhampton","BT (Business)","CM 6130 5049 F070 NL","20.00","Services - Fees and Charges","130043901","29/01/16","Street Lighting","Street Lighting Maintenance","R4401"
"Wolverhampton City Council","http://opendatacommunities.org/id/metropolitan-district-council/wolverhampton","BT Global","402666","60,000.00","Construction and Conversion","130100932","15/01/16","","Westside","C1100"
"Wolverhampton City Council","http://opendatacommunities.org/id/metropolitan-district-council/wolverhampton","BT Global","0790162688","115.36","Comms - Telephone Rental","130101825","13/01/16","Management and Administration","Public Health Support Costs","R4504"
"Wolverhampton City Council","http://opendatacommunities.org/id/metropolitan-district-council/wolverhampton","BT Global","0790164840","115.36","Comms - Telephone Rental","130101826","13/01/16","Management and Administration","Public Health Support Costs","R4504"
"Wolverhampton City Council","http://opendatacommunities.org/id/metropolitan-district-council/wolverhampton","United Living","SI/002723","77,735.00","Construction and Conversion","130104485","22/01/16","","Refurbishment of Voids","C1100"
"Wolverhampton City Council","http://opendatacommunities.org/id/metropolitan-district-council/wolverhampton","United Living","SI/002721","60,971.00","Construction and Conversion","130104053","22/01/16","","Structural works","C1100"
"Wolverhampton City Council","http://opendatacommunities.org/id/metropolitan-district-council/wolverhampton","United Living","SI/002722","84,359.00","Construction and Conversion","130104054","22/01/16","","New Build infill schemes","C1100"
"Wolverhampton City Council","http://opendatacommunities.org/id/metropolitan-district-council/wolverhampton","United Living","SI/002716","409,655.00","Construction and Conversion","130103934","22/01/16","","Decent Homes - Stock Improvements","C1100"
"Wolverhampton City Council","http://opendatacommunities.org/id/metropolitan-district-council/wolverhampton","United Living","SI/002717","94,649.00","Construction and Conversion","130104052","22/01/16","","Decent Homes - Stock Improvements","C1100"
"Wolverhampton City Council","http://opendatacommunities.org/id/metropolitan-district-council/wolverhampton","United Living","SI/002715","232,742.00","Construction and Conversion","130104051","22/01/16","","Decent Homes - Stock Condition","C1100"
"Wolverhampton City Council","http://opendatacommunities.org/id/metropolitan-district-council/wolverhampton","United Living","SI/002725","49,726.00","R&M - Departmental planned (external)","130104057","22/01/16","Housing Revenue Account","Amounts to be Settled with Wolverhampton Homes","R2001"
"Wolverhampton City Council","http://opendatacommunities.org/id/metropolitan-district-council/wolverhampton","United Living","SI/002724","121,116.00","Construction and Conversion","130104056","22/01/16","","Decent Homes - Stock Improvements","C1100"
"Wolverhampton City Council","http://opendatacommunities.org/id/metropolitan-district-council/wolverhampton","United Living","SL/002734","120,397.00","Construction and Conversion","130104060","22/01/16","","Decent Homes - Stock Improvements","C1100"
"Wolverhampton City Council","http://opendatacommunities.org/id/metropolitan-district-council/wolverhampton","BVS Training Limited","2305205","130.95","Training Expenses","130102664","13/01/16","Older People Provider Services","Merry Hill House","R1650"
"Wolverhampton City Council","http://opendatacommunities.org/id/metropolitan-district-council/wolverhampton","Bytes Software Services Limited","433431","12,154.01","Computing - Licences","130101922","20/01/16","ICTS","Digital Transformation Programme","R4535"
"Wolverhampton City Council","http://opendatacommunities.org/id/metropolitan-district-council/wolverhampton","Bytes Software Services Limited","433430","312,208.93","Computing - Licences","130101199","20/01/16","ICTS","Digital Transformation Programme","R4535"
"Wolverhampton City Council","http://opendatacommunities.org/id/metropolitan-district-council/wolverhampton","C P Davidson & Sons Limited","35049818","227.50","Services - Professional Fees","190195681","20/01/16","Fleet Services","Fleet Management","R4400"
"Wolverhampton City Council","http://opendatacommunities.org/id/metropolitan-district-council/wolverhampton","Cale Briparc Limited","108462","725.35","Equipment - R & M","130097900","15/01/16","Parking Services","On Street Parking","R4003"
"Wolverhampton City Council","http://opendatacommunities.org/id/metropolitan-district-council/wolverhampton","Cale Briparc Limited","107832","245.52","Equipment - R & M","130103201","27/01/16","Parking Services","On Street Parking","R4003"
"Wolverhampton City Council","http://opendatacommunities.org/id/metropolitan-district-council/wolverhampton","Cale Briparc Limited","107286","458.37","Equipment - R & M","130103200","27/01/16","Parking Services","Car Parks Operational Staff","R4003"
"Wolverhampton City Council","http://opendatacommunities.org/id/metropolitan-district-council/wolverhampton","Cale Briparc Limited","108475","731.59","Equipment - R & M","130097901","06/01/16","Parking Services","Car Parks Operational Staff","R4003"
"Wolverhampton City Council","http://opendatacommunities.org/id/metropolitan-district-council/wolverhampton","Cale Briparc Limited","108768","340.12","Equipment - R & M","130099951","06/01/16","Parking Services","Car Parks Operational Staff","R4003"
"Wolverhampton City Council","http://opendatacommunities.org/id/metropolitan-district-council/wolverhampton","Canford Audio PLC","1122526738","410.00","Stationery","130101869","20/01/16","Regulatory Services","EHTS Operational","R4308"
"Wolverhampton City Council","http://opendatacommunities.org/id/metropolitan-district-council/wolverhampton","Canon (UK) Limited","9102087","1,016.13","Printing","130102891","29/01/16","Planning","Planning","R4300"
"Wolverhampton City Council","http://opendatacommunities.org/id/metropolitan-district-council/wolverhampton","Capita Resourcing Limited","01489920","755.85","Agency Staff","130101300","15/01/16","Older People Assessment & Care Management","Hospital Team","R1100"
"Wolverhampton City Council","http://opendatacommunities.org/id/metropolitan-district-council/wolverhampton","Capita Resourcing Limited","01491440","1,165.25","Agency Staff","130101320","15/01/16","Older People Assessment & Care Management","Hospital Team","R1100"
"Wolverhampton City Council","http://opendatacommunities.org/id/metropolitan-district-council/wolverhampton","Capita Resourcing Limited","01514169","6.70","Agency Staff","130100829","15/01/16","Children in Need & Child Protection","CIN - Graisley MAST - Area 3","R1100"
"Wolverhampton City Council","http://opendatacommunities.org/id/metropolitan-district-council/wolverhampton","Capita Resourcing Limited","01514172","1,156.25","Agency Staff","130100832","15/01/16","Older People Assessment & Care Management","Hospital Team","R1100"
"Wolverhampton City Council","http://opendatacommunities.org/id/metropolitan-district-council/wolverhampton","Capita Resourcing Limited","01512769","1,156.25","Agency Staff","130098874","15/01/16","Older People Assessment & Care Management","Hospital Team","R1100"
"Wolverhampton City Council","http://opendatacommunities.org/id/metropolitan-district-council/wolverhampton","Capita Resourcing Limited","01489921","1,164.06","Agency Staff","130101301","15/01/16","Older People Assessment & Care Management","Hospital Team","R1100"
"Wolverhampton City Council","http://opendatacommunities.org/id/metropolitan-district-council/wolverhampton","Capita Resourcing Limited","01489922","808.73","Agency Staff","130101302","15/01/16","Older People Assessment & Care Management","Hospital Team","R1100"
"Wolverhampton City Council","http://opendatacommunities.org/id/metropolitan-district-council/wolverhampton","Capita Resourcing Limited","01491442","1,125.00","Agency Staff","130101322","15/01/16","Older People Assessment & Care Management","Hospital Team","R1100"
"Wolverhampton City Council","http://opendatacommunities.org/id/metropolitan-district-council/wolverhampton","Capita Resourcing Limited","01491443","738.10","Agency Staff","130101323","15/01/16","Older People Assessment & Care Management","Hospital Team","R1100"
"Wolverhampton City Council","http://opendatacommunities.org/id/metropolitan-district-council/wolverhampton","Capita Resourcing Limited","01468135","1,193.25","Agency Staff","130033453","29/01/16","Looked After Children","Peripatetic Social Work Unit - LAC","R1100"
"Wolverhampton City Council","http://opendatacommunities.org/id/metropolitan-district-council/wolverhampton","Capita Resourcing Limited","01489916","143.37","Agency Staff","130101296","08/01/16","Learning Disability Provider","Swan Bank","R1100"
"Wolverhampton City Council","http://opendatacommunities.org/id/metropolitan-district-council/wolverhampton","Capita Resourcing Limited","01489925","131.40","Agency Staff","130101305","08/01/16","Physical Disabilities Assessment","Physical & Sensory Disabilities Management","R1100"
"Wolverhampton City Council","http://opendatacommunities.org/id/metropolitan-district-council/wolverhampton","Capita Resourcing Limited","01489923","1,125.91","Agency Staff","130101303","08/01/16","Older People Assessment & Care Management","Assessment Team (East)","R1100"
"Wolverhampton City Council","http://opendatacommunities.org/id/metropolitan-district-council/wolverhampton","Capita Resourcing Limited","01491444","1,125.91","Agency Staff","130101324","08/01/16","Older People Assessment & Care Management","Assessment Team (East)","R1100"
"Wolverhampton City Council","http://opendatacommunities.org/id/metropolitan-district-council/wolverhampton","Capita Resourcing Limited","01511346","1,230.25","Agency Staff","130096822","08/01/16","Children in Need & Child Protection","CIN Agency","R1100"
